Organisation Name,Organisation Code,Unique Ref No,Effective Date,Directorate where expenditure incurred,Supplier Name ,Payment Date,Net Amount,Purpose of Spend,"Procurement Classification
(Higher Level)","Procurement Classification 
(Lower Level)",CAPITAL / REVENUE
Walsall Council,http://opendatacommunities.org/id/metropolitan-district-council/walsall ,WC142-1,30.09.2022,CHILDRENS,247 CARS (WILLENHALL) LIMITED,12/09/2022,877.5,6241-Hire of Vehicle with Driver,TRANSPORT,DIRECT TRANSPORT COSTS,REVENUE
Walsall Council,http://opendatacommunities.org/id/metropolitan-district-council/walsall ,WC142-2,30.09.2022,RESOURCES AND TRANSFORMATION,3 SPIRIT UK TRAINING & CONSULTANCY,08/09/2022,700,6625-Consultant Fees,SUPPLIES & SERVICES,SERVICES,REVENUE
Walsall Council,http://opendatacommunities.org/id/metropolitan-district-council/walsall ,WC142-3,30.09.2022,RESOURCES AND TRANSFORMATION,3 SPIRIT UK TRAINING & CONSULTANCY,08/09/2022,700,6625-Consultant Fees,SUPPLIES & SERVICES,SERVICES,REVENUE
Walsall Council,http://opendatacommunities.org/id/metropolitan-district-council/walsall ,WC142-4,30.09.2022,ADULT SOCIAL CARE,5 CARE SERVICES LTD,12/09/2022,568.8,6541-Domiciliary Care,THIRD PARTY PAYMENTS,PRIVATE CONTRACTOR,REVENUE
Walsall Council,http://opendatacommunities.org/id/metropolitan-district-council/walsall ,WC142-5,30.09.2022,ADULT SOCIAL CARE,5 CARE SERVICES LTD,12/09/2022,718.9,6541-Domiciliary Care,THIRD PARTY PAYMENTS,PRIVATE CONTRACTOR,REVENUE
Walsall Council,http://opendatacommunities.org/id/metropolitan-district-council/walsall ,WC142-6,30.09.2022,ADULT SOCIAL CARE,5 CARE SERVICES LTD,12/09/2022,331.8,6541-Domiciliary Care,THIRD PARTY PAYMENTS,PRIVATE CONTRACTOR,REVENUE
Walsall Council,http://opendatacommunities.org/id/metropolitan-district-council/walsall ,WC142-7,30.09.2022,ADULT SOCIAL CARE,5 CARE SERVICES LTD,12/09/2022,497.7,6541-Domiciliary Care,THIRD PARTY PAYMENTS,PRIVATE CONTRACTOR,REVENUE
Walsall Council,http://opendatacommunities.org/id/metropolitan-district-council/walsall ,WC142-8,30.09.2022,ADULT SOCIAL CARE,5 CARE SERVICES LTD,12/09/2022,524.08,6541-Domiciliary Care,THIRD PARTY PAYMENTS,PRIVATE CONTRACTOR,REVENUE
Walsall Council,http://opendatacommunities.org/id/metropolitan-district-council/walsall ,WC142-9,30.09.2022,ADULT SOCIAL CARE,5 CARE SERVICES LTD,12/09/2022,442.4,6541-Domiciliary Care,THIRD PARTY PAYMENTS,PRIVATE CONTRACTOR,REVENUE
Walsall Council,http://opendatacommunities.org/id/metropolitan-district-council/walsall ,WC142-10,30.09.2022,ADULT SOCIAL CARE,5 CARE SERVICES LTD,12/09/2022,"4,345.00",6541-Domiciliary Care,THIRD PARTY PAYMENTS,PRIVATE CONTRACTOR,REVENUE
Walsall Council,http://opendatacommunities.org/id/metropolitan-district-council/walsall ,WC142-11,30.09.2022,ADULT SOCIAL CARE,5 CARE SERVICES LTD,12/09/2022,288.35,6541-Domiciliary Care,THIRD PARTY PAYMENTS,PRIVATE CONTRACTOR,REVENUE
Walsall Council,http://opendatacommunities.org/id/metropolitan-district-council/walsall ,WC142-12,30.09.2022,ADULT SOCIAL CARE,5 CARE SERVICES LTD,12/09/2022,497.7,6541-Domiciliary Care,THIRD PARTY PAYMENTS,PRIVATE CONTRACTOR,REVENUE
Walsall Council,http://opendatacommunities.org/id/metropolitan-district-council/walsall ,WC142-13,30.09.2022,ADULT SOCIAL CARE,5 CARE SERVICES LTD,12/09/2022,884.8,6541-Domiciliary Care,THIRD PARTY PAYMENTS,PRIVATE CONTRACTOR,REVENUE
Walsall Council,http://opendatacommunities.org/id/metropolitan-district-council/walsall ,WC142-14,30.09.2022,ADULT SOCIAL CARE,5 CARE SERVICES LTD,12/09/2022,663.6,6541-Domiciliary Care,THIRD PARTY PAYMENTS,PRIVATE CONTRACTOR,REVENUE
Walsall Council,http://opendatacommunities.org/id/metropolitan-district-council/walsall ,WC142-15,30.09.2022,ADULT SOCIAL CARE,5 CARE SERVICES LTD,12/09/2022,645.19,6541-Domiciliary Care,THIRD PARTY PAYMENTS,PRIVATE CONTRACTOR,REVENUE
Walsall Council,http://opendatacommunities.org/id/metropolitan-district-council/walsall ,WC142-16,30.09.2022,ADULT SOCIAL CARE,5 CARE SERVICES LTD,12/09/2022,553,6541-Domiciliary Care,THIRD PARTY PAYMENTS,PRIVATE CONTRACTOR,REVENUE
Walsall Council,http://opendatacommunities.org/id/metropolitan-district-council/walsall ,WC142-17,30.09.2022,ADULT SOCIAL CARE,5 CARE SERVICES LTD,12/09/2022,"2,085.60",6541-Domiciliary Care,THIRD PARTY PAYMENTS,PRIVATE CONTRACTOR,REVENUE
Walsall Council,http://opendatacommunities.org/id/metropolitan-district-council/walsall ,WC142-18,30.09.2022,ADULT SOCIAL CARE,5 CARE SERVICES LTD,12/09/2022,252.8,6541-Domiciliary Care,THIRD PARTY PAYMENTS,PRIVATE CONTRACTOR,REVENUE
Walsall Council,http://opendatacommunities.org/id/metropolitan-district-council/walsall ,WC142-19,30.09.2022,ADULT SOCIAL CARE,5 CARE SERVICES LTD,12/09/2022,568.8,6541-Domiciliary Care,THIRD PARTY PAYMENTS,PRIVATE CONTRACTOR,REVENUE
Walsall Council,http://opendatacommunities.org/id/metropolitan-district-council/walsall ,WC142-20,30.09.2022,ADULT SOCIAL CARE,5 CARE SERVICES LTD,12/09/2022,747.96,6541-Domiciliary Care,THIRD PARTY PAYMENTS,PRIVATE CONTRACTOR,REVENUE
Walsall Council,http://opendatacommunities.org/id/metropolitan-district-council/walsall ,WC142-21,30.09.2022,ADULT SOCIAL CARE,5 CARE SERVICES LTD,12/09/2022,497.7,6541-Domiciliary Care,THIRD PARTY PAYMENTS,PRIVATE CONTRACTOR,REVENUE
Walsall Council,http://opendatacommunities.org/id/metropolitan-district-council/walsall ,WC142-22,30.09.2022,ADULT SOCIAL CARE,5 CARE SERVICES LTD,12/09/2022,288.35,6541-Domiciliary Care,THIRD PARTY PAYMENTS,PRIVATE CONTRACTOR,REVENUE
Walsall Council,http://opendatacommunities.org/id/metropolitan-district-council/walsall ,WC142-23,30.09.2022,ADULT SOCIAL CARE,5 CARE SERVICES LTD,12/09/2022,252.8,6541-Domiciliary Care,THIRD PARTY PAYMENTS,PRIVATE CONTRACTOR,REVENUE
Walsall Council,http://opendatacommunities.org/id/metropolitan-district-council/walsall ,WC142-24,30.09.2022,ADULT SOCIAL CARE,5 CARE SERVICES LTD,12/09/2022,663.6,6541-Domiciliary Care,THIRD PARTY PAYMENTS,PRIVATE CONTRACTOR,REVENUE
Walsall Council,http://opendatacommunities.org/id/metropolitan-district-council/walsall ,WC142-25,30.09.2022,ADULT SOCIAL CARE,5 CARE SERVICES LTD,12/09/2022,645.19,6541-Domiciliary Care,THIRD PARTY PAYMENTS,PRIVATE CONTRACTOR,REVENUE
Walsall Council,http://opendatacommunities.org/id/metropolitan-district-council/walsall ,WC142-26,30.09.2022,ADULT SOCIAL CARE,5 CARE SERVICES LTD,12/09/2022,497.7,6541-Domiciliary Care,THIRD PARTY PAYMENTS,PRIVATE CONTRACTOR,REVENUE
Walsall Council,http://opendatacommunities.org/id/metropolitan-district-council/walsall ,WC142-27,30.09.2022,ADULT SOCIAL CARE,5 CARE SERVICES LTD,12/09/2022,884.8,6541-Domiciliary Care,THIRD PARTY PAYMENTS,PRIVATE CONTRACTOR,REVENUE
Walsall Council,http://opendatacommunities.org/id/metropolitan-district-council/walsall ,WC142-28,30.09.2022,ADULT SOCIAL CARE,5 CARE SERVICES LTD,12/09/2022,718.9,6541-Domiciliary Care,THIRD PARTY PAYMENTS,PRIVATE CONTRACTOR,REVENUE
Walsall Council,http://opendatacommunities.org/id/metropolitan-district-council/walsall ,WC142-29,30.09.2022,ADULT SOCIAL CARE,5 CARE SERVICES LTD,12/09/2022,331.8,6541-Domiciliary Care,THIRD PARTY PAYMENTS,PRIVATE CONTRACTOR,REVENUE
Walsall Council,http://opendatacommunities.org/id/metropolitan-district-council/walsall ,WC142-30,30.09.2022,ADULT SOCIAL CARE,5 CARE SERVICES LTD,12/09/2022,331.8,6541-Domiciliary Care,THIRD PARTY PAYMENTS,PRIVATE CONTRACTOR,REVENUE
Walsall Council,http://opendatacommunities.org/id/metropolitan-district-council/walsall ,WC142-31,30.09.2022,ADULT SOCIAL CARE,5 CARE SERVICES LTD,12/09/2022,553,6541-Domiciliary Care,THIRD PARTY PAYMENTS,PRIVATE CONTRACTOR,REVENUE
Walsall Council,http://opendatacommunities.org/id/metropolitan-district-council/walsall ,WC142-32,30.09.2022,ADULT SOCIAL CARE,5 CARE SERVICES LTD,12/09/2022,497.7,6541-Domiciliary Care,THIRD PARTY PAYMENTS,PRIVATE CONTRACTOR,REVENUE
Walsall Council,http://opendatacommunities.org/id/metropolitan-district-council/walsall ,WC142-33,30.09.2022,ADULT SOCIAL CARE,5 CARE SERVICES LTD,12/09/2022,331.8,6541-Domiciliary Care,THIRD PARTY PAYMENTS,PRIVATE CONTRACTOR,REVENUE
Walsall Council,http://opendatacommunities.org/id/metropolitan-district-council/walsall ,WC142-34,30.09.2022,ADULT SOCIAL CARE,5 CARE SERVICES LTD,12/09/2022,497.7,6541-Domiciliary Care,THIRD PARTY PAYMENTS,PRIVATE CONTRACTOR,REVENUE
Walsall Council,http://opendatacommunities.org/id/metropolitan-district-council/walsall ,WC142-35,30.09.2022,ADULT SOCIAL CARE,5 CARE SERVICES LTD,12/09/2022,331.8,6541-Domiciliary Care,THIRD PARTY PAYMENTS,PRIVATE CONTRACTOR,REVENUE
Walsall Council,http://opendatacommunities.org/id/metropolitan-district-council/walsall ,WC142-36,30.09.2022,ADULT SOCIAL CARE,5 CARE SERVICES LTD,12/09/2022,442.4,6541-Domiciliary Care,THIRD PARTY PAYMENTS,PRIVATE CONTRACTOR,REVENUE
Walsall Council,http://opendatacommunities.org/id/metropolitan-district-council/walsall ,WC142-37,30.09.2022,ADULT SOCIAL CARE,5 CARE SERVICES LTD,12/09/2022,568.8,6541-Domiciliary Care,THIRD PARTY PAYMENTS,PRIVATE CONTRACTOR,REVENUE
Walsall Council,http://opendatacommunities.org/id/metropolitan-district-council/walsall ,WC142-38,30.09.2022,ADULT SOCIAL CARE,5 CARE SERVICES LTD,12/09/2022,379.2,6541-Domiciliary Care,THIRD PARTY PAYMENTS,PRIVATE CONTRACTOR,REVENUE
Walsall Council,http://opendatacommunities.org/id/metropolitan-district-council/walsall ,WC142-39,30.09.2022,ADULT SOCIAL CARE,5 CARE SERVICES LTD,12/09/2022,524.08,6541-Domiciliary Care,THIRD PARTY PAYMENTS,PRIVATE CONTRACTOR,REVENUE
Walsall Council,http://opendatacommunities.org/id/metropolitan-district-council/walsall ,WC142-40,30.09.2022,ADULT SOCIAL CARE,5 CARE SERVICES LTD,12/09/2022,"1,216.60",6541-Domiciliary Care,THIRD PARTY PAYMENTS,PRIVATE CONTRACTOR,REVENUE
Walsall Council,http://opendatacommunities.org/id/metropolitan-district-council/walsall ,WC142-41,30.09.2022,ADULT SOCIAL CARE,5 CARE SERVICES LTD,12/09/2022,747.96,6541-Domiciliary Care,THIRD PARTY PAYMENTS,PRIVATE CONTRACTOR,REVENUE
Walsall Council,http://opendatacommunities.org/id/metropolitan-district-council/walsall ,WC142-42,30.09.2022,ADULT SOCIAL CARE,5 CARE SERVICES LTD,21/09/2022,"1,244.25",6541-Domiciliary Care,THIRD PARTY PAYMENTS,PRIVATE CONTRACTOR,REVENUE
Walsall Council,http://opendatacommunities.org/id/metropolitan-district-council/walsall ,WC142-43,30.09.2022,ADULT SOCIAL CARE,5 CARE SERVICES LTD,21/09/2022,"1,394.35",6541-Domiciliary Care,THIRD PARTY PAYMENTS,PRIVATE CONTRACTOR,REVENUE
Walsall Council,http://opendatacommunities.org/id/metropolitan-district-council/walsall ,WC142-44,30.09.2022,ADULT SOCIAL CARE,5 CARE SERVICES LTD,21/09/2022,"1,990.80",6541-Domiciliary Care,THIRD PARTY PAYMENTS,PRIVATE CONTRACTOR,REVENUE
Walsall Council,http://opendatacommunities.org/id/metropolitan-district-council/walsall ,WC142-45,30.09.2022,ADULT SOCIAL CARE,5 CARE SERVICES LTD,21/09/2022,450.3,6541-Domiciliary Care,THIRD PARTY PAYMENTS,PRIVATE CONTRACTOR,REVENUE
Walsall Council,http://opendatacommunities.org/id/metropolitan-district-council/walsall ,WC142-46,30.09.2022,ADULT SOCIAL CARE,5 CARE SERVICES LTD,21/09/2022,758.4,6541-Domiciliary Care,THIRD PARTY PAYMENTS,PRIVATE CONTRACTOR,REVENUE
Walsall Council,http://opendatacommunities.org/id/metropolitan-district-council/walsall ,WC142-47,30.09.2022,ADULT SOCIAL CARE,5 CARE SERVICES LTD,21/09/2022,363.4,6541-Domiciliary Care,THIRD PARTY PAYMENTS,PRIVATE CONTRACTOR,REVENUE
Walsall Council,http://opendatacommunities.org/id/metropolitan-district-council/walsall ,WC142-48,30.09.2022,ADULT SOCIAL CARE,5 CARE SERVICES LTD,26/09/2022,252.8,6541-Domiciliary Care,THIRD PARTY PAYMENTS,PRIVATE CONTRACTOR,REVENUE
Walsall Council,http://opendatacommunities.org/id/metropolitan-district-council/walsall ,WC142-49,30.09.2022,ADULT SOCIAL CARE,5 CARE SERVICES LTD,26/09/2022,497.7,6541-Domiciliary Care,THIRD PARTY PAYMENTS,PRIVATE CONTRACTOR,REVENUE
Walsall Council,http://opendatacommunities.org/id/metropolitan-district-council/walsall ,WC142-50,30.09.2022,ADULT SOCIAL CARE,5 CARE SERVICES LTD,26/09/2022,884.8,6541-Domiciliary Care,THIRD PARTY PAYMENTS,PRIVATE CONTRACTOR,REVENUE
Walsall Council,http://opendatacommunities.org/id/metropolitan-district-council/walsall ,WC142-51,30.09.2022,ADULT SOCIAL CARE,5 CARE SERVICES LTD,26/09/2022,663.6,6541-Domiciliary Care,THIRD PARTY PAYMENTS,PRIVATE CONTRACTOR,REVENUE
Walsall Council,http://opendatacommunities.org/id/metropolitan-district-council/walsall ,WC142-52,30.09.2022,ADULT SOCIAL CARE,5 CARE SERVICES LTD,26/09/2022,645.19,6541-Domiciliary Care,THIRD PARTY PAYMENTS,PRIVATE CONTRACTOR,REVENUE
Walsall Council,http://opendatacommunities.org/id/metropolitan-district-council/walsall ,WC142-53,30.09.2022,ADULT SOCIAL CARE,5 CARE SERVICES LTD,26/09/2022,718.9,6541-Domiciliary Care,THIRD PARTY PAYMENTS,PRIVATE CONTRACTOR,REVENUE
Walsall Council,http://opendatacommunities.org/id/metropolitan-district-council/walsall ,WC142-54,30.09.2022,ADULT SOCIAL CARE,5 CARE SERVICES LTD,26/09/2022,497.7,6541-Domiciliary Care,THIRD PARTY PAYMENTS,PRIVATE CONTRACTOR,REVENUE
Walsall Council,http://opendatacommunities.org/id/metropolitan-district-council/walsall ,WC142-55,30.09.2022,ADULT SOCIAL CARE,5 CARE SERVICES LTD,26/09/2022,331.8,6541-Domiciliary Care,THIRD PARTY PAYMENTS,PRIVATE CONTRACTOR,REVENUE
Walsall Council,http://opendatacommunities.org/id/metropolitan-district-council/walsall ,WC142-56,30.09.2022,ADULT SOCIAL CARE,5 CARE SERVICES LTD,26/09/2022,497.7,6541-Domiciliary Care,THIRD PARTY PAYMENTS,PRIVATE CONTRACTOR,REVENUE
Walsall Council,http://opendatacommunities.org/id/metropolitan-district-council/walsall ,WC142-57,30.09.2022,ADULT SOCIAL CARE,5 CARE SERVICES LTD,26/09/2022,442.4,6541-Domiciliary Care,THIRD PARTY PAYMENTS,PRIVATE CONTRACTOR,REVENUE
Walsall Council,http://opendatacommunities.org/id/metropolitan-district-council/walsall ,WC142-58,30.09.2022,ADULT SOCIAL CARE,5 CARE SERVICES LTD,26/09/2022,537.2,6541-Domiciliary Care,THIRD PARTY PAYMENTS,PRIVATE CONTRACTOR,REVENUE
Walsall Council,http://opendatacommunities.org/id/metropolitan-district-council/walsall ,WC142-59,30.09.2022,ADULT SOCIAL CARE,5 CARE SERVICES LTD,26/09/2022,489.8,6541-Domiciliary Care,THIRD PARTY PAYMENTS,PRIVATE CONTRACTOR,REVENUE
Walsall Council,http://opendatacommunities.org/id/metropolitan-district-council/walsall ,WC142-60,30.09.2022,ADULT SOCIAL CARE,5 CARE SERVICES LTD,26/09/2022,331.8,6541-Domiciliary Care,THIRD PARTY PAYMENTS,PRIVATE CONTRACTOR,REVENUE
Walsall Council,http://opendatacommunities.org/id/metropolitan-district-council/walsall ,WC142-61,30.09.2022,ADULT SOCIAL CARE,5 CARE SERVICES LTD,26/09/2022,948,6541-Domiciliary Care,THIRD PARTY PAYMENTS,PRIVATE CONTRACTOR,REVENUE
Walsall Council,http://opendatacommunities.org/id/metropolitan-district-council/walsall ,WC142-62,30.09.2022,ADULT SOCIAL CARE,5 CARE SERVICES LTD,26/09/2022,288.35,6541-Domiciliary Care,THIRD PARTY PAYMENTS,PRIVATE CONTRACTOR,REVENUE
Walsall Council,http://opendatacommunities.org/id/metropolitan-district-council/walsall ,WC142-63,30.09.2022,ADULT SOCIAL CARE,5 CARE SERVICES LTD,26/09/2022,553,6541-Domiciliary Care,THIRD PARTY PAYMENTS,PRIVATE CONTRACTOR,REVENUE
Walsall Council,http://opendatacommunities.org/id/metropolitan-district-council/walsall ,WC142-64,30.09.2022,ADULT SOCIAL CARE,5 CARE SERVICES LTD,26/09/2022,747.96,6541-Domiciliary Care,THIRD PARTY PAYMENTS,PRIVATE CONTRACTOR,REVENUE
Walsall Council,http://opendatacommunities.org/id/metropolitan-district-council/walsall ,WC142-65,30.09.2022,ADULT SOCIAL CARE,5 CARE SERVICES LTD,26/09/2022,568.8,6541-Domiciliary Care,THIRD PARTY PAYMENTS,PRIVATE CONTRACTOR,REVENUE
Walsall Council,http://opendatacommunities.org/id/metropolitan-district-council/walsall ,WC142-66,30.09.2022,ADULT SOCIAL CARE,5 CARE SERVICES LTD,26/09/2022,524.08,6541-Domiciliary Care,THIRD PARTY PAYMENTS,PRIVATE CONTRACTOR,REVENUE
Walsall Council,http://opendatacommunities.org/id/metropolitan-district-council/walsall ,WC142-67,30.09.2022,ADULT SOCIAL CARE,5 CARE SERVICES LTD,26/09/2022,"1,216.60",6541-Domiciliary Care,THIRD PARTY PAYMENTS,PRIVATE CONTRACTOR,REVENUE
Walsall Council,http://opendatacommunities.org/id/metropolitan-district-council/walsall ,WC142-68,30.09.2022,ADULT SOCIAL CARE,5 CARE SERVICES LTD,26/09/2022,284.4,6541-Domiciliary Care,THIRD PARTY PAYMENTS,PRIVATE CONTRACTOR,REVENUE
Walsall Council,http://opendatacommunities.org/id/metropolitan-district-council/walsall ,WC142-69,30.09.2022,ADULT SOCIAL CARE,5 CARE SERVICES LTD,26/09/2022,718.9,6541-Domiciliary Care,THIRD PARTY PAYMENTS,PRIVATE CONTRACTOR,REVENUE
Walsall Council,http://opendatacommunities.org/id/metropolitan-district-council/walsall ,WC142-70,30.09.2022,ADULT SOCIAL CARE,5 CARE SERVICES LTD,26/09/2022,663.6,6541-Domiciliary Care,THIRD PARTY PAYMENTS,PRIVATE CONTRACTOR,REVENUE
Walsall Council,http://opendatacommunities.org/id/metropolitan-district-council/walsall ,WC142-71,30.09.2022,ADULT SOCIAL CARE,5 CARE SERVICES LTD,26/09/2022,645.19,6541-Domiciliary Care,THIRD PARTY PAYMENTS,PRIVATE CONTRACTOR,REVENUE
Walsall Council,http://opendatacommunities.org/id/metropolitan-district-council/walsall ,WC142-72,30.09.2022,ADULT SOCIAL CARE,5 CARE SERVICES LTD,26/09/2022,521.4,6541-Domiciliary Care,THIRD PARTY PAYMENTS,PRIVATE CONTRACTOR,REVENUE
Walsall Council,http://opendatacommunities.org/id/metropolitan-district-council/walsall ,WC142-73,30.09.2022,ADULT SOCIAL CARE,5 CARE SERVICES LTD,26/09/2022,489.8,6541-Domiciliary Care,THIRD PARTY PAYMENTS,PRIVATE CONTRACTOR,REVENUE
Walsall Council,http://opendatacommunities.org/id/metropolitan-district-council/walsall ,WC142-74,30.09.2022,ADULT SOCIAL CARE,5 CARE SERVICES LTD,26/09/2022,948,6541-Domiciliary Care,THIRD PARTY PAYMENTS,PRIVATE CONTRACTOR,REVENUE
Walsall Council,http://opendatacommunities.org/id/metropolitan-district-council/walsall ,WC142-75,30.09.2022,ADULT SOCIAL CARE,5 CARE SERVICES LTD,26/09/2022,747.96,6541-Domiciliary Care,THIRD PARTY PAYMENTS,PRIVATE CONTRACTOR,REVENUE
Walsall Council,http://opendatacommunities.org/id/metropolitan-district-council/walsall ,WC142-76,30.09.2022,ADULT SOCIAL CARE,5 CARE SERVICES LTD,26/09/2022,288.35,6541-Domiciliary Care,THIRD PARTY PAYMENTS,PRIVATE CONTRACTOR,REVENUE
Walsall Council,http://opendatacommunities.org/id/metropolitan-district-council/walsall ,WC142-77,30.09.2022,ADULT SOCIAL CARE,5 CARE SERVICES LTD,26/09/2022,553,6541-Domiciliary Care,THIRD PARTY PAYMENTS,PRIVATE CONTRACTOR,REVENUE
Walsall Council,http://opendatacommunities.org/id/metropolitan-district-council/walsall ,WC142-78,30.09.2022,ADULT SOCIAL CARE,5 CARE SERVICES LTD,26/09/2022,497.7,6541-Domiciliary Care,THIRD PARTY PAYMENTS,PRIVATE CONTRACTOR,REVENUE
Walsall Council,http://opendatacommunities.org/id/metropolitan-district-council/walsall ,WC142-79,30.09.2022,ADULT SOCIAL CARE,5 CARE SERVICES LTD,26/09/2022,884.8,6541-Domiciliary Care,THIRD PARTY PAYMENTS,PRIVATE CONTRACTOR,REVENUE
Walsall Council,http://opendatacommunities.org/id/metropolitan-district-council/walsall ,WC142-80,30.09.2022,ADULT SOCIAL CARE,5 CARE SERVICES LTD,26/09/2022,331.8,6541-Domiciliary Care,THIRD PARTY PAYMENTS,PRIVATE CONTRACTOR,REVENUE
Walsall Council,http://opendatacommunities.org/id/metropolitan-district-council/walsall ,WC142-81,30.09.2022,ADULT SOCIAL CARE,5 CARE SERVICES LTD,26/09/2022,252.8,6541-Domiciliary Care,THIRD PARTY PAYMENTS,PRIVATE CONTRACTOR,REVENUE
Walsall Council,http://opendatacommunities.org/id/metropolitan-district-council/walsall ,WC142-82,30.09.2022,ADULT SOCIAL CARE,5 CARE SERVICES LTD,26/09/2022,497.7,6541-Domiciliary Care,THIRD PARTY PAYMENTS,PRIVATE CONTRACTOR,REVENUE
Walsall Council,http://opendatacommunities.org/id/metropolitan-district-council/walsall ,WC142-83,30.09.2022,ADULT SOCIAL CARE,5 CARE SERVICES LTD,26/09/2022,568.8,6541-Domiciliary Care,THIRD PARTY PAYMENTS,PRIVATE CONTRACTOR,REVENUE
Walsall Council,http://opendatacommunities.org/id/metropolitan-district-council/walsall ,WC142-84,30.09.2022,ADULT SOCIAL CARE,5 CARE SERVICES LTD,26/09/2022,331.8,6541-Domiciliary Care,THIRD PARTY PAYMENTS,PRIVATE CONTRACTOR,REVENUE
Walsall Council,http://opendatacommunities.org/id/metropolitan-district-council/walsall ,WC142-85,30.09.2022,ADULT SOCIAL CARE,5 CARE SERVICES LTD,26/09/2022,497.7,6541-Domiciliary Care,THIRD PARTY PAYMENTS,PRIVATE CONTRACTOR,REVENUE
Walsall Council,http://opendatacommunities.org/id/metropolitan-district-council/walsall ,WC142-86,30.09.2022,ADULT SOCIAL CARE,5 CARE SERVICES LTD,26/09/2022,442.4,6541-Domiciliary Care,THIRD PARTY PAYMENTS,PRIVATE CONTRACTOR,REVENUE
Walsall Council,http://opendatacommunities.org/id/metropolitan-district-council/walsall ,WC142-87,30.09.2022,ADULT SOCIAL CARE,5 CARE SERVICES LTD,26/09/2022,524.08,6541-Domiciliary Care,THIRD PARTY PAYMENTS,PRIVATE CONTRACTOR,REVENUE
Walsall Council,http://opendatacommunities.org/id/metropolitan-district-council/walsall ,WC142-88,30.09.2022,ADULT SOCIAL CARE,5 CARE SERVICES LTD,26/09/2022,"1,216.60",6541-Domiciliary Care,THIRD PARTY PAYMENTS,PRIVATE CONTRACTOR,REVENUE
Walsall Council,http://opendatacommunities.org/id/metropolitan-district-council/walsall ,WC142-89,30.09.2022,ADULT SOCIAL CARE,5 CARE SERVICES LTD,21/09/2022,"1,137.60",6554-Professional Services-Priv Contractor & Other Agencies,THIRD PARTY PAYMENTS,PRIVATE CONTRACTOR,REVENUE
Walsall Council,http://opendatacommunities.org/id/metropolitan-district-council/walsall ,WC142-90,30.09.2022,ADULT SOCIAL CARE,5 CARE SERVICES LTD,21/09/2022,"1,137.60",6541-Domiciliary Care,THIRD PARTY PAYMENTS,PRIVATE CONTRACTOR,REVENUE
Walsall Council,http://opendatacommunities.org/id/metropolitan-district-council/walsall ,WC142-91,30.09.2022,"ECONOMY, ENVIRONMENT & COMMUNITIES",A B WASTE MANAGEMENT LTD,01/09/2022,325,6414-Recycling & Disposal of Waste -Priv Contractor Fees,THIRD PARTY PAYMENTS,PRIVATE CONTRACTOR,REVENUE
Walsall Council,http://opendatacommunities.org/id/metropolitan-district-council/walsall ,WC142-92,30.09.2022,"ECONOMY, ENVIRONMENT & COMMUNITIES",A D T FIRE AND SECURITY PLC,28/09/2022,811.68,6410-Materials,SUPPLIES & SERVICES,EQUIPMENT FURNITURE & MATERIALS,REVENUE
Walsall Council,http://opendatacommunities.org/id/metropolitan-district-council/walsall ,WC142-93,30.09.2022,"ECONOMY, ENVIRONMENT & COMMUNITIES",A F BLAKEMORE & SON LTD,20/09/2022,460.44,6413-Catering & Refreshments,SUPPLIES & SERVICES,CATERING,REVENUE
Walsall Council,http://opendatacommunities.org/id/metropolitan-district-council/walsall ,WC142-94,30.09.2022,"ECONOMY, ENVIRONMENT & COMMUNITIES",A F BLAKEMORE & SON LTD,20/09/2022,"1,361.56",6413-Catering & Refreshments,SUPPLIES & SERVICES,CATERING,REVENUE
Walsall Council,http://opendatacommunities.org/id/metropolitan-district-council/walsall ,WC142-95,30.09.2022,"ECONOMY, ENVIRONMENT & COMMUNITIES",A F BLAKEMORE & SON LTD,20/09/2022,293.13,6413-Catering & Refreshments,SUPPLIES & SERVICES,CATERING,REVENUE
Walsall Council,http://opendatacommunities.org/id/metropolitan-district-council/walsall ,WC142-96,30.09.2022,"ECONOMY, ENVIRONMENT & COMMUNITIES",A F BLAKEMORE & SON LTD,20/09/2022,630.29,6413-Catering & Refreshments,SUPPLIES & SERVICES,CATERING,REVENUE
Walsall Council,http://opendatacommunities.org/id/metropolitan-district-council/walsall ,WC142-97,30.09.2022,"ECONOMY, ENVIRONMENT & COMMUNITIES",A F BLAKEMORE & SON LTD,15/09/2022,-849.53,6413-Food & Drink Supplies,SUPPLIES & SERVICES,CATERING,REVENUE
Walsall Council,http://opendatacommunities.org/id/metropolitan-district-council/walsall ,WC142-98,30.09.2022,"ECONOMY, ENVIRONMENT & COMMUNITIES",A F BLAKEMORE & SON LTD,15/09/2022,747.29,6413-Food & Drink Supplies,SUPPLIES & SERVICES,CATERING,REVENUE
Walsall Council,http://opendatacommunities.org/id/metropolitan-district-council/walsall ,WC142-99,30.09.2022,"ECONOMY, ENVIRONMENT & COMMUNITIES",A F BLAKEMORE & SON LTD,15/09/2022,849.53,6413-Food & Drink Supplies,SUPPLIES & SERVICES,CATERING,REVENUE
Walsall Council,http://opendatacommunities.org/id/metropolitan-district-council/walsall ,WC142-100,30.09.2022,"ECONOMY, ENVIRONMENT & COMMUNITIES",AAINA COMMUNITY HUB,22/09/2022,552.94,6430-Professional Services-Priv Contractor & Other Agencies,THIRD PARTY PAYMENTS,PRIVATE CONTRACTOR,REVENUE
Walsall Council,http://opendatacommunities.org/id/metropolitan-district-council/walsall ,WC142-101,30.09.2022,"ECONOMY, ENVIRONMENT & COMMUNITIES",AAINA COMMUNITY HUB,07/09/2022,"1,568.16",6313-Grants to Other Orgs,SUPPLIES & SERVICES,GRANTS (EXP) & SUBSCRIPTIONS,REVENUE
Walsall Council,http://opendatacommunities.org/id/metropolitan-district-council/walsall ,WC142-102,30.09.2022,"ECONOMY, ENVIRONMENT & COMMUNITIES",AAINA COMMUNITY HUB,08/09/2022,"1,375.00",6430-Professional Services-Priv Contractor & Other Agencies,THIRD PARTY PAYMENTS,PRIVATE CONTRACTOR,REVENUE
Walsall Council,http://opendatacommunities.org/id/metropolitan-district-council/walsall ,WC142-103,30.09.2022,"ECONOMY, ENVIRONMENT & COMMUNITIES",AAINA COMMUNITY HUB,01/09/2022,"1,639.00",6430-Grants to Other Orgs,SUPPLIES & SERVICES,GRANTS (EXP) & SUBSCRIPTIONS,REVENUE
Walsall Council,http://opendatacommunities.org/id/metropolitan-district-council/walsall ,WC142-104,30.09.2022,"ECONOMY, ENVIRONMENT & COMMUNITIES",AAINA COMMUNITY HUB,01/09/2022,818.43,6313-Grants to Other Orgs,SUPPLIES & SERVICES,GRANTS (EXP) & SUBSCRIPTIONS,REVENUE
Walsall Council,http://opendatacommunities.org/id/metropolitan-district-council/walsall ,WC142-105,30.09.2022,CHILDRENS,ABACUS FOSTERING LTD,05/09/2022,"2,763.20",6223-Independent Foster Care-Oth Agency Provision,THIRD PARTY PAYMENTS,PRIVATE CONTRACTOR,REVENUE
Walsall Council,http://opendatacommunities.org/id/metropolitan-district-council/walsall ,WC142-106,30.09.2022,CHILDRENS,ABACUS FOSTERING LTD,05/09/2022,"2,763.20",6223-Independent Foster Care-Oth Agency Provision,THIRD PARTY PAYMENTS,PRIVATE CONTRACTOR,REVENUE
Walsall Council,http://opendatacommunities.org/id/metropolitan-district-council/walsall ,WC142-107,30.09.2022,ADULT SOCIAL CARE,ABBEY COURT NURSING & RESIDEN,26/09/2022,"2,366.04",6541-Residential EMI,THIRD PARTY PAYMENTS,PRIVATE CONTRACTOR,REVENUE
Walsall Council,http://opendatacommunities.org/id/metropolitan-district-council/walsall ,WC142-108,30.09.2022,ADULT SOCIAL CARE,ABBEY COURT NURSING & RESIDEN,26/09/2022,374.18,6541-Residential,THIRD PARTY PAYMENTS,PRIVATE CONTRACTOR,REVENUE
Walsall Council,http://opendatacommunities.org/id/metropolitan-district-council/walsall ,WC142-109,30.09.2022,ADULT SOCIAL CARE,ABBEY COURT NURSING & RESIDEN,26/09/2022,"2,606.04",6541-Residential EMI,THIRD PARTY PAYMENTS,PRIVATE CONTRACTOR,REVENUE
Walsall Council,http://opendatacommunities.org/id/metropolitan-district-council/walsall ,WC142-110,30.09.2022,ADULT SOCIAL CARE,ABBEY HEALTHCARE HOMES LTD,26/09/2022,"2,432.32",6541-Residential,THIRD PARTY PAYMENTS,PRIVATE CONTRACTOR,REVENUE
Walsall Council,http://opendatacommunities.org/id/metropolitan-district-council/walsall ,WC142-111,30.09.2022,ADULT SOCIAL CARE,ABBEY HEALTHCARE HOMES LTD,26/09/2022,"3,180.76",6541-Residential,THIRD PARTY PAYMENTS,PRIVATE CONTRACTOR,REVENUE
Walsall Council,http://opendatacommunities.org/id/metropolitan-district-council/walsall ,WC142-112,30.09.2022,ADULT SOCIAL CARE,ABBEY HEALTHCARE HOMES LTD,26/09/2022,"3,180.76",6541-Residential,THIRD PARTY PAYMENTS,PRIVATE CONTRACTOR,REVENUE
Walsall Council,http://opendatacommunities.org/id/metropolitan-district-council/walsall ,WC142-113,30.09.2022,ADULT SOCIAL CARE,ABBEY HEALTHCARE HOMES LTD,26/09/2022,"3,604.84",6541-Residential,THIRD PARTY PAYMENTS,PRIVATE CONTRACTOR,REVENUE
Walsall Council,http://opendatacommunities.org/id/metropolitan-district-council/walsall ,WC142-114,30.09.2022,CHILDRENS,ABC DAY NURSERY (WILLENHALL) LIMITED,09/09/2022,"13,734.00",1184-Other-Grants to Other Orgs,SUPPLIES & SERVICES,GRANTS (EXP) & SUBSCRIPTIONS,REVENUE
Walsall Council,http://opendatacommunities.org/id/metropolitan-district-council/walsall ,WC142-115,30.09.2022,CHILDRENS,ABC DAY NURSERY (WILLENHALL) LIMITED,09/09/2022,"21,924.00",1184-Other-Grants to Other Orgs,SUPPLIES & SERVICES,GRANTS (EXP) & SUBSCRIPTIONS,REVENUE
Walsall Council,http://opendatacommunities.org/id/metropolitan-district-council/walsall ,WC142-116,30.09.2022,"ECONOMY, ENVIRONMENT & COMMUNITIES",ABEL ALARM CO LTD,15/09/2022,"1,036.45",6413-Repair & Maintenance of Furniture & Equipment,SUPPLIES & SERVICES,EQUIPMENT FURNITURE & MATERIALS,REVENUE
Walsall Council,http://opendatacommunities.org/id/metropolitan-district-council/walsall ,WC142-117,30.09.2022,"ECONOMY, ENVIRONMENT & COMMUNITIES",ABEL ALARM CO LTD,15/09/2022,"-1,036.45",6413-Repair & Maintenance of Furniture & Equipment,SUPPLIES & SERVICES,EQUIPMENT FURNITURE & MATERIALS,REVENUE
Walsall Council,http://opendatacommunities.org/id/metropolitan-district-council/walsall ,WC142-118,30.09.2022,"ECONOMY, ENVIRONMENT & COMMUNITIES",ABEL ALARM CO LTD,15/09/2022,"1,036.45",6413-Repair & Maintenance of Furniture & Equipment,SUPPLIES & SERVICES,EQUIPMENT FURNITURE & MATERIALS,REVENUE
Walsall Council,http://opendatacommunities.org/id/metropolitan-district-council/walsall ,WC142-119,30.09.2022,"ECONOMY, ENVIRONMENT & COMMUNITIES",ABEL ALARM CO LTD,15/09/2022,"1,108.65",6413-Repair & Maintenance of Furniture & Equipment,SUPPLIES & SERVICES,EQUIPMENT FURNITURE & MATERIALS,REVENUE
Walsall Council,http://opendatacommunities.org/id/metropolitan-district-council/walsall ,WC142-120,30.09.2022,"ECONOMY, ENVIRONMENT & COMMUNITIES",ABEL ALARM CO LTD,15/09/2022,"-1,108.65",6413-Repair & Maintenance of Furniture & Equipment,SUPPLIES & SERVICES,EQUIPMENT FURNITURE & MATERIALS,REVENUE
Walsall Council,http://opendatacommunities.org/id/metropolitan-district-council/walsall ,WC142-121,30.09.2022,"ECONOMY, ENVIRONMENT & COMMUNITIES",ABEL ALARM CO LTD,15/09/2022,"1,108.65",6413-Repair & Maintenance of Furniture & Equipment,SUPPLIES & SERVICES,EQUIPMENT FURNITURE & MATERIALS,REVENUE
Walsall Council,http://opendatacommunities.org/id/metropolitan-district-council/walsall ,WC142-122,30.09.2022,ADULT SOCIAL CARE,REDACTED,07/09/2022,"2,704.80",6541-Direct Payment,THIRD PARTY PAYMENTS,PRIVATE CONTRACTOR,REVENUE
Walsall Council,http://opendatacommunities.org/id/metropolitan-district-council/walsall ,WC142-123,30.09.2022,ADULT SOCIAL CARE,ABILITY HEALTHCARE LTD,21/09/2022,331.8,6541-Domiciliary Care,THIRD PARTY PAYMENTS,PRIVATE CONTRACTOR,REVENUE
Walsall Council,http://opendatacommunities.org/id/metropolitan-district-council/walsall ,WC142-124,30.09.2022,ADULT SOCIAL CARE,ABILITY HEALTHCARE LTD,21/09/2022,"2,212.00",6541-Domiciliary Care,THIRD PARTY PAYMENTS,PRIVATE CONTRACTOR,REVENUE
Walsall Council,http://opendatacommunities.org/id/metropolitan-district-council/walsall ,WC142-125,30.09.2022,ADULT SOCIAL CARE,ABILITY HEALTHCARE LTD,21/09/2022,884.8,6541-Domiciliary Care,THIRD PARTY PAYMENTS,PRIVATE CONTRACTOR,REVENUE
Walsall Council,http://opendatacommunities.org/id/metropolitan-district-council/walsall ,WC142-126,30.09.2022,ADULT SOCIAL CARE,ABILITY HEALTHCARE LTD,21/09/2022,"2,359.56",6541-Domiciliary Care,THIRD PARTY PAYMENTS,PRIVATE CONTRACTOR,REVENUE
Walsall Council,http://opendatacommunities.org/id/metropolitan-district-council/walsall ,WC142-127,30.09.2022,ADULT SOCIAL CARE,ABILITY HEALTHCARE LTD,21/09/2022,600.4,6541-Domiciliary Care,THIRD PARTY PAYMENTS,PRIVATE CONTRACTOR,REVENUE
Walsall Council,http://opendatacommunities.org/id/metropolitan-district-council/walsall ,WC142-128,30.09.2022,ADULT SOCIAL CARE,ABILITY HEALTHCARE LTD,21/09/2022,"1,990.80",6541-Domiciliary Care,THIRD PARTY PAYMENTS,PRIVATE CONTRACTOR,REVENUE
Walsall Council,http://opendatacommunities.org/id/metropolitan-district-council/walsall ,WC142-129,30.09.2022,ADULT SOCIAL CARE,ABILITY HEALTHCARE LTD,21/09/2022,884.8,6541-Domiciliary Care,THIRD PARTY PAYMENTS,PRIVATE CONTRACTOR,REVENUE
Walsall Council,http://opendatacommunities.org/id/metropolitan-district-council/walsall ,WC142-130,30.09.2022,ADULT SOCIAL CARE,ABILITY HEALTHCARE LTD,21/09/2022,900.6,6541-Domiciliary Care,THIRD PARTY PAYMENTS,PRIVATE CONTRACTOR,REVENUE
Walsall Council,http://opendatacommunities.org/id/metropolitan-district-council/walsall ,WC142-131,30.09.2022,ADULT SOCIAL CARE,ABILITY HEALTHCARE LTD,21/09/2022,995.4,6541-Domiciliary Care,THIRD PARTY PAYMENTS,PRIVATE CONTRACTOR,REVENUE
Walsall Council,http://opendatacommunities.org/id/metropolitan-district-council/walsall ,WC142-132,30.09.2022,ADULT SOCIAL CARE,ABILITY HEALTHCARE LTD,21/09/2022,"1,769.60",6541-Domiciliary Care,THIRD PARTY PAYMENTS,PRIVATE CONTRACTOR,REVENUE
Walsall Council,http://opendatacommunities.org/id/metropolitan-district-council/walsall ,WC142-133,30.09.2022,ADULT SOCIAL CARE,ABILITY HEALTHCARE LTD,21/09/2022,"1,382.50",6541-Domiciliary Care,THIRD PARTY PAYMENTS,PRIVATE CONTRACTOR,REVENUE
Walsall Council,http://opendatacommunities.org/id/metropolitan-district-council/walsall ,WC142-134,30.09.2022,ADULT SOCIAL CARE,ABILITY HEALTHCARE LTD,21/09/2022,387.1,6541-Domiciliary Care,THIRD PARTY PAYMENTS,PRIVATE CONTRACTOR,REVENUE
Walsall Council,http://opendatacommunities.org/id/metropolitan-district-council/walsall ,WC142-135,30.09.2022,ADULT SOCIAL CARE,ABILITY HEALTHCARE LTD,21/09/2022,"1,990.80",6541-Domiciliary Care,THIRD PARTY PAYMENTS,PRIVATE CONTRACTOR,REVENUE
Walsall Council,http://opendatacommunities.org/id/metropolitan-district-council/walsall ,WC142-136,30.09.2022,ADULT SOCIAL CARE,ABILITY HEALTHCARE LTD,21/09/2022,987.5,6541-Domiciliary Care,THIRD PARTY PAYMENTS,PRIVATE CONTRACTOR,REVENUE
Walsall Council,http://opendatacommunities.org/id/metropolitan-district-council/walsall ,WC142-137,30.09.2022,ADULT SOCIAL CARE,ABILITY HEALTHCARE LTD,21/09/2022,368.76,6541-Domiciliary Care,THIRD PARTY PAYMENTS,PRIVATE CONTRACTOR,REVENUE
Walsall Council,http://opendatacommunities.org/id/metropolitan-district-council/walsall ,WC142-138,30.09.2022,ADULT SOCIAL CARE,ABILITY HEALTHCARE LTD,21/09/2022,"1,990.80",6541-Domiciliary Care,THIRD PARTY PAYMENTS,PRIVATE CONTRACTOR,REVENUE
Walsall Council,http://opendatacommunities.org/id/metropolitan-district-council/walsall ,WC142-139,30.09.2022,ADULT SOCIAL CARE,ABILITY HEALTHCARE LTD,21/09/2022,"1,769.60",6541-Domiciliary Care,THIRD PARTY PAYMENTS,PRIVATE CONTRACTOR,REVENUE
Walsall Council,http://opendatacommunities.org/id/metropolitan-district-council/walsall ,WC142-140,30.09.2022,ADULT SOCIAL CARE,ABILITY HEALTHCARE LTD,21/09/2022,"2,306.80",6541-Domiciliary Care,THIRD PARTY PAYMENTS,PRIVATE CONTRACTOR,REVENUE
Walsall Council,http://opendatacommunities.org/id/metropolitan-district-council/walsall ,WC142-141,30.09.2022,ADULT SOCIAL CARE,ABILITY HEALTHCARE LTD,21/09/2022,"1,453.60",6541-Domiciliary Care,THIRD PARTY PAYMENTS,PRIVATE CONTRACTOR,REVENUE
Walsall Council,http://opendatacommunities.org/id/metropolitan-district-council/walsall ,WC142-142,30.09.2022,ADULT SOCIAL CARE,ABILITY HEALTHCARE LTD,21/09/2022,"1,769.60",6541-Domiciliary Care,THIRD PARTY PAYMENTS,PRIVATE CONTRACTOR,REVENUE
Walsall Council,http://opendatacommunities.org/id/metropolitan-district-council/walsall ,WC142-143,30.09.2022,ADULT SOCIAL CARE,ABILITY HEALTHCARE LTD,21/09/2022,"1,769.60",6541-Domiciliary Care,THIRD PARTY PAYMENTS,PRIVATE CONTRACTOR,REVENUE
Walsall Council,http://opendatacommunities.org/id/metropolitan-district-council/walsall ,WC142-144,30.09.2022,ADULT SOCIAL CARE,ABILITY HEALTHCARE LTD,21/09/2022,884.8,6541-Domiciliary Care,THIRD PARTY PAYMENTS,PRIVATE CONTRACTOR,REVENUE
Walsall Council,http://opendatacommunities.org/id/metropolitan-district-council/walsall ,WC142-145,30.09.2022,ADULT SOCIAL CARE,ABILITY HEALTHCARE LTD,21/09/2022,"1,990.80",6541-Domiciliary Care,THIRD PARTY PAYMENTS,PRIVATE CONTRACTOR,REVENUE
Walsall Council,http://opendatacommunities.org/id/metropolitan-district-council/walsall ,WC142-146,30.09.2022,ADULT SOCIAL CARE,ABILITY HEALTHCARE LTD,21/09/2022,"2,022.40",6541-Domiciliary Care,THIRD PARTY PAYMENTS,PRIVATE CONTRACTOR,REVENUE
Walsall Council,http://opendatacommunities.org/id/metropolitan-district-council/walsall ,WC142-147,30.09.2022,ADULT SOCIAL CARE,ABILITY HEALTHCARE LTD,21/09/2022,"1,990.80",6541-Domiciliary Care,THIRD PARTY PAYMENTS,PRIVATE CONTRACTOR,REVENUE
Walsall Council,http://opendatacommunities.org/id/metropolitan-district-council/walsall ,WC142-148,30.09.2022,ADULT SOCIAL CARE,ABILITY HEALTHCARE LTD,21/09/2022,"1,548.40",6541-Domiciliary Care,THIRD PARTY PAYMENTS,PRIVATE CONTRACTOR,REVENUE
Walsall Council,http://opendatacommunities.org/id/metropolitan-district-council/walsall ,WC142-149,30.09.2022,ADULT SOCIAL CARE,ABILITY HEALTHCARE LTD,21/09/2022,"1,769.60",6541-Domiciliary Care,THIRD PARTY PAYMENTS,PRIVATE CONTRACTOR,REVENUE
Walsall Council,http://opendatacommunities.org/id/metropolitan-district-council/walsall ,WC142-150,30.09.2022,ADULT SOCIAL CARE,ABILITY HEALTHCARE LTD,21/09/2022,837.4,6541-Domiciliary Care,THIRD PARTY PAYMENTS,PRIVATE CONTRACTOR,REVENUE
Walsall Council,http://opendatacommunities.org/id/metropolitan-district-council/walsall ,WC142-151,30.09.2022,ADULT SOCIAL CARE,ABILITY HEALTHCARE LTD,21/09/2022,"1,769.60",6541-Domiciliary Care,THIRD PARTY PAYMENTS,PRIVATE CONTRACTOR,REVENUE
Walsall Council,http://opendatacommunities.org/id/metropolitan-district-council/walsall ,WC142-152,30.09.2022,ADULT SOCIAL CARE,ABILITY HEALTHCARE LTD,21/09/2022,955.9,6541-Domiciliary Care,THIRD PARTY PAYMENTS,PRIVATE CONTRACTOR,REVENUE
Walsall Council,http://opendatacommunities.org/id/metropolitan-district-council/walsall ,WC142-153,30.09.2022,ADULT SOCIAL CARE,ABILITY HEALTHCARE LTD,21/09/2022,442.68,6541-Domiciliary Care,THIRD PARTY PAYMENTS,PRIVATE CONTRACTOR,REVENUE
Walsall Council,http://opendatacommunities.org/id/metropolitan-district-council/walsall ,WC142-154,30.09.2022,ADULT SOCIAL CARE,ABILITY HEALTHCARE LTD,21/09/2022,"1,622.32",6541-Domiciliary Care,THIRD PARTY PAYMENTS,PRIVATE CONTRACTOR,REVENUE
Walsall Council,http://opendatacommunities.org/id/metropolitan-district-council/walsall ,WC142-155,30.09.2022,ADULT SOCIAL CARE,ABILITY HEALTHCARE LTD,21/09/2022,"1,327.20",6541-Domiciliary Care,THIRD PARTY PAYMENTS,PRIVATE CONTRACTOR,REVENUE
Walsall Council,http://opendatacommunities.org/id/metropolitan-district-council/walsall ,WC142-156,30.09.2022,ADULT SOCIAL CARE,ABILITY HEALTHCARE LTD,21/09/2022,"1,179.92",6541-Domiciliary Care,THIRD PARTY PAYMENTS,PRIVATE CONTRACTOR,REVENUE
Walsall Council,http://opendatacommunities.org/id/metropolitan-district-council/walsall ,WC142-157,30.09.2022,ADULT SOCIAL CARE,ABILITY HEALTHCARE LTD,21/09/2022,"1,769.60",6541-Domiciliary Care,THIRD PARTY PAYMENTS,PRIVATE CONTRACTOR,REVENUE
Walsall Council,http://opendatacommunities.org/id/metropolitan-district-council/walsall ,WC142-158,30.09.2022,ADULT SOCIAL CARE,ABILITY HEALTHCARE LTD,21/09/2022,813.7,6541-Domiciliary Care,THIRD PARTY PAYMENTS,PRIVATE CONTRACTOR,REVENUE
Walsall Council,http://opendatacommunities.org/id/metropolitan-district-council/walsall ,WC142-159,30.09.2022,ADULT SOCIAL CARE,ABILITY HEALTHCARE LTD,21/09/2022,"1,990.80",6541-Domiciliary Care,THIRD PARTY PAYMENTS,PRIVATE CONTRACTOR,REVENUE
Walsall Council,http://opendatacommunities.org/id/metropolitan-district-council/walsall ,WC142-160,30.09.2022,ADULT SOCIAL CARE,ABILITY HEALTHCARE LTD,21/09/2022,"1,453.60",6541-Domiciliary Care,THIRD PARTY PAYMENTS,PRIVATE CONTRACTOR,REVENUE
Walsall Council,http://opendatacommunities.org/id/metropolitan-district-council/walsall ,WC142-161,30.09.2022,ADULT SOCIAL CARE,ABILITY HEALTHCARE LTD,21/09/2022,"1,848.60",6541-Domiciliary Care,THIRD PARTY PAYMENTS,PRIVATE CONTRACTOR,REVENUE
Walsall Council,http://opendatacommunities.org/id/metropolitan-district-council/walsall ,WC142-162,30.09.2022,ADULT SOCIAL CARE,ABILITY HEALTHCARE LTD,21/09/2022,837.4,6541-Domiciliary Care,THIRD PARTY PAYMENTS,PRIVATE CONTRACTOR,REVENUE
Walsall Council,http://opendatacommunities.org/id/metropolitan-district-council/walsall ,WC142-163,30.09.2022,ADULT SOCIAL CARE,ABILITY HEALTHCARE LTD,21/09/2022,995.4,6541-Domiciliary Care,THIRD PARTY PAYMENTS,PRIVATE CONTRACTOR,REVENUE
Walsall Council,http://opendatacommunities.org/id/metropolitan-district-council/walsall ,WC142-164,30.09.2022,ADULT SOCIAL CARE,ABILITY HEALTHCARE LTD,21/09/2022,"1,279.80",6541-Domiciliary Care,THIRD PARTY PAYMENTS,PRIVATE CONTRACTOR,REVENUE
Walsall Council,http://opendatacommunities.org/id/metropolitan-district-council/walsall ,WC142-165,30.09.2022,ADULT SOCIAL CARE,ABILITY HEALTHCARE LTD,21/09/2022,711,6541-Domiciliary Care,THIRD PARTY PAYMENTS,PRIVATE CONTRACTOR,REVENUE
Walsall Council,http://opendatacommunities.org/id/metropolitan-district-council/walsall ,WC142-166,30.09.2022,ADULT SOCIAL CARE,ABILITY HEALTHCARE LTD,21/09/2022,"1,208.70",6541-Domiciliary Care,THIRD PARTY PAYMENTS,PRIVATE CONTRACTOR,REVENUE
Walsall Council,http://opendatacommunities.org/id/metropolitan-district-council/walsall ,WC142-167,30.09.2022,ADULT SOCIAL CARE,ABILITY HEALTHCARE LTD,21/09/2022,442.4,6541-Domiciliary Care,THIRD PARTY PAYMENTS,PRIVATE CONTRACTOR,REVENUE
Walsall Council,http://opendatacommunities.org/id/metropolitan-district-council/walsall ,WC142-168,30.09.2022,ADULT SOCIAL CARE,ABILITY HEALTHCARE LTD,21/09/2022,387.1,6541-Domiciliary Care,THIRD PARTY PAYMENTS,PRIVATE CONTRACTOR,REVENUE
Walsall Council,http://opendatacommunities.org/id/metropolitan-district-council/walsall ,WC142-169,30.09.2022,ADULT SOCIAL CARE,ABILITY HEALTHCARE LTD,21/09/2022,316,6541-Domiciliary Care,THIRD PARTY PAYMENTS,PRIVATE CONTRACTOR,REVENUE
Walsall Council,http://opendatacommunities.org/id/metropolitan-district-council/walsall ,WC142-170,30.09.2022,ADULT SOCIAL CARE,ABILITY HEALTHCARE LTD,21/09/2022,252.8,6541-Domiciliary Care,THIRD PARTY PAYMENTS,PRIVATE CONTRACTOR,REVENUE
Walsall Council,http://opendatacommunities.org/id/metropolitan-district-council/walsall ,WC142-171,30.09.2022,"ECONOMY, ENVIRONMENT & COMMUNITIES",ABLE INVESTIGATIONS & ENFORCEMENTS LTD,28/09/2022,910,6440-Professional Fees & Services,SUPPLIES & SERVICES,SERVICES,REVENUE
Walsall Council,http://opendatacommunities.org/id/metropolitan-district-council/walsall ,WC142-172,30.09.2022,ADULT SOCIAL CARE,ABSOLUTE HEALTHCARE SWAN HOUSE LTD,09/09/2022,"6,735.21",6541-Residential,THIRD PARTY PAYMENTS,PRIVATE CONTRACTOR,REVENUE
Walsall Council,http://opendatacommunities.org/id/metropolitan-district-council/walsall ,WC142-173,30.09.2022,ADULT SOCIAL CARE,ABSOLUTE HEALTHCARE SWAN HOUSE LTD,09/09/2022,"7,605.13",6541-Residential EMI,THIRD PARTY PAYMENTS,PRIVATE CONTRACTOR,REVENUE
Walsall Council,http://opendatacommunities.org/id/metropolitan-district-council/walsall ,WC142-174,30.09.2022,ADULT SOCIAL CARE,ABSOLUTE HEALTHCARE SWAN HOUSE LTD,09/09/2022,"7,605.13",6541-Residential EMI,THIRD PARTY PAYMENTS,PRIVATE CONTRACTOR,REVENUE
Walsall Council,http://opendatacommunities.org/id/metropolitan-district-council/walsall ,WC142-175,30.09.2022,ADULT SOCIAL CARE,ABSOLUTE HEALTHCARE SWAN HOUSE LTD,09/09/2022,"7,185.21",6541-Residential,THIRD PARTY PAYMENTS,PRIVATE CONTRACTOR,REVENUE
Walsall Council,http://opendatacommunities.org/id/metropolitan-district-council/walsall ,WC142-176,30.09.2022,ADULT SOCIAL CARE,ABSOLUTE HEALTHCARE SWAN HOUSE LTD,09/09/2022,"6,863.78",6541-Residential,THIRD PARTY PAYMENTS,PRIVATE CONTRACTOR,REVENUE
Walsall Council,http://opendatacommunities.org/id/metropolitan-district-council/walsall ,WC142-177,30.09.2022,ADULT SOCIAL CARE,ABSOLUTE HEALTHCARE SWAN HOUSE LTD,09/09/2022,"6,735.21",6541-Residential,THIRD PARTY PAYMENTS,PRIVATE CONTRACTOR,REVENUE
Walsall Council,http://opendatacommunities.org/id/metropolitan-district-council/walsall ,WC142-178,30.09.2022,ADULT SOCIAL CARE,ABSOLUTE HEALTHCARE SWAN HOUSE LTD,09/09/2022,"6,735.21",6541-Residential,THIRD PARTY PAYMENTS,PRIVATE CONTRACTOR,REVENUE
Walsall Council,http://opendatacommunities.org/id/metropolitan-district-council/walsall ,WC142-179,30.09.2022,ADULT SOCIAL CARE,ABSOLUTE HEALTHCARE SWAN HOUSE LTD,09/09/2022,"6,735.21",6541-Residential,THIRD PARTY PAYMENTS,PRIVATE CONTRACTOR,REVENUE
Walsall Council,http://opendatacommunities.org/id/metropolitan-district-council/walsall ,WC142-180,30.09.2022,ADULT SOCIAL CARE,ABSOLUTE HEALTHCARE SWAN HOUSE LTD,09/09/2022,"7,605.13",6541-Residential EMI,THIRD PARTY PAYMENTS,PRIVATE CONTRACTOR,REVENUE
Walsall Council,http://opendatacommunities.org/id/metropolitan-district-council/walsall ,WC142-181,30.09.2022,ADULT SOCIAL CARE,ABSOLUTE HEALTHCARE SWAN HOUSE LTD,09/09/2022,"7,902.97",6541-Residential EMI,THIRD PARTY PAYMENTS,PRIVATE CONTRACTOR,REVENUE
Walsall Council,http://opendatacommunities.org/id/metropolitan-district-council/walsall ,WC142-182,30.09.2022,ADULT SOCIAL CARE,ABSOLUTE HEALTHCARE SWAN HOUSE LTD,09/09/2022,"4,056.07",6541-Residential EMI,THIRD PARTY PAYMENTS,PRIVATE CONTRACTOR,REVENUE
Walsall Council,http://opendatacommunities.org/id/metropolitan-district-council/walsall ,WC142-183,30.09.2022,ADULT SOCIAL CARE,ABSOLUTE HEALTHCARE SWAN HOUSE LTD,09/09/2022,"4,478.58",6541-Residential EMI,THIRD PARTY PAYMENTS,PRIVATE CONTRACTOR,REVENUE
Walsall Council,http://opendatacommunities.org/id/metropolitan-district-council/walsall ,WC142-184,30.09.2022,ADULT SOCIAL CARE,ABSOLUTE HEALTHCARE SWAN HOUSE LTD,09/09/2022,"6,735.21",6541-Residential,THIRD PARTY PAYMENTS,PRIVATE CONTRACTOR,REVENUE
Walsall Council,http://opendatacommunities.org/id/metropolitan-district-council/walsall ,WC142-185,30.09.2022,ADULT SOCIAL CARE,ABSOLUTE HEALTHCARE SWAN HOUSE LTD,09/09/2022,"6,735.21",6541-Residential,THIRD PARTY PAYMENTS,PRIVATE CONTRACTOR,REVENUE
Walsall Council,http://opendatacommunities.org/id/metropolitan-district-council/walsall ,WC142-186,30.09.2022,ADULT SOCIAL CARE,ABSOLUTE HEALTHCARE SWAN HOUSE LTD,09/09/2022,"7,605.13",6541-Residential EMI,THIRD PARTY PAYMENTS,PRIVATE CONTRACTOR,REVENUE
Walsall Council,http://opendatacommunities.org/id/metropolitan-district-council/walsall ,WC142-187,30.09.2022,ADULT SOCIAL CARE,ABSOLUTE HEALTHCARE SWAN HOUSE LTD,09/09/2022,"8,337.99",6541-Residential EMI,THIRD PARTY PAYMENTS,PRIVATE CONTRACTOR,REVENUE
Walsall Council,http://opendatacommunities.org/id/metropolitan-district-council/walsall ,WC142-188,30.09.2022,ADULT SOCIAL CARE,ABSOLUTE HEALTHCARE SWAN HOUSE LTD,09/09/2022,"6,863.78",6541-Residential,THIRD PARTY PAYMENTS,PRIVATE CONTRACTOR,REVENUE
Walsall Council,http://opendatacommunities.org/id/metropolitan-district-council/walsall ,WC142-189,30.09.2022,ADULT SOCIAL CARE,ABSOLUTE HEALTHCARE SWAN HOUSE LTD,09/09/2022,"7,605.13",6541-Residential EMI,THIRD PARTY PAYMENTS,PRIVATE CONTRACTOR,REVENUE
Walsall Council,http://opendatacommunities.org/id/metropolitan-district-council/walsall ,WC142-190,30.09.2022,ADULT SOCIAL CARE,ABSOLUTE HEALTHCARE SWAN HOUSE LTD,26/09/2022,"2,095.40",6541-Residential,THIRD PARTY PAYMENTS,PRIVATE CONTRACTOR,REVENUE
Walsall Council,http://opendatacommunities.org/id/metropolitan-district-council/walsall ,WC142-191,30.09.2022,ADULT SOCIAL CARE,ABSOLUTE HEALTHCARE SWAN HOUSE LTD,26/09/2022,"2,366.04",6541-Residential EMI,THIRD PARTY PAYMENTS,PRIVATE CONTRACTOR,REVENUE
Walsall Council,http://opendatacommunities.org/id/metropolitan-district-council/walsall ,WC142-192,30.09.2022,ADULT SOCIAL CARE,ABSOLUTE HEALTHCARE SWAN HOUSE LTD,26/09/2022,"2,235.40",6541-Residential,THIRD PARTY PAYMENTS,PRIVATE CONTRACTOR,REVENUE
Walsall Council,http://opendatacommunities.org/id/metropolitan-district-council/walsall ,WC142-193,30.09.2022,ADULT SOCIAL CARE,ABSOLUTE HEALTHCARE SWAN HOUSE LTD,26/09/2022,"2,135.40",6541-Residential,THIRD PARTY PAYMENTS,PRIVATE CONTRACTOR,REVENUE
Walsall Council,http://opendatacommunities.org/id/metropolitan-district-council/walsall ,WC142-194,30.09.2022,ADULT SOCIAL CARE,ABSOLUTE HEALTHCARE SWAN HOUSE LTD,26/09/2022,"2,095.40",6541-Residential,THIRD PARTY PAYMENTS,PRIVATE CONTRACTOR,REVENUE
Walsall Council,http://opendatacommunities.org/id/metropolitan-district-council/walsall ,WC142-195,30.09.2022,ADULT SOCIAL CARE,ABSOLUTE HEALTHCARE SWAN HOUSE LTD,26/09/2022,"2,095.40",6541-Residential,THIRD PARTY PAYMENTS,PRIVATE CONTRACTOR,REVENUE
Walsall Council,http://opendatacommunities.org/id/metropolitan-district-council/walsall ,WC142-196,30.09.2022,ADULT SOCIAL CARE,ABSOLUTE HEALTHCARE SWAN HOUSE LTD,26/09/2022,"2,366.04",6541-Residential EMI,THIRD PARTY PAYMENTS,PRIVATE CONTRACTOR,REVENUE
Walsall Council,http://opendatacommunities.org/id/metropolitan-district-council/walsall ,WC142-197,30.09.2022,ADULT SOCIAL CARE,ABSOLUTE HEALTHCARE SWAN HOUSE LTD,26/09/2022,"1,185.45",6541-Residential EMI,THIRD PARTY PAYMENTS,PRIVATE CONTRACTOR,REVENUE
Walsall Council,http://opendatacommunities.org/id/metropolitan-district-council/walsall ,WC142-198,30.09.2022,ADULT SOCIAL CARE,ABSOLUTE HEALTHCARE SWAN HOUSE LTD,26/09/2022,"2,095.40",6541-Residential,THIRD PARTY PAYMENTS,PRIVATE CONTRACTOR,REVENUE
Walsall Council,http://opendatacommunities.org/id/metropolitan-district-council/walsall ,WC142-199,30.09.2022,ADULT SOCIAL CARE,ABSOLUTE HEALTHCARE SWAN HOUSE LTD,26/09/2022,"2,366.04",6541-Residential EMI,THIRD PARTY PAYMENTS,PRIVATE CONTRACTOR,REVENUE
Walsall Council,http://opendatacommunities.org/id/metropolitan-district-council/walsall ,WC142-200,30.09.2022,ADULT SOCIAL CARE,ABSOLUTE HEALTHCARE SWAN HOUSE LTD,26/09/2022,"2,095.40",6541-Residential,THIRD PARTY PAYMENTS,PRIVATE CONTRACTOR,REVENUE
Walsall Council,http://opendatacommunities.org/id/metropolitan-district-council/walsall ,WC142-201,30.09.2022,ADULT SOCIAL CARE,ABSOLUTE HEALTHCARE SWAN HOUSE LTD,26/09/2022,"2,095.40",6541-Residential,THIRD PARTY PAYMENTS,PRIVATE CONTRACTOR,REVENUE
Walsall Council,http://opendatacommunities.org/id/metropolitan-district-council/walsall ,WC142-202,30.09.2022,ADULT SOCIAL CARE,ABSOLUTE HEALTHCARE SWAN HOUSE LTD,26/09/2022,"1,500.00",6554-Professional Services-Priv Contractor & Other Agencies,THIRD PARTY PAYMENTS,PRIVATE CONTRACTOR,REVENUE
Walsall Council,http://opendatacommunities.org/id/metropolitan-district-council/walsall ,WC142-203,30.09.2022,ADULT SOCIAL CARE,ABSOLUTE HEALTHCARE SWAN HOUSE LTD,26/09/2022,"2,366.04",6541-Residential EMI,THIRD PARTY PAYMENTS,PRIVATE CONTRACTOR,REVENUE
Walsall Council,http://opendatacommunities.org/id/metropolitan-district-council/walsall ,WC142-204,30.09.2022,ADULT SOCIAL CARE,ABSOLUTE HEALTHCARE SWAN HOUSE LTD,26/09/2022,"2,594.04",6541-Residential EMI,THIRD PARTY PAYMENTS,PRIVATE CONTRACTOR,REVENUE
Walsall Council,http://opendatacommunities.org/id/metropolitan-district-council/walsall ,WC142-205,30.09.2022,ADULT SOCIAL CARE,ABSOLUTE HEALTHCARE SWAN HOUSE LTD,26/09/2022,"2,135.40",6541-Residential,THIRD PARTY PAYMENTS,PRIVATE CONTRACTOR,REVENUE
Walsall Council,http://opendatacommunities.org/id/metropolitan-district-council/walsall ,WC142-206,30.09.2022,ADULT SOCIAL CARE,ABSOLUTE HEALTHCARE SWAN HOUSE LTD,26/09/2022,"2,366.04",6541-Residential EMI,THIRD PARTY PAYMENTS,PRIVATE CONTRACTOR,REVENUE
Walsall Council,http://opendatacommunities.org/id/metropolitan-district-council/walsall ,WC142-207,30.09.2022,CHILDRENS,ABU BAKR NURSERY,09/09/2022,"9,442.13",1184-Other-Grants to Other Orgs,SUPPLIES & SERVICES,GRANTS (EXP) & SUBSCRIPTIONS,REVENUE
Walsall Council,http://opendatacommunities.org/id/metropolitan-district-council/walsall ,WC142-208,30.09.2022,CHILDRENS,ABU BAKR NURSERY,09/09/2022,"39,463.20",1184-Other-Grants to Other Orgs,SUPPLIES & SERVICES,GRANTS (EXP) & SUBSCRIPTIONS,REVENUE
Walsall Council,http://opendatacommunities.org/id/metropolitan-district-council/walsall ,WC142-209,30.09.2022,CHILDRENS,ACCALIA CARE SERVICES LTD,05/09/2022,"20,960.00",6223-External Residential Care-Oth Agency Provision,THIRD PARTY PAYMENTS,PRIVATE CONTRACTOR,REVENUE
Walsall Council,http://opendatacommunities.org/id/metropolitan-district-council/walsall ,WC142-210,30.09.2022,ADULT SOCIAL CARE,ACCESS UK LTD ,07/09/2022,"11,391.50",6551-Computer Equipment,SUPPLIES & SERVICES,COMMUNICATIONS & COMPUTING,REVENUE
Walsall Council,http://opendatacommunities.org/id/metropolitan-district-council/walsall ,WC142-211,30.09.2022,ADULT SOCIAL CARE,ACCESS UK LTD ,05/09/2022,"18,315.00",6551-Professional Fees & Services,SUPPLIES & SERVICES,SERVICES,REVENUE
Walsall Council,http://opendatacommunities.org/id/metropolitan-district-council/walsall ,WC142-212,30.09.2022,ADULT SOCIAL CARE,ACCOMPLISH GROUP LTD,26/09/2022,"7,912.44",6541-Residential,THIRD PARTY PAYMENTS,PRIVATE CONTRACTOR,REVENUE
Walsall Council,http://opendatacommunities.org/id/metropolitan-district-council/walsall ,WC142-213,30.09.2022,ADULT SOCIAL CARE,ACCORD HOUSING ASSOCIATION LIMITED - HOBS MEADOW,26/09/2022,"4,776.84",6541-Residential,THIRD PARTY PAYMENTS,PRIVATE CONTRACTOR,REVENUE
Walsall Council,http://opendatacommunities.org/id/metropolitan-district-council/walsall ,WC142-214,30.09.2022,ADULT SOCIAL CARE,ACCORD HOUSING ASSOCIATION LIMITED - HOBS MEADOW,26/09/2022,"4,776.84",6541-Residential,THIRD PARTY PAYMENTS,PRIVATE CONTRACTOR,REVENUE
Walsall Council,http://opendatacommunities.org/id/metropolitan-district-council/walsall ,WC142-215,30.09.2022,ADULT SOCIAL CARE,ACCORD HOUSING ASSOCIATION LIMITED - HOBS MEADOW,26/09/2022,"4,776.84",6541-Residential,THIRD PARTY PAYMENTS,PRIVATE CONTRACTOR,REVENUE
Walsall Council,http://opendatacommunities.org/id/metropolitan-district-council/walsall ,WC142-216,30.09.2022,ADULT SOCIAL CARE,ACCORD HOUSING ASSOCIATION LIMITED - HOBS MEADOW,26/09/2022,"4,776.84",6541-Residential,THIRD PARTY PAYMENTS,PRIVATE CONTRACTOR,REVENUE
Walsall Council,http://opendatacommunities.org/id/metropolitan-district-council/walsall ,WC142-217,30.09.2022,CHILDRENS,ACE COACHING LIMITED,15/09/2022,"1,448.00",6213-Professional Fees & Services,SUPPLIES & SERVICES,SERVICES,REVENUE
Walsall Council,http://opendatacommunities.org/id/metropolitan-district-council/walsall ,WC142-218,30.09.2022,ADULT SOCIAL CARE,ACEPAY LTD (COTTAGE NUR HOME),26/09/2022,"2,456.24",6541-Nursing,THIRD PARTY PAYMENTS,PRIVATE CONTRACTOR,REVENUE
Walsall Council,http://opendatacommunities.org/id/metropolitan-district-council/walsall ,WC142-219,30.09.2022,ADULT SOCIAL CARE,ACEPAY LTD (COTTAGE NUR HOME),26/09/2022,"2,456.24",6541-Nursing,THIRD PARTY PAYMENTS,PRIVATE CONTRACTOR,REVENUE
Walsall Council,http://opendatacommunities.org/id/metropolitan-district-council/walsall ,WC142-220,30.09.2022,ADULT SOCIAL CARE,ACEPAY LTD (COTTAGE NUR HOME),26/09/2022,"2,456.24",6541-Nursing,THIRD PARTY PAYMENTS,PRIVATE CONTRACTOR,REVENUE
Walsall Council,http://opendatacommunities.org/id/metropolitan-district-council/walsall ,WC142-221,30.09.2022,ADULT SOCIAL CARE,ACEPAY LTD (COTTAGE NUR HOME),26/09/2022,"2,456.24",6541-Nursing,THIRD PARTY PAYMENTS,PRIVATE CONTRACTOR,REVENUE
Walsall Council,http://opendatacommunities.org/id/metropolitan-district-council/walsall ,WC142-222,30.09.2022,ADULT SOCIAL CARE,ACEPAY LTD (COTTAGE NUR HOME),26/09/2022,"2,456.24",6541-Nursing,THIRD PARTY PAYMENTS,PRIVATE CONTRACTOR,REVENUE
Walsall Council,http://opendatacommunities.org/id/metropolitan-district-council/walsall ,WC142-223,30.09.2022,ADULT SOCIAL CARE,ACEPAY LTD (COTTAGE NUR HOME),26/09/2022,"2,656.24",6541-Nursing,THIRD PARTY PAYMENTS,PRIVATE CONTRACTOR,REVENUE
Walsall Council,http://opendatacommunities.org/id/metropolitan-district-council/walsall ,WC142-224,30.09.2022,ADULT SOCIAL CARE,ACEPAY LTD (COTTAGE NUR HOME),26/09/2022,"2,366.04",6541-Residential EMI,THIRD PARTY PAYMENTS,PRIVATE CONTRACTOR,REVENUE
Walsall Council,http://opendatacommunities.org/id/metropolitan-district-council/walsall ,WC142-225,30.09.2022,ADULT SOCIAL CARE,ACEPAY LTD (COTTAGE NUR HOME),26/09/2022,"2,366.04",6541-Residential EMI,THIRD PARTY PAYMENTS,PRIVATE CONTRACTOR,REVENUE
Walsall Council,http://opendatacommunities.org/id/metropolitan-district-council/walsall ,WC142-226,30.09.2022,ADULT SOCIAL CARE,ACEPAY LTD (COTTAGE NUR HOME),26/09/2022,"2,366.04",6541-Residential EMI,THIRD PARTY PAYMENTS,PRIVATE CONTRACTOR,REVENUE
Walsall Council,http://opendatacommunities.org/id/metropolitan-district-council/walsall ,WC142-227,30.09.2022,ADULT SOCIAL CARE,ACEPAY LTD (COTTAGE NUR HOME),26/09/2022,"2,763.80",6541-Nursing EMI,THIRD PARTY PAYMENTS,PRIVATE CONTRACTOR,REVENUE
Walsall Council,http://opendatacommunities.org/id/metropolitan-district-council/walsall ,WC142-228,30.09.2022,ADULT SOCIAL CARE,ACEPAY LTD (COTTAGE NUR HOME),26/09/2022,"2,456.24",6541-Nursing,THIRD PARTY PAYMENTS,PRIVATE CONTRACTOR,REVENUE
Walsall Council,http://opendatacommunities.org/id/metropolitan-district-council/walsall ,WC142-229,30.09.2022,ADULT SOCIAL CARE,ACEPAY LTD (COTTAGE NUR HOME),26/09/2022,"2,456.24",6541-Nursing,THIRD PARTY PAYMENTS,PRIVATE CONTRACTOR,REVENUE
Walsall Council,http://opendatacommunities.org/id/metropolitan-district-council/walsall ,WC142-230,30.09.2022,ADULT SOCIAL CARE,ACEPAY LTD (COTTAGE NUR HOME),26/09/2022,"2,095.40",6541-Residential,THIRD PARTY PAYMENTS,PRIVATE CONTRACTOR,REVENUE
Walsall Council,http://opendatacommunities.org/id/metropolitan-district-council/walsall ,WC142-231,30.09.2022,ADULT SOCIAL CARE,ACEPAY LTD (COTTAGE NUR HOME),26/09/2022,"2,456.24",6541-Nursing,THIRD PARTY PAYMENTS,PRIVATE CONTRACTOR,REVENUE
Walsall Council,http://opendatacommunities.org/id/metropolitan-district-council/walsall ,WC142-232,30.09.2022,ADULT SOCIAL CARE,ACEPAY LTD (COTTAGE NUR HOME),26/09/2022,"2,456.24",6541-Nursing,THIRD PARTY PAYMENTS,PRIVATE CONTRACTOR,REVENUE
Walsall Council,http://opendatacommunities.org/id/metropolitan-district-council/walsall ,WC142-233,30.09.2022,ADULT SOCIAL CARE,ACEPAY LTD (COTTAGE NUR HOME),26/09/2022,"2,763.80",6541-Nursing EMI,THIRD PARTY PAYMENTS,PRIVATE CONTRACTOR,REVENUE
Walsall Council,http://opendatacommunities.org/id/metropolitan-district-council/walsall ,WC142-234,30.09.2022,ADULT SOCIAL CARE,ACEPAY LTD (COTTAGE NUR HOME),26/09/2022,"2,763.80",6541-Nursing EMI,THIRD PARTY PAYMENTS,PRIVATE CONTRACTOR,REVENUE
Walsall Council,http://opendatacommunities.org/id/metropolitan-district-council/walsall ,WC142-235,30.09.2022,ADULT SOCIAL CARE,ACEPAY LTD (COTTAGE NUR HOME),26/09/2022,"2,456.24",6541-Nursing,THIRD PARTY PAYMENTS,PRIVATE CONTRACTOR,REVENUE
Walsall Council,http://opendatacommunities.org/id/metropolitan-district-council/walsall ,WC142-236,30.09.2022,ADULT SOCIAL CARE,ACHIEVE TOGETHER LIMITED,26/09/2022,"5,506.08",6541-Residential,THIRD PARTY PAYMENTS,PRIVATE CONTRACTOR,REVENUE
Walsall Council,http://opendatacommunities.org/id/metropolitan-district-council/walsall ,WC142-237,30.09.2022,ADULT SOCIAL CARE,ACHIEVE TOGETHER LIMITED,26/09/2022,"5,740.84",6541-Residential,THIRD PARTY PAYMENTS,PRIVATE CONTRACTOR,REVENUE
Walsall Council,http://opendatacommunities.org/id/metropolitan-district-council/walsall ,WC142-238,30.09.2022,ADULT SOCIAL CARE,ACHIEVE TOGETHER LIMITED,26/09/2022,"7,361.20",6541-Residential,THIRD PARTY PAYMENTS,PRIVATE CONTRACTOR,REVENUE
Walsall Council,http://opendatacommunities.org/id/metropolitan-district-council/walsall ,WC142-239,30.09.2022,ADULT SOCIAL CARE,ACHIEVE TOGETHER LIMITED,26/09/2022,"3,852.80",6541-Residential,THIRD PARTY PAYMENTS,PRIVATE CONTRACTOR,REVENUE
Walsall Council,http://opendatacommunities.org/id/metropolitan-district-council/walsall ,WC142-240,30.09.2022,ADULT SOCIAL CARE,ACHIEVE TOGETHER LIMITED,26/09/2022,"4,920.72",6541-Residential,THIRD PARTY PAYMENTS,PRIVATE CONTRACTOR,REVENUE
Walsall Council,http://opendatacommunities.org/id/metropolitan-district-council/walsall ,WC142-241,30.09.2022,CHILDRENS,ACORN CARE & EDUCATION LTD (SALES),05/09/2022,"20,079.69",1220-Professional Fees & Services,SUPPLIES & SERVICES,SERVICES,REVENUE
Walsall Council,http://opendatacommunities.org/id/metropolitan-district-council/walsall ,WC142-242,30.09.2022,CHILDRENS,ACORN CARE & EDUCATION LTD (SALES),13/09/2022,"-1,696.13",1220-Professional Fees & Services,SUPPLIES & SERVICES,SERVICES,REVENUE
Walsall Council,http://opendatacommunities.org/id/metropolitan-district-council/walsall ,WC142-243,30.09.2022,CHILDRENS,ACORN CARE & EDUCATION LTD (SALES),13/09/2022,"18,534.25",1220-Professional Fees & Services,SUPPLIES & SERVICES,SERVICES,REVENUE
Walsall Council,http://opendatacommunities.org/id/metropolitan-district-council/walsall ,WC142-244,30.09.2022,CHILDRENS,ACORN CARE & EDUCATION LTD (SALES),13/09/2022,"17,998.44",1220-Top Up Funding -Grants to Schools,SUPPLIES & SERVICES,GRANTS (EXP) & SUBSCRIPTIONS,REVENUE
Walsall Council,http://opendatacommunities.org/id/metropolitan-district-council/walsall ,WC142-245,30.09.2022,CHILDRENS,ACORN CARE & EDUCATION LTD (SALES),13/09/2022,"26,786.52",1220-Top Up Funding -Grants to Schools,SUPPLIES & SERVICES,GRANTS (EXP) & SUBSCRIPTIONS,REVENUE
Walsall Council,http://opendatacommunities.org/id/metropolitan-district-council/walsall ,WC142-246,30.09.2022,CHILDRENS,ACORN CARE & EDUCATION LTD (SALES),13/09/2022,"17,852.11",1220-Top Up Funding -Grants to Schools,SUPPLIES & SERVICES,GRANTS (EXP) & SUBSCRIPTIONS,REVENUE
Walsall Council,http://opendatacommunities.org/id/metropolitan-district-council/walsall ,WC142-247,30.09.2022,CHILDRENS,ACORN CARE & EDUCATION LTD (SALES),13/09/2022,"17,852.11",1220-Top Up Funding -Grants to Schools,SUPPLIES & SERVICES,GRANTS (EXP) & SUBSCRIPTIONS,REVENUE
Walsall Council,http://opendatacommunities.org/id/metropolitan-district-council/walsall ,WC142-248,30.09.2022,CHILDRENS,ACORN CARE & EDUCATION LTD (SALES),13/09/2022,"6,333.34",1220-Professional Fees & Services,SUPPLIES & SERVICES,SERVICES,REVENUE
Walsall Council,http://opendatacommunities.org/id/metropolitan-district-council/walsall ,WC142-249,30.09.2022,CHILDRENS,ACORN CARE & EDUCATION LTD (SALES),13/09/2022,"16,166.66",1220-Professional Fees & Services,SUPPLIES & SERVICES,SERVICES,REVENUE
Walsall Council,http://opendatacommunities.org/id/metropolitan-district-council/walsall ,WC142-250,30.09.2022,CHILDRENS,ACORN CARE & EDUCATION LTD (SALES),13/09/2022,"9,411.34",1220-Professional Fees & Services,SUPPLIES & SERVICES,SERVICES,REVENUE
Walsall Council,http://opendatacommunities.org/id/metropolitan-district-council/walsall ,WC142-251,30.09.2022,CHILDRENS,ACORN CARE & EDUCATION LTD (SALES),13/09/2022,"17,302.00",1220-Professional Fees & Services,SUPPLIES & SERVICES,SERVICES,REVENUE
Walsall Council,http://opendatacommunities.org/id/metropolitan-district-council/walsall ,WC142-252,30.09.2022,CHILDRENS,ACORN CARE & EDUCATION LTD (SALES),13/09/2022,"22,256.66",1220-Professional Fees & Services,SUPPLIES & SERVICES,SERVICES,REVENUE
Walsall Council,http://opendatacommunities.org/id/metropolitan-district-council/walsall ,WC142-253,30.09.2022,CHILDRENS,ACORN CARE & EDUCATION LTD (SALES),13/09/2022,"26,713.34",1220-Top Up Funding -Grants to Schools,SUPPLIES & SERVICES,GRANTS (EXP) & SUBSCRIPTIONS,REVENUE
Walsall Council,http://opendatacommunities.org/id/metropolitan-district-council/walsall ,WC142-254,30.09.2022,CHILDRENS,ACORN CARE & EDUCATION LTD (SALES),13/09/2022,"17,852.11",1220-Top Up Funding -Grants to Schools,SUPPLIES & SERVICES,GRANTS (EXP) & SUBSCRIPTIONS,REVENUE
Walsall Council,http://opendatacommunities.org/id/metropolitan-district-council/walsall ,WC142-255,30.09.2022,CHILDRENS,ACORN CARE & EDUCATION LTD (SALES),13/09/2022,"17,559.45",1220-Top Up Funding -Grants to Schools,SUPPLIES & SERVICES,GRANTS (EXP) & SUBSCRIPTIONS,REVENUE
Walsall Council,http://opendatacommunities.org/id/metropolitan-district-council/walsall ,WC142-256,30.09.2022,CHILDRENS,ACORN CARE & EDUCATION LTD (SALES),13/09/2022,"17,998.44",1220-Top Up Funding -Grants to Schools,SUPPLIES & SERVICES,GRANTS (EXP) & SUBSCRIPTIONS,REVENUE
Walsall Council,http://opendatacommunities.org/id/metropolitan-district-council/walsall ,WC142-257,30.09.2022,CHILDRENS,ACORN CARE & EDUCATION LTD (SALES),13/09/2022,"17,852.11",1220-Top Up Funding -Grants to Schools,SUPPLIES & SERVICES,GRANTS (EXP) & SUBSCRIPTIONS,REVENUE
Walsall Council,http://opendatacommunities.org/id/metropolitan-district-council/walsall ,WC142-258,30.09.2022,CHILDRENS,ACORN CARE & EDUCATION LTD (SALES),13/09/2022,"19,761.66",1220-Top Up Funding -Grants to Schools,SUPPLIES & SERVICES,GRANTS (EXP) & SUBSCRIPTIONS,REVENUE
Walsall Council,http://opendatacommunities.org/id/metropolitan-district-council/walsall ,WC142-259,30.09.2022,CHILDRENS,ACORN CARE & EDUCATION LTD (SALES),13/09/2022,"19,815.81",1220-Top Up Funding -Grants to Schools,SUPPLIES & SERVICES,GRANTS (EXP) & SUBSCRIPTIONS,REVENUE
Walsall Council,http://opendatacommunities.org/id/metropolitan-district-council/walsall ,WC142-260,30.09.2022,CHILDRENS,ACORN CARE & EDUCATION LTD (SALES),13/09/2022,"22,317.64",1220-Top Up Funding -Grants to Schools,SUPPLIES & SERVICES,GRANTS (EXP) & SUBSCRIPTIONS,REVENUE
Walsall Council,http://opendatacommunities.org/id/metropolitan-district-council/walsall ,WC142-261,30.09.2022,CHILDRENS,ACORN CARE & EDUCATION LTD (SALES),13/09/2022,"19,815.81",1220-Top Up Funding -Grants to Schools,SUPPLIES & SERVICES,GRANTS (EXP) & SUBSCRIPTIONS,REVENUE
Walsall Council,http://opendatacommunities.org/id/metropolitan-district-council/walsall ,WC142-262,30.09.2022,CHILDRENS,ACORN CARE & EDUCATION LTD (SALES),13/09/2022,"-12,145.29",1220-Top Up Funding -Grants to Schools,SUPPLIES & SERVICES,GRANTS (EXP) & SUBSCRIPTIONS,REVENUE
Walsall Council,http://opendatacommunities.org/id/metropolitan-district-council/walsall ,WC142-263,30.09.2022,CHILDRENS,ACORN CARE & EDUCATION LTD (SALES),13/09/2022,"12,145.29",1220-Top Up Funding -Grants to Schools,SUPPLIES & SERVICES,GRANTS (EXP) & SUBSCRIPTIONS,REVENUE
Walsall Council,http://opendatacommunities.org/id/metropolitan-district-council/walsall ,WC142-264,30.09.2022,CHILDRENS,ACORN CARE & EDUCATION LTD (SALES),13/09/2022,"-19,400.73",1220-Top Up Funding -Grants to Schools,SUPPLIES & SERVICES,GRANTS (EXP) & SUBSCRIPTIONS,REVENUE
Walsall Council,http://opendatacommunities.org/id/metropolitan-district-council/walsall ,WC142-265,30.09.2022,CHILDRENS,ACORN CARE & EDUCATION LTD (SALES),13/09/2022,"-17,470.68",1220-Top Up Funding -Grants to Schools,SUPPLIES & SERVICES,GRANTS (EXP) & SUBSCRIPTIONS,REVENUE
Walsall Council,http://opendatacommunities.org/id/metropolitan-district-council/walsall ,WC142-266,30.09.2022,CHILDRENS,ACORN CARE & EDUCATION LTD (SALES),13/09/2022,"-17,302.00",1220-Top Up Funding -Grants to Schools,SUPPLIES & SERVICES,GRANTS (EXP) & SUBSCRIPTIONS,REVENUE
Walsall Council,http://opendatacommunities.org/id/metropolitan-district-council/walsall ,WC142-267,30.09.2022,CHILDRENS,ACORN FOSTERING SERVICES LTD,05/09/2022,"3,300.15",6223-Independent Foster Care-Oth Agency Provision,THIRD PARTY PAYMENTS,PRIVATE CONTRACTOR,REVENUE
Walsall Council,http://opendatacommunities.org/id/metropolitan-district-council/walsall ,WC142-268,30.09.2022,CHILDRENS,ACORNS CHILDRENS HOSPICE TRUST,06/09/2022,"1,700.00",6220-Professional Fees & Services,SUPPLIES & SERVICES,SERVICES,REVENUE
Walsall Council,http://opendatacommunities.org/id/metropolitan-district-council/walsall ,WC142-269,30.09.2022,CHILDRENS,ACORNS CHILDRENS HOSPICE TRUST,06/09/2022,"1,700.00",6220-Professional Fees & Services,SUPPLIES & SERVICES,SERVICES,REVENUE
Walsall Council,http://opendatacommunities.org/id/metropolitan-district-council/walsall ,WC142-270,30.09.2022,CHILDRENS,ACTI FIT (MIDLANDS) LIMITED,15/09/2022,"5,040.60",6213-Professional Fees & Services,SUPPLIES & SERVICES,SERVICES,REVENUE
Walsall Council,http://opendatacommunities.org/id/metropolitan-district-council/walsall ,WC142-271,30.09.2022,CHILDRENS,ACTIVE CARE SOLUTIONS LTD,05/09/2022,"3,445.08",6223-Independent Foster Care-Oth Agency Provision,THIRD PARTY PAYMENTS,PRIVATE CONTRACTOR,REVENUE
Walsall Council,http://opendatacommunities.org/id/metropolitan-district-council/walsall ,WC142-272,30.09.2022,"ECONOMY, ENVIRONMENT & COMMUNITIES",ACTIVE GYM LIMITED,05/09/2022,"12,587.50",6413-Repair & Maintenance of Furniture & Equipment,SUPPLIES & SERVICES,EQUIPMENT FURNITURE & MATERIALS,REVENUE
Walsall Council,http://opendatacommunities.org/id/metropolitan-district-council/walsall ,WC142-273,30.09.2022,ADULT SOCIAL CARE,REDACTED,07/09/2022,894.25,6541-Direct Payment,THIRD PARTY PAYMENTS,PRIVATE CONTRACTOR,REVENUE
Walsall Council,http://opendatacommunities.org/id/metropolitan-district-council/walsall ,WC142-274,30.09.2022,CHILDRENS,REDACTED,21/09/2022,304.16,6223-Residents Orders,TRANSFER PAYMENTS,CHILDREN SOCIAL SERVICES CLIENT,REVENUE
Walsall Council,http://opendatacommunities.org/id/metropolitan-district-council/walsall ,WC142-275,30.09.2022,ADULT SOCIAL CARE,REDACTED,07/09/2022,"2,604.00",6541-Direct Payment,THIRD PARTY PAYMENTS,PRIVATE CONTRACTOR,REVENUE
Walsall Council,http://opendatacommunities.org/id/metropolitan-district-council/walsall ,WC142-276,30.09.2022,ADULT SOCIAL CARE,ADVANCE HEALTH CARE (UK) LTD,21/09/2022,"2,265.04",6541-Domiciliary Care,THIRD PARTY PAYMENTS,PRIVATE CONTRACTOR,REVENUE
Walsall Council,http://opendatacommunities.org/id/metropolitan-district-council/walsall ,WC142-277,30.09.2022,ADULT SOCIAL CARE,ADVANCE HEALTH CARE (UK) LTD,21/09/2022,"2,881.24",6541-Domiciliary Care,THIRD PARTY PAYMENTS,PRIVATE CONTRACTOR,REVENUE
Walsall Council,http://opendatacommunities.org/id/metropolitan-district-council/walsall ,WC142-278,30.09.2022,ADULT SOCIAL CARE,ADVANCE HEALTH CARE (UK) LTD,21/09/2022,"1,042.80",6541-Domiciliary Care,THIRD PARTY PAYMENTS,PRIVATE CONTRACTOR,REVENUE
Walsall Council,http://opendatacommunities.org/id/metropolitan-district-council/walsall ,WC142-279,30.09.2022,ADULT SOCIAL CARE,ADVANCE HEALTH CARE (UK) LTD,21/09/2022,921.76,6541-Domiciliary Care,THIRD PARTY PAYMENTS,PRIVATE CONTRACTOR,REVENUE
Walsall Council,http://opendatacommunities.org/id/metropolitan-district-council/walsall ,WC142-280,30.09.2022,ADULT SOCIAL CARE,ADVANCE HEALTH CARE (UK) LTD,21/09/2022,"1,027.00",6541-Domiciliary Care,THIRD PARTY PAYMENTS,PRIVATE CONTRACTOR,REVENUE
Walsall Council,http://opendatacommunities.org/id/metropolitan-district-council/walsall ,WC142-281,30.09.2022,ADULT SOCIAL CARE,ADVANCE HEALTH CARE (UK) LTD,21/09/2022,774.48,6541-Domiciliary Care,THIRD PARTY PAYMENTS,PRIVATE CONTRACTOR,REVENUE
Walsall Council,http://opendatacommunities.org/id/metropolitan-district-council/walsall ,WC142-282,30.09.2022,ADULT SOCIAL CARE,ADVANCE HEALTH CARE (UK) LTD,21/09/2022,737.52,6541-Domiciliary Care,THIRD PARTY PAYMENTS,PRIVATE CONTRACTOR,REVENUE
Walsall Council,http://opendatacommunities.org/id/metropolitan-district-council/walsall ,WC142-283,30.09.2022,ADULT SOCIAL CARE,ADVANCE HEALTH CARE (UK) LTD,21/09/2022,"1,843.80",6541-Domiciliary Care,THIRD PARTY PAYMENTS,PRIVATE CONTRACTOR,REVENUE
Walsall Council,http://opendatacommunities.org/id/metropolitan-district-council/walsall ,WC142-284,30.09.2022,ADULT SOCIAL CARE,ADVANCE HEALTH CARE (UK) LTD,21/09/2022,"1,058.60",6541-Domiciliary Care,THIRD PARTY PAYMENTS,PRIVATE CONTRACTOR,REVENUE
Walsall Council,http://opendatacommunities.org/id/metropolitan-district-council/walsall ,WC142-285,30.09.2022,ADULT SOCIAL CARE,ADVANCE HEALTH CARE (UK) LTD,21/09/2022,479.36,6541-Domiciliary Care,THIRD PARTY PAYMENTS,PRIVATE CONTRACTOR,REVENUE
Walsall Council,http://opendatacommunities.org/id/metropolitan-district-council/walsall ,WC142-286,30.09.2022,ADULT SOCIAL CARE,ADVANCE HEALTH CARE (UK) LTD,21/09/2022,811.16,6541-Domiciliary Care,THIRD PARTY PAYMENTS,PRIVATE CONTRACTOR,REVENUE
Walsall Council,http://opendatacommunities.org/id/metropolitan-district-council/walsall ,WC142-287,30.09.2022,ADULT SOCIAL CARE,ADVANCE HEALTH CARE (UK) LTD,21/09/2022,690.12,6541-Domiciliary Care,THIRD PARTY PAYMENTS,PRIVATE CONTRACTOR,REVENUE
Walsall Council,http://opendatacommunities.org/id/metropolitan-district-council/walsall ,WC142-288,30.09.2022,ADULT SOCIAL CARE,ADVANCE HEALTH CARE (UK) LTD,21/09/2022,"1,990.80",6541-Domiciliary Care,THIRD PARTY PAYMENTS,PRIVATE CONTRACTOR,REVENUE
Walsall Council,http://opendatacommunities.org/id/metropolitan-district-council/walsall ,WC142-289,30.09.2022,ADULT SOCIAL CARE,ADVANCE HEALTH CARE (UK) LTD,12/09/2022,845.3,6541-Domiciliary Care,THIRD PARTY PAYMENTS,PRIVATE CONTRACTOR,REVENUE
Walsall Council,http://opendatacommunities.org/id/metropolitan-district-council/walsall ,WC142-290,30.09.2022,ADULT SOCIAL CARE,ADVANCE HEALTH CARE (UK) LTD,12/09/2022,531.98,6541-Domiciliary Care,THIRD PARTY PAYMENTS,PRIVATE CONTRACTOR,REVENUE
Walsall Council,http://opendatacommunities.org/id/metropolitan-district-council/walsall ,WC142-291,30.09.2022,ADULT SOCIAL CARE,ADVANCE HEALTH CARE (UK) LTD,12/09/2022,387.24,6541-Domiciliary Care,THIRD PARTY PAYMENTS,PRIVATE CONTRACTOR,REVENUE
Walsall Council,http://opendatacommunities.org/id/metropolitan-district-council/walsall ,WC142-292,30.09.2022,ADULT SOCIAL CARE,ADVANCE HEALTH CARE (UK) LTD,12/09/2022,387.1,6541-Domiciliary Care,THIRD PARTY PAYMENTS,PRIVATE CONTRACTOR,REVENUE
Walsall Council,http://opendatacommunities.org/id/metropolitan-district-council/walsall ,WC142-293,30.09.2022,ADULT SOCIAL CARE,ADVANCE HEALTH CARE (UK) LTD,12/09/2022,331.8,6541-Domiciliary Care,THIRD PARTY PAYMENTS,PRIVATE CONTRACTOR,REVENUE
Walsall Council,http://opendatacommunities.org/id/metropolitan-district-council/walsall ,WC142-294,30.09.2022,ADULT SOCIAL CARE,ADVANCE HEALTH CARE (UK) LTD,12/09/2022,497.7,6541-Domiciliary Care,THIRD PARTY PAYMENTS,PRIVATE CONTRACTOR,REVENUE
Walsall Council,http://opendatacommunities.org/id/metropolitan-district-council/walsall ,WC142-295,30.09.2022,ADULT SOCIAL CARE,ADVANCE HEALTH CARE (UK) LTD,12/09/2022,442.4,6541-Domiciliary Care,THIRD PARTY PAYMENTS,PRIVATE CONTRACTOR,REVENUE
Walsall Council,http://opendatacommunities.org/id/metropolitan-district-council/walsall ,WC142-296,30.09.2022,ADULT SOCIAL CARE,ADVANCE HEALTH CARE (UK) LTD,12/09/2022,497.7,6541-Domiciliary Care,THIRD PARTY PAYMENTS,PRIVATE CONTRACTOR,REVENUE
Walsall Council,http://opendatacommunities.org/id/metropolitan-district-council/walsall ,WC142-297,30.09.2022,ADULT SOCIAL CARE,ADVANCE HEALTH CARE (UK) LTD,12/09/2022,331.94,6541-Domiciliary Care,THIRD PARTY PAYMENTS,PRIVATE CONTRACTOR,REVENUE
Walsall Council,http://opendatacommunities.org/id/metropolitan-district-council/walsall ,WC142-298,30.09.2022,ADULT SOCIAL CARE,ADVANCE HEALTH CARE (UK) LTD,12/09/2022,576.7,6541-Domiciliary Care,THIRD PARTY PAYMENTS,PRIVATE CONTRACTOR,REVENUE
Walsall Council,http://opendatacommunities.org/id/metropolitan-district-council/walsall ,WC142-299,30.09.2022,ADULT SOCIAL CARE,ADVANCE HEALTH CARE (UK) LTD,12/09/2022,497.7,6541-Domiciliary Care,THIRD PARTY PAYMENTS,PRIVATE CONTRACTOR,REVENUE
Walsall Council,http://opendatacommunities.org/id/metropolitan-district-council/walsall ,WC142-300,30.09.2022,ADULT SOCIAL CARE,ADVANCE HEALTH CARE (UK) LTD,12/09/2022,368.76,6541-Domiciliary Care,THIRD PARTY PAYMENTS,PRIVATE CONTRACTOR,REVENUE
Walsall Council,http://opendatacommunities.org/id/metropolitan-district-council/walsall ,WC142-301,30.09.2022,ADULT SOCIAL CARE,ADVANCE HEALTH CARE (UK) LTD,12/09/2022,497.7,6541-Domiciliary Care,THIRD PARTY PAYMENTS,PRIVATE CONTRACTOR,REVENUE
Walsall Council,http://opendatacommunities.org/id/metropolitan-district-council/walsall ,WC142-302,30.09.2022,ADULT SOCIAL CARE,ADVANCE HEALTH CARE (UK) LTD,12/09/2022,497.7,6541-Domiciliary Care,THIRD PARTY PAYMENTS,PRIVATE CONTRACTOR,REVENUE
Walsall Council,http://opendatacommunities.org/id/metropolitan-district-council/walsall ,WC142-303,30.09.2022,ADULT SOCIAL CARE,ADVANCE HEALTH CARE (UK) LTD,12/09/2022,553,6541-Domiciliary Care,THIRD PARTY PAYMENTS,PRIVATE CONTRACTOR,REVENUE
Walsall Council,http://opendatacommunities.org/id/metropolitan-district-council/walsall ,WC142-304,30.09.2022,ADULT SOCIAL CARE,ADVANCE HEALTH CARE (UK) LTD,12/09/2022,387.1,6541-Domiciliary Care,THIRD PARTY PAYMENTS,PRIVATE CONTRACTOR,REVENUE
Walsall Council,http://opendatacommunities.org/id/metropolitan-district-council/walsall ,WC142-305,30.09.2022,ADULT SOCIAL CARE,ADVANCE HEALTH CARE (UK) LTD,12/09/2022,331.8,6541-Domiciliary Care,THIRD PARTY PAYMENTS,PRIVATE CONTRACTOR,REVENUE
Walsall Council,http://opendatacommunities.org/id/metropolitan-district-council/walsall ,WC142-306,30.09.2022,ADULT SOCIAL CARE,ADVANCE HEALTH CARE (UK) LTD,12/09/2022,331.94,6541-Domiciliary Care,THIRD PARTY PAYMENTS,PRIVATE CONTRACTOR,REVENUE
Walsall Council,http://opendatacommunities.org/id/metropolitan-district-council/walsall ,WC142-307,30.09.2022,ADULT SOCIAL CARE,ADVANCE HEALTH CARE (UK) LTD,12/09/2022,497.7,6541-Domiciliary Care,THIRD PARTY PAYMENTS,PRIVATE CONTRACTOR,REVENUE
Walsall Council,http://opendatacommunities.org/id/metropolitan-district-council/walsall ,WC142-308,30.09.2022,ADULT SOCIAL CARE,ADVANCE HEALTH CARE (UK) LTD,12/09/2022,331.8,6541-Domiciliary Care,THIRD PARTY PAYMENTS,PRIVATE CONTRACTOR,REVENUE
Walsall Council,http://opendatacommunities.org/id/metropolitan-district-council/walsall ,WC142-309,30.09.2022,ADULT SOCIAL CARE,ADVANCE HEALTH CARE (UK) LTD,12/09/2022,497.7,6541-Domiciliary Care,THIRD PARTY PAYMENTS,PRIVATE CONTRACTOR,REVENUE
Walsall Council,http://opendatacommunities.org/id/metropolitan-district-council/walsall ,WC142-310,30.09.2022,ADULT SOCIAL CARE,ADVANCE HEALTH CARE (UK) LTD,12/09/2022,497.7,6541-Domiciliary Care,THIRD PARTY PAYMENTS,PRIVATE CONTRACTOR,REVENUE
Walsall Council,http://opendatacommunities.org/id/metropolitan-district-council/walsall ,WC142-311,30.09.2022,ADULT SOCIAL CARE,ADVANCE HEALTH CARE (UK) LTD,12/09/2022,497.7,6541-Domiciliary Care,THIRD PARTY PAYMENTS,PRIVATE CONTRACTOR,REVENUE
Walsall Council,http://opendatacommunities.org/id/metropolitan-district-council/walsall ,WC142-312,30.09.2022,ADULT SOCIAL CARE,ADVANCE HEALTH CARE (UK) LTD,12/09/2022,497.7,6541-Domiciliary Care,THIRD PARTY PAYMENTS,PRIVATE CONTRACTOR,REVENUE
Walsall Council,http://opendatacommunities.org/id/metropolitan-district-council/walsall ,WC142-313,30.09.2022,ADULT SOCIAL CARE,ADVANCE HEALTH CARE (UK) LTD,12/09/2022,497.7,6541-Domiciliary Care,THIRD PARTY PAYMENTS,PRIVATE CONTRACTOR,REVENUE
Walsall Council,http://opendatacommunities.org/id/metropolitan-district-council/walsall ,WC142-314,30.09.2022,ADULT SOCIAL CARE,ADVANCE HEALTH CARE (UK) LTD,12/09/2022,489.8,6541-Domiciliary Care,THIRD PARTY PAYMENTS,PRIVATE CONTRACTOR,REVENUE
Walsall Council,http://opendatacommunities.org/id/metropolitan-district-council/walsall ,WC142-315,30.09.2022,ADULT SOCIAL CARE,ADVANCE HEALTH CARE (UK) LTD,12/09/2022,884.8,6541-Domiciliary Care,THIRD PARTY PAYMENTS,PRIVATE CONTRACTOR,REVENUE
Walsall Council,http://opendatacommunities.org/id/metropolitan-district-council/walsall ,WC142-316,30.09.2022,ADULT SOCIAL CARE,ADVANCE HEALTH CARE (UK) LTD,12/09/2022,553,6541-Domiciliary Care,THIRD PARTY PAYMENTS,PRIVATE CONTRACTOR,REVENUE
Walsall Council,http://opendatacommunities.org/id/metropolitan-district-council/walsall ,WC142-317,30.09.2022,ADULT SOCIAL CARE,ADVANCE HEALTH CARE (UK) LTD,12/09/2022,553,6541-Domiciliary Care,THIRD PARTY PAYMENTS,PRIVATE CONTRACTOR,REVENUE
Walsall Council,http://opendatacommunities.org/id/metropolitan-district-council/walsall ,WC142-318,30.09.2022,ADULT SOCIAL CARE,ADVANCE HEALTH CARE (UK) LTD,12/09/2022,497.7,6541-Domiciliary Care,THIRD PARTY PAYMENTS,PRIVATE CONTRACTOR,REVENUE
Walsall Council,http://opendatacommunities.org/id/metropolitan-district-council/walsall ,WC142-319,30.09.2022,ADULT SOCIAL CARE,ADVANCE HEALTH CARE (UK) LTD,12/09/2022,845.3,6541-Domiciliary Care,THIRD PARTY PAYMENTS,PRIVATE CONTRACTOR,REVENUE
Walsall Council,http://opendatacommunities.org/id/metropolitan-district-council/walsall ,WC142-320,30.09.2022,ADULT SOCIAL CARE,ADVANCE HEALTH CARE (UK) LTD,12/09/2022,387.24,6541-Domiciliary Care,THIRD PARTY PAYMENTS,PRIVATE CONTRACTOR,REVENUE
Walsall Council,http://opendatacommunities.org/id/metropolitan-district-council/walsall ,WC142-321,30.09.2022,ADULT SOCIAL CARE,ADVANCE HEALTH CARE (UK) LTD,12/09/2022,331.94,6541-Domiciliary Care,THIRD PARTY PAYMENTS,PRIVATE CONTRACTOR,REVENUE
Walsall Council,http://opendatacommunities.org/id/metropolitan-district-council/walsall ,WC142-322,30.09.2022,ADULT SOCIAL CARE,ADVANCE HEALTH CARE (UK) LTD,12/09/2022,497.7,6541-Domiciliary Care,THIRD PARTY PAYMENTS,PRIVATE CONTRACTOR,REVENUE
Walsall Council,http://opendatacommunities.org/id/metropolitan-district-council/walsall ,WC142-323,30.09.2022,ADULT SOCIAL CARE,ADVANCE HEALTH CARE (UK) LTD,12/09/2022,497.7,6541-Domiciliary Care,THIRD PARTY PAYMENTS,PRIVATE CONTRACTOR,REVENUE
Walsall Council,http://opendatacommunities.org/id/metropolitan-district-council/walsall ,WC142-324,30.09.2022,ADULT SOCIAL CARE,ADVANCE HEALTH CARE (UK) LTD,12/09/2022,497.7,6541-Domiciliary Care,THIRD PARTY PAYMENTS,PRIVATE CONTRACTOR,REVENUE
Walsall Council,http://opendatacommunities.org/id/metropolitan-district-council/walsall ,WC142-325,30.09.2022,ADULT SOCIAL CARE,ADVANCE HEALTH CARE (UK) LTD,12/09/2022,489.8,6541-Domiciliary Care,THIRD PARTY PAYMENTS,PRIVATE CONTRACTOR,REVENUE
Walsall Council,http://opendatacommunities.org/id/metropolitan-district-council/walsall ,WC142-326,30.09.2022,ADULT SOCIAL CARE,ADVANCE HEALTH CARE (UK) LTD,12/09/2022,497.7,6541-Domiciliary Care,THIRD PARTY PAYMENTS,PRIVATE CONTRACTOR,REVENUE
Walsall Council,http://opendatacommunities.org/id/metropolitan-district-council/walsall ,WC142-327,30.09.2022,ADULT SOCIAL CARE,ADVANCE HEALTH CARE (UK) LTD,12/09/2022,331.8,6541-Domiciliary Care,THIRD PARTY PAYMENTS,PRIVATE CONTRACTOR,REVENUE
Walsall Council,http://opendatacommunities.org/id/metropolitan-district-council/walsall ,WC142-328,30.09.2022,ADULT SOCIAL CARE,ADVANCE HEALTH CARE (UK) LTD,12/09/2022,576.7,6541-Domiciliary Care,THIRD PARTY PAYMENTS,PRIVATE CONTRACTOR,REVENUE
Walsall Council,http://opendatacommunities.org/id/metropolitan-district-council/walsall ,WC142-329,30.09.2022,ADULT SOCIAL CARE,ADVANCE HEALTH CARE (UK) LTD,12/09/2022,497.7,6541-Domiciliary Care,THIRD PARTY PAYMENTS,PRIVATE CONTRACTOR,REVENUE
Walsall Council,http://opendatacommunities.org/id/metropolitan-district-council/walsall ,WC142-330,30.09.2022,ADULT SOCIAL CARE,ADVANCE HEALTH CARE (UK) LTD,12/09/2022,368.76,6541-Domiciliary Care,THIRD PARTY PAYMENTS,PRIVATE CONTRACTOR,REVENUE
Walsall Council,http://opendatacommunities.org/id/metropolitan-district-council/walsall ,WC142-331,30.09.2022,ADULT SOCIAL CARE,ADVANCE HEALTH CARE (UK) LTD,12/09/2022,331.8,6541-Domiciliary Care,THIRD PARTY PAYMENTS,PRIVATE CONTRACTOR,REVENUE
Walsall Council,http://opendatacommunities.org/id/metropolitan-district-council/walsall ,WC142-332,30.09.2022,ADULT SOCIAL CARE,ADVANCE HEALTH CARE (UK) LTD,12/09/2022,387.1,6541-Domiciliary Care,THIRD PARTY PAYMENTS,PRIVATE CONTRACTOR,REVENUE
Walsall Council,http://opendatacommunities.org/id/metropolitan-district-council/walsall ,WC142-333,30.09.2022,ADULT SOCIAL CARE,ADVANCE HEALTH CARE (UK) LTD,12/09/2022,331.8,6541-Domiciliary Care,THIRD PARTY PAYMENTS,PRIVATE CONTRACTOR,REVENUE
Walsall Council,http://opendatacommunities.org/id/metropolitan-district-council/walsall ,WC142-334,30.09.2022,ADULT SOCIAL CARE,ADVANCE HEALTH CARE (UK) LTD,12/09/2022,553,6541-Domiciliary Care,THIRD PARTY PAYMENTS,PRIVATE CONTRACTOR,REVENUE
Walsall Council,http://opendatacommunities.org/id/metropolitan-district-council/walsall ,WC142-335,30.09.2022,ADULT SOCIAL CARE,ADVANCE HEALTH CARE (UK) LTD,12/09/2022,387.1,6541-Domiciliary Care,THIRD PARTY PAYMENTS,PRIVATE CONTRACTOR,REVENUE
Walsall Council,http://opendatacommunities.org/id/metropolitan-district-council/walsall ,WC142-336,30.09.2022,ADULT SOCIAL CARE,ADVANCE HEALTH CARE (UK) LTD,12/09/2022,884.8,6541-Domiciliary Care,THIRD PARTY PAYMENTS,PRIVATE CONTRACTOR,REVENUE
Walsall Council,http://opendatacommunities.org/id/metropolitan-district-council/walsall ,WC142-337,30.09.2022,ADULT SOCIAL CARE,ADVANCE HEALTH CARE (UK) LTD,12/09/2022,497.7,6541-Domiciliary Care,THIRD PARTY PAYMENTS,PRIVATE CONTRACTOR,REVENUE
Walsall Council,http://opendatacommunities.org/id/metropolitan-district-council/walsall ,WC142-338,30.09.2022,ADULT SOCIAL CARE,ADVANCE HEALTH CARE (UK) LTD,12/09/2022,497.7,6541-Domiciliary Care,THIRD PARTY PAYMENTS,PRIVATE CONTRACTOR,REVENUE
Walsall Council,http://opendatacommunities.org/id/metropolitan-district-council/walsall ,WC142-339,30.09.2022,ADULT SOCIAL CARE,ADVANCE HEALTH CARE (UK) LTD,12/09/2022,331.94,6541-Domiciliary Care,THIRD PARTY PAYMENTS,PRIVATE CONTRACTOR,REVENUE
Walsall Council,http://opendatacommunities.org/id/metropolitan-district-council/walsall ,WC142-340,30.09.2022,ADULT SOCIAL CARE,ADVANCE HEALTH CARE (UK) LTD,12/09/2022,497.7,6541-Domiciliary Care,THIRD PARTY PAYMENTS,PRIVATE CONTRACTOR,REVENUE
Walsall Council,http://opendatacommunities.org/id/metropolitan-district-council/walsall ,WC142-341,30.09.2022,ADULT SOCIAL CARE,ADVANCE HEALTH CARE (UK) LTD,12/09/2022,553,6541-Domiciliary Care,THIRD PARTY PAYMENTS,PRIVATE CONTRACTOR,REVENUE
Walsall Council,http://opendatacommunities.org/id/metropolitan-district-council/walsall ,WC142-342,30.09.2022,ADULT SOCIAL CARE,ADVANCE HEALTH CARE (UK) LTD,12/09/2022,316,6541-Domiciliary Care,THIRD PARTY PAYMENTS,PRIVATE CONTRACTOR,REVENUE
Walsall Council,http://opendatacommunities.org/id/metropolitan-district-council/walsall ,WC142-343,30.09.2022,ADULT SOCIAL CARE,ADVANCE HEALTH CARE (UK) LTD,12/09/2022,497.7,6541-Domiciliary Care,THIRD PARTY PAYMENTS,PRIVATE CONTRACTOR,REVENUE
Walsall Council,http://opendatacommunities.org/id/metropolitan-district-council/walsall ,WC142-344,30.09.2022,ADULT SOCIAL CARE,ADVANCE HEALTH CARE (UK) LTD,12/09/2022,497.7,6541-Domiciliary Care,THIRD PARTY PAYMENTS,PRIVATE CONTRACTOR,REVENUE
Walsall Council,http://opendatacommunities.org/id/metropolitan-district-council/walsall ,WC142-345,30.09.2022,ADULT SOCIAL CARE,ADVANCE HEALTH CARE (UK) LTD,12/09/2022,497.7,6541-Domiciliary Care,THIRD PARTY PAYMENTS,PRIVATE CONTRACTOR,REVENUE
Walsall Council,http://opendatacommunities.org/id/metropolitan-district-council/walsall ,WC142-346,30.09.2022,ADULT SOCIAL CARE,ADVANCE HEALTH CARE (UK) LTD,12/09/2022,553,6541-Domiciliary Care,THIRD PARTY PAYMENTS,PRIVATE CONTRACTOR,REVENUE
Walsall Council,http://opendatacommunities.org/id/metropolitan-district-council/walsall ,WC142-347,30.09.2022,ADULT SOCIAL CARE,ADVANCE HEALTH CARE (UK) LTD,12/09/2022,442.4,6541-Domiciliary Care,THIRD PARTY PAYMENTS,PRIVATE CONTRACTOR,REVENUE
Walsall Council,http://opendatacommunities.org/id/metropolitan-district-council/walsall ,WC142-348,30.09.2022,ADULT SOCIAL CARE,ADVANCE HEALTH CARE (UK) LTD,12/09/2022,497.7,6541-Domiciliary Care,THIRD PARTY PAYMENTS,PRIVATE CONTRACTOR,REVENUE
Walsall Council,http://opendatacommunities.org/id/metropolitan-district-council/walsall ,WC142-349,30.09.2022,ADULT SOCIAL CARE,ADVANCE HEALTH CARE (UK) LTD,12/09/2022,316,6541-Domiciliary Care,THIRD PARTY PAYMENTS,PRIVATE CONTRACTOR,REVENUE
Walsall Council,http://opendatacommunities.org/id/metropolitan-district-council/walsall ,WC142-350,30.09.2022,ADULT SOCIAL CARE,ADVANCE HEALTH CARE (UK) LTD,12/09/2022,497.7,6541-Domiciliary Care,THIRD PARTY PAYMENTS,PRIVATE CONTRACTOR,REVENUE
Walsall Council,http://opendatacommunities.org/id/metropolitan-district-council/walsall ,WC142-351,30.09.2022,ADULT SOCIAL CARE,ADVANCE HEALTH CARE (UK) LTD,21/09/2022,782.1,6541-Domiciliary Care,THIRD PARTY PAYMENTS,PRIVATE CONTRACTOR,REVENUE
Walsall Council,http://opendatacommunities.org/id/metropolitan-district-council/walsall ,WC142-352,30.09.2022,ADULT SOCIAL CARE,ADVANCE HEALTH CARE (UK) LTD,21/09/2022,268.6,6541-Domiciliary Care,THIRD PARTY PAYMENTS,PRIVATE CONTRACTOR,REVENUE
Walsall Council,http://opendatacommunities.org/id/metropolitan-district-council/walsall ,WC142-353,30.09.2022,ADULT SOCIAL CARE,ADVANCE HEALTH CARE (UK) LTD,21/09/2022,316,6541-Domiciliary Care,THIRD PARTY PAYMENTS,PRIVATE CONTRACTOR,REVENUE
Walsall Council,http://opendatacommunities.org/id/metropolitan-district-council/walsall ,WC142-354,30.09.2022,ADULT SOCIAL CARE,ADVANCE HEALTH CARE (UK) LTD,21/09/2022,284.4,6541-Domiciliary Care,THIRD PARTY PAYMENTS,PRIVATE CONTRACTOR,REVENUE
Walsall Council,http://opendatacommunities.org/id/metropolitan-district-council/walsall ,WC142-355,30.09.2022,ADULT SOCIAL CARE,ADVANCE HEALTH CARE (UK) LTD,21/09/2022,521.4,6541-Domiciliary Care,THIRD PARTY PAYMENTS,PRIVATE CONTRACTOR,REVENUE
Walsall Council,http://opendatacommunities.org/id/metropolitan-district-council/walsall ,WC142-356,30.09.2022,ADULT SOCIAL CARE,ADVANCE HEALTH CARE (UK) LTD,21/09/2022,"1,548.40",6541-Domiciliary Care,THIRD PARTY PAYMENTS,PRIVATE CONTRACTOR,REVENUE
Walsall Council,http://opendatacommunities.org/id/metropolitan-district-council/walsall ,WC142-357,30.09.2022,ADULT SOCIAL CARE,ADVANCE HEALTH CARE (UK) LTD,21/09/2022,505.6,6541-Domiciliary Care,THIRD PARTY PAYMENTS,PRIVATE CONTRACTOR,REVENUE
Walsall Council,http://opendatacommunities.org/id/metropolitan-district-council/walsall ,WC142-358,30.09.2022,ADULT SOCIAL CARE,ADVANCE HEALTH CARE (UK) LTD,21/09/2022,"1,706.40",6541-Domiciliary Care,THIRD PARTY PAYMENTS,PRIVATE CONTRACTOR,REVENUE
Walsall Council,http://opendatacommunities.org/id/metropolitan-district-council/walsall ,WC142-359,30.09.2022,ADULT SOCIAL CARE,ADVANCE HEALTH CARE (UK) LTD,21/09/2022,"1,990.80",6541-Domiciliary Care,THIRD PARTY PAYMENTS,PRIVATE CONTRACTOR,REVENUE
Walsall Council,http://opendatacommunities.org/id/metropolitan-district-council/walsall ,WC142-360,30.09.2022,ADULT SOCIAL CARE,ADVANCE HEALTH CARE (UK) LTD,21/09/2022,"1,208.70",6541-Domiciliary Care,THIRD PARTY PAYMENTS,PRIVATE CONTRACTOR,REVENUE
Walsall Council,http://opendatacommunities.org/id/metropolitan-district-council/walsall ,WC142-361,30.09.2022,ADULT SOCIAL CARE,ADVANCE HEALTH CARE (UK) LTD,21/09/2022,782.1,6541-Domiciliary Care,THIRD PARTY PAYMENTS,PRIVATE CONTRACTOR,REVENUE
Walsall Council,http://opendatacommunities.org/id/metropolitan-district-council/walsall ,WC142-362,30.09.2022,ADULT SOCIAL CARE,ADVANCE HEALTH CARE (UK) LTD,21/09/2022,663.6,6541-Domiciliary Care,THIRD PARTY PAYMENTS,PRIVATE CONTRACTOR,REVENUE
Walsall Council,http://opendatacommunities.org/id/metropolitan-district-council/walsall ,WC142-363,30.09.2022,ADULT SOCIAL CARE,ADVANCE HEALTH CARE (UK) LTD,26/09/2022,845.3,6541-Domiciliary Care,THIRD PARTY PAYMENTS,PRIVATE CONTRACTOR,REVENUE
Walsall Council,http://opendatacommunities.org/id/metropolitan-district-council/walsall ,WC142-364,30.09.2022,ADULT SOCIAL CARE,ADVANCE HEALTH CARE (UK) LTD,26/09/2022,387.24,6541-Domiciliary Care,THIRD PARTY PAYMENTS,PRIVATE CONTRACTOR,REVENUE
Walsall Council,http://opendatacommunities.org/id/metropolitan-district-council/walsall ,WC142-365,30.09.2022,ADULT SOCIAL CARE,ADVANCE HEALTH CARE (UK) LTD,26/09/2022,497.7,6541-Domiciliary Care,THIRD PARTY PAYMENTS,PRIVATE CONTRACTOR,REVENUE
Walsall Council,http://opendatacommunities.org/id/metropolitan-district-council/walsall ,WC142-366,30.09.2022,ADULT SOCIAL CARE,ADVANCE HEALTH CARE (UK) LTD,26/09/2022,497.7,6541-Domiciliary Care,THIRD PARTY PAYMENTS,PRIVATE CONTRACTOR,REVENUE
Walsall Council,http://opendatacommunities.org/id/metropolitan-district-council/walsall ,WC142-367,30.09.2022,ADULT SOCIAL CARE,ADVANCE HEALTH CARE (UK) LTD,26/09/2022,489.8,6541-Domiciliary Care,THIRD PARTY PAYMENTS,PRIVATE CONTRACTOR,REVENUE
Walsall Council,http://opendatacommunities.org/id/metropolitan-district-council/walsall ,WC142-368,30.09.2022,ADULT SOCIAL CARE,ADVANCE HEALTH CARE (UK) LTD,26/09/2022,576.7,6541-Domiciliary Care,THIRD PARTY PAYMENTS,PRIVATE CONTRACTOR,REVENUE
Walsall Council,http://opendatacommunities.org/id/metropolitan-district-council/walsall ,WC142-369,30.09.2022,ADULT SOCIAL CARE,ADVANCE HEALTH CARE (UK) LTD,26/09/2022,497.7,6541-Domiciliary Care,THIRD PARTY PAYMENTS,PRIVATE CONTRACTOR,REVENUE
Walsall Council,http://opendatacommunities.org/id/metropolitan-district-council/walsall ,WC142-370,30.09.2022,ADULT SOCIAL CARE,ADVANCE HEALTH CARE (UK) LTD,26/09/2022,368.76,6541-Domiciliary Care,THIRD PARTY PAYMENTS,PRIVATE CONTRACTOR,REVENUE
Walsall Council,http://opendatacommunities.org/id/metropolitan-district-council/walsall ,WC142-371,30.09.2022,ADULT SOCIAL CARE,ADVANCE HEALTH CARE (UK) LTD,26/09/2022,497.7,6541-Domiciliary Care,THIRD PARTY PAYMENTS,PRIVATE CONTRACTOR,REVENUE
Walsall Council,http://opendatacommunities.org/id/metropolitan-district-council/walsall ,WC142-372,30.09.2022,ADULT SOCIAL CARE,ADVANCE HEALTH CARE (UK) LTD,26/09/2022,387.1,6541-Domiciliary Care,THIRD PARTY PAYMENTS,PRIVATE CONTRACTOR,REVENUE
Walsall Council,http://opendatacommunities.org/id/metropolitan-district-council/walsall ,WC142-373,30.09.2022,ADULT SOCIAL CARE,ADVANCE HEALTH CARE (UK) LTD,26/09/2022,331.8,6541-Domiciliary Care,THIRD PARTY PAYMENTS,PRIVATE CONTRACTOR,REVENUE
Walsall Council,http://opendatacommunities.org/id/metropolitan-district-council/walsall ,WC142-374,30.09.2022,ADULT SOCIAL CARE,ADVANCE HEALTH CARE (UK) LTD,26/09/2022,331.8,6541-Domiciliary Care,THIRD PARTY PAYMENTS,PRIVATE CONTRACTOR,REVENUE
Walsall Council,http://opendatacommunities.org/id/metropolitan-district-council/walsall ,WC142-375,30.09.2022,ADULT SOCIAL CARE,ADVANCE HEALTH CARE (UK) LTD,26/09/2022,331.94,6541-Domiciliary Care,THIRD PARTY PAYMENTS,PRIVATE CONTRACTOR,REVENUE
Walsall Council,http://opendatacommunities.org/id/metropolitan-district-council/walsall ,WC142-376,30.09.2022,ADULT SOCIAL CARE,ADVANCE HEALTH CARE (UK) LTD,26/09/2022,497.7,6541-Domiciliary Care,THIRD PARTY PAYMENTS,PRIVATE CONTRACTOR,REVENUE
Walsall Council,http://opendatacommunities.org/id/metropolitan-district-council/walsall ,WC142-377,30.09.2022,ADULT SOCIAL CARE,ADVANCE HEALTH CARE (UK) LTD,26/09/2022,553,6541-Domiciliary Care,THIRD PARTY PAYMENTS,PRIVATE CONTRACTOR,REVENUE
Walsall Council,http://opendatacommunities.org/id/metropolitan-district-council/walsall ,WC142-378,30.09.2022,ADULT SOCIAL CARE,ADVANCE HEALTH CARE (UK) LTD,26/09/2022,497.7,6541-Domiciliary Care,THIRD PARTY PAYMENTS,PRIVATE CONTRACTOR,REVENUE
Walsall Council,http://opendatacommunities.org/id/metropolitan-district-council/walsall ,WC142-379,30.09.2022,ADULT SOCIAL CARE,ADVANCE HEALTH CARE (UK) LTD,26/09/2022,331.8,6541-Domiciliary Care,THIRD PARTY PAYMENTS,PRIVATE CONTRACTOR,REVENUE
Walsall Council,http://opendatacommunities.org/id/metropolitan-district-council/walsall ,WC142-380,30.09.2022,ADULT SOCIAL CARE,ADVANCE HEALTH CARE (UK) LTD,26/09/2022,497.7,6541-Domiciliary Care,THIRD PARTY PAYMENTS,PRIVATE CONTRACTOR,REVENUE
Walsall Council,http://opendatacommunities.org/id/metropolitan-district-council/walsall ,WC142-381,30.09.2022,ADULT SOCIAL CARE,ADVANCE HEALTH CARE (UK) LTD,26/09/2022,497.7,6541-Domiciliary Care,THIRD PARTY PAYMENTS,PRIVATE CONTRACTOR,REVENUE
Walsall Council,http://opendatacommunities.org/id/metropolitan-district-council/walsall ,WC142-382,30.09.2022,ADULT SOCIAL CARE,ADVANCE HEALTH CARE (UK) LTD,26/09/2022,497.7,6541-Domiciliary Care,THIRD PARTY PAYMENTS,PRIVATE CONTRACTOR,REVENUE
Walsall Council,http://opendatacommunities.org/id/metropolitan-district-council/walsall ,WC142-383,30.09.2022,ADULT SOCIAL CARE,ADVANCE HEALTH CARE (UK) LTD,26/09/2022,331.94,6541-Domiciliary Care,THIRD PARTY PAYMENTS,PRIVATE CONTRACTOR,REVENUE
Walsall Council,http://opendatacommunities.org/id/metropolitan-district-council/walsall ,WC142-384,30.09.2022,ADULT SOCIAL CARE,ADVANCE HEALTH CARE (UK) LTD,26/09/2022,553,6541-Domiciliary Care,THIRD PARTY PAYMENTS,PRIVATE CONTRACTOR,REVENUE
Walsall Council,http://opendatacommunities.org/id/metropolitan-district-council/walsall ,WC142-385,30.09.2022,ADULT SOCIAL CARE,ADVANCE HEALTH CARE (UK) LTD,26/09/2022,497.7,6541-Domiciliary Care,THIRD PARTY PAYMENTS,PRIVATE CONTRACTOR,REVENUE
Walsall Council,http://opendatacommunities.org/id/metropolitan-district-council/walsall ,WC142-386,30.09.2022,ADULT SOCIAL CARE,ADVANCE HEALTH CARE (UK) LTD,26/09/2022,497.7,6541-Domiciliary Care,THIRD PARTY PAYMENTS,PRIVATE CONTRACTOR,REVENUE
Walsall Council,http://opendatacommunities.org/id/metropolitan-district-council/walsall ,WC142-387,30.09.2022,ADULT SOCIAL CARE,ADVANCE HEALTH CARE (UK) LTD,26/09/2022,553,6541-Domiciliary Care,THIRD PARTY PAYMENTS,PRIVATE CONTRACTOR,REVENUE
Walsall Council,http://opendatacommunities.org/id/metropolitan-district-council/walsall ,WC142-388,30.09.2022,ADULT SOCIAL CARE,ADVANCE HEALTH CARE (UK) LTD,26/09/2022,387.1,6541-Domiciliary Care,THIRD PARTY PAYMENTS,PRIVATE CONTRACTOR,REVENUE
Walsall Council,http://opendatacommunities.org/id/metropolitan-district-council/walsall ,WC142-389,30.09.2022,ADULT SOCIAL CARE,ADVANCE HEALTH CARE (UK) LTD,26/09/2022,553,6541-Domiciliary Care,THIRD PARTY PAYMENTS,PRIVATE CONTRACTOR,REVENUE
Walsall Council,http://opendatacommunities.org/id/metropolitan-district-council/walsall ,WC142-390,30.09.2022,ADULT SOCIAL CARE,ADVANCE HEALTH CARE (UK) LTD,26/09/2022,497.7,6541-Domiciliary Care,THIRD PARTY PAYMENTS,PRIVATE CONTRACTOR,REVENUE
Walsall Council,http://opendatacommunities.org/id/metropolitan-district-council/walsall ,WC142-391,30.09.2022,ADULT SOCIAL CARE,ADVANCE HEALTH CARE (UK) LTD,26/09/2022,884.8,6541-Domiciliary Care,THIRD PARTY PAYMENTS,PRIVATE CONTRACTOR,REVENUE
Walsall Council,http://opendatacommunities.org/id/metropolitan-district-council/walsall ,WC142-392,30.09.2022,ADULT SOCIAL CARE,ADVANCE HEALTH CARE (UK) LTD,26/09/2022,442.4,6541-Domiciliary Care,THIRD PARTY PAYMENTS,PRIVATE CONTRACTOR,REVENUE
Walsall Council,http://opendatacommunities.org/id/metropolitan-district-council/walsall ,WC142-393,30.09.2022,ADULT SOCIAL CARE,ADVANCE HEALTH CARE (UK) LTD,26/09/2022,442.4,6541-Domiciliary Care,THIRD PARTY PAYMENTS,PRIVATE CONTRACTOR,REVENUE
Walsall Council,http://opendatacommunities.org/id/metropolitan-district-council/walsall ,WC142-394,30.09.2022,ADULT SOCIAL CARE,ADVANCE HEALTH CARE (UK) LTD,26/09/2022,497.7,6541-Domiciliary Care,THIRD PARTY PAYMENTS,PRIVATE CONTRACTOR,REVENUE
Walsall Council,http://opendatacommunities.org/id/metropolitan-district-council/walsall ,WC142-395,30.09.2022,ADULT SOCIAL CARE,ADVANCE HEALTH CARE (UK) LTD,26/09/2022,845.3,6541-Domiciliary Care,THIRD PARTY PAYMENTS,PRIVATE CONTRACTOR,REVENUE
Walsall Council,http://opendatacommunities.org/id/metropolitan-district-council/walsall ,WC142-396,30.09.2022,ADULT SOCIAL CARE,ADVANCE HEALTH CARE (UK) LTD,26/09/2022,387.24,6541-Domiciliary Care,THIRD PARTY PAYMENTS,PRIVATE CONTRACTOR,REVENUE
Walsall Council,http://opendatacommunities.org/id/metropolitan-district-council/walsall ,WC142-397,30.09.2022,ADULT SOCIAL CARE,ADVANCE HEALTH CARE (UK) LTD,26/09/2022,497.7,6541-Domiciliary Care,THIRD PARTY PAYMENTS,PRIVATE CONTRACTOR,REVENUE
Walsall Council,http://opendatacommunities.org/id/metropolitan-district-council/walsall ,WC142-398,30.09.2022,ADULT SOCIAL CARE,ADVANCE HEALTH CARE (UK) LTD,26/09/2022,331.8,6541-Domiciliary Care,THIRD PARTY PAYMENTS,PRIVATE CONTRACTOR,REVENUE
Walsall Council,http://opendatacommunities.org/id/metropolitan-district-council/walsall ,WC142-399,30.09.2022,ADULT SOCIAL CARE,ADVANCE HEALTH CARE (UK) LTD,26/09/2022,387.1,6541-Domiciliary Care,THIRD PARTY PAYMENTS,PRIVATE CONTRACTOR,REVENUE
Walsall Council,http://opendatacommunities.org/id/metropolitan-district-council/walsall ,WC142-400,30.09.2022,ADULT SOCIAL CARE,ADVANCE HEALTH CARE (UK) LTD,26/09/2022,331.8,6541-Domiciliary Care,THIRD PARTY PAYMENTS,PRIVATE CONTRACTOR,REVENUE
Walsall Council,http://opendatacommunities.org/id/metropolitan-district-council/walsall ,WC142-401,30.09.2022,ADULT SOCIAL CARE,ADVANCE HEALTH CARE (UK) LTD,26/09/2022,497.7,6541-Domiciliary Care,THIRD PARTY PAYMENTS,PRIVATE CONTRACTOR,REVENUE
Walsall Council,http://opendatacommunities.org/id/metropolitan-district-council/walsall ,WC142-402,30.09.2022,ADULT SOCIAL CARE,ADVANCE HEALTH CARE (UK) LTD,26/09/2022,497.7,6541-Domiciliary Care,THIRD PARTY PAYMENTS,PRIVATE CONTRACTOR,REVENUE
Walsall Council,http://opendatacommunities.org/id/metropolitan-district-council/walsall ,WC142-403,30.09.2022,ADULT SOCIAL CARE,ADVANCE HEALTH CARE (UK) LTD,26/09/2022,497.7,6541-Domiciliary Care,THIRD PARTY PAYMENTS,PRIVATE CONTRACTOR,REVENUE
Walsall Council,http://opendatacommunities.org/id/metropolitan-district-council/walsall ,WC142-404,30.09.2022,ADULT SOCIAL CARE,ADVANCE HEALTH CARE (UK) LTD,26/09/2022,553,6541-Domiciliary Care,THIRD PARTY PAYMENTS,PRIVATE CONTRACTOR,REVENUE
Walsall Council,http://opendatacommunities.org/id/metropolitan-district-council/walsall ,WC142-405,30.09.2022,ADULT SOCIAL CARE,ADVANCE HEALTH CARE (UK) LTD,26/09/2022,497.7,6541-Domiciliary Care,THIRD PARTY PAYMENTS,PRIVATE CONTRACTOR,REVENUE
Walsall Council,http://opendatacommunities.org/id/metropolitan-district-council/walsall ,WC142-406,30.09.2022,ADULT SOCIAL CARE,ADVANCE HEALTH CARE (UK) LTD,26/09/2022,331.94,6541-Domiciliary Care,THIRD PARTY PAYMENTS,PRIVATE CONTRACTOR,REVENUE
Walsall Council,http://opendatacommunities.org/id/metropolitan-district-council/walsall ,WC142-407,30.09.2022,ADULT SOCIAL CARE,ADVANCE HEALTH CARE (UK) LTD,26/09/2022,497.7,6541-Domiciliary Care,THIRD PARTY PAYMENTS,PRIVATE CONTRACTOR,REVENUE
Walsall Council,http://opendatacommunities.org/id/metropolitan-district-council/walsall ,WC142-408,30.09.2022,ADULT SOCIAL CARE,ADVANCE HEALTH CARE (UK) LTD,26/09/2022,553,6541-Domiciliary Care,THIRD PARTY PAYMENTS,PRIVATE CONTRACTOR,REVENUE
Walsall Council,http://opendatacommunities.org/id/metropolitan-district-council/walsall ,WC142-409,30.09.2022,ADULT SOCIAL CARE,ADVANCE HEALTH CARE (UK) LTD,26/09/2022,497.7,6541-Domiciliary Care,THIRD PARTY PAYMENTS,PRIVATE CONTRACTOR,REVENUE
Walsall Council,http://opendatacommunities.org/id/metropolitan-district-council/walsall ,WC142-410,30.09.2022,ADULT SOCIAL CARE,ADVANCE HEALTH CARE (UK) LTD,26/09/2022,553,6541-Domiciliary Care,THIRD PARTY PAYMENTS,PRIVATE CONTRACTOR,REVENUE
Walsall Council,http://opendatacommunities.org/id/metropolitan-district-council/walsall ,WC142-411,30.09.2022,ADULT SOCIAL CARE,ADVANCE HEALTH CARE (UK) LTD,26/09/2022,387.1,6541-Domiciliary Care,THIRD PARTY PAYMENTS,PRIVATE CONTRACTOR,REVENUE
Walsall Council,http://opendatacommunities.org/id/metropolitan-district-council/walsall ,WC142-412,30.09.2022,ADULT SOCIAL CARE,ADVANCE HEALTH CARE (UK) LTD,26/09/2022,884.8,6541-Domiciliary Care,THIRD PARTY PAYMENTS,PRIVATE CONTRACTOR,REVENUE
Walsall Council,http://opendatacommunities.org/id/metropolitan-district-council/walsall ,WC142-413,30.09.2022,ADULT SOCIAL CARE,ADVANCE HEALTH CARE (UK) LTD,26/09/2022,576.7,6541-Domiciliary Care,THIRD PARTY PAYMENTS,PRIVATE CONTRACTOR,REVENUE
Walsall Council,http://opendatacommunities.org/id/metropolitan-district-council/walsall ,WC142-414,30.09.2022,ADULT SOCIAL CARE,ADVANCE HEALTH CARE (UK) LTD,26/09/2022,497.7,6541-Domiciliary Care,THIRD PARTY PAYMENTS,PRIVATE CONTRACTOR,REVENUE
Walsall Council,http://opendatacommunities.org/id/metropolitan-district-council/walsall ,WC142-415,30.09.2022,ADULT SOCIAL CARE,ADVANCE HEALTH CARE (UK) LTD,26/09/2022,368.76,6541-Domiciliary Care,THIRD PARTY PAYMENTS,PRIVATE CONTRACTOR,REVENUE
Walsall Council,http://opendatacommunities.org/id/metropolitan-district-council/walsall ,WC142-416,30.09.2022,ADULT SOCIAL CARE,ADVANCE HEALTH CARE (UK) LTD,26/09/2022,331.8,6541-Domiciliary Care,THIRD PARTY PAYMENTS,PRIVATE CONTRACTOR,REVENUE
Walsall Council,http://opendatacommunities.org/id/metropolitan-district-council/walsall ,WC142-417,30.09.2022,ADULT SOCIAL CARE,ADVANCE HEALTH CARE (UK) LTD,26/09/2022,331.94,6541-Domiciliary Care,THIRD PARTY PAYMENTS,PRIVATE CONTRACTOR,REVENUE
Walsall Council,http://opendatacommunities.org/id/metropolitan-district-council/walsall ,WC142-418,30.09.2022,ADULT SOCIAL CARE,ADVANCE HEALTH CARE (UK) LTD,26/09/2022,497.7,6541-Domiciliary Care,THIRD PARTY PAYMENTS,PRIVATE CONTRACTOR,REVENUE
Walsall Council,http://opendatacommunities.org/id/metropolitan-district-council/walsall ,WC142-419,30.09.2022,ADULT SOCIAL CARE,ADVANCE HEALTH CARE (UK) LTD,26/09/2022,553,6541-Domiciliary Care,THIRD PARTY PAYMENTS,PRIVATE CONTRACTOR,REVENUE
Walsall Council,http://opendatacommunities.org/id/metropolitan-district-council/walsall ,WC142-420,30.09.2022,ADULT SOCIAL CARE,ADVANCE HEALTH CARE (UK) LTD,26/09/2022,497.7,6541-Domiciliary Care,THIRD PARTY PAYMENTS,PRIVATE CONTRACTOR,REVENUE
Walsall Council,http://opendatacommunities.org/id/metropolitan-district-council/walsall ,WC142-421,30.09.2022,ADULT SOCIAL CARE,ADVANCE HEALTH CARE (UK) LTD,26/09/2022,497.7,6541-Domiciliary Care,THIRD PARTY PAYMENTS,PRIVATE CONTRACTOR,REVENUE
Walsall Council,http://opendatacommunities.org/id/metropolitan-district-council/walsall ,WC142-422,30.09.2022,ADULT SOCIAL CARE,ADVANCE HEALTH CARE (UK) LTD,26/09/2022,489.8,6541-Domiciliary Care,THIRD PARTY PAYMENTS,PRIVATE CONTRACTOR,REVENUE
Walsall Council,http://opendatacommunities.org/id/metropolitan-district-council/walsall ,WC142-423,30.09.2022,ADULT SOCIAL CARE,ADVANCE HEALTH CARE (UK) LTD,26/09/2022,497.7,6541-Domiciliary Care,THIRD PARTY PAYMENTS,PRIVATE CONTRACTOR,REVENUE
Walsall Council,http://opendatacommunities.org/id/metropolitan-district-council/walsall ,WC142-424,30.09.2022,ADULT SOCIAL CARE,ADVANCE HEALTH CARE (UK) LTD,26/09/2022,442.4,6541-Domiciliary Care,THIRD PARTY PAYMENTS,PRIVATE CONTRACTOR,REVENUE
Walsall Council,http://opendatacommunities.org/id/metropolitan-district-council/walsall ,WC142-425,30.09.2022,ADULT SOCIAL CARE,ADVANCE HEALTH CARE (UK) LTD,26/09/2022,442.4,6541-Domiciliary Care,THIRD PARTY PAYMENTS,PRIVATE CONTRACTOR,REVENUE
Walsall Council,http://opendatacommunities.org/id/metropolitan-district-council/walsall ,WC142-426,30.09.2022,RESOURCES AND TRANSFORMATION,ADVANCED CONTRACTS (MIDLANDS) LTD,05/09/2022,380,6310-Planned Maintenance,PREMISES,REPAIRS & MAINTENANCE,REVENUE
Walsall Council,http://opendatacommunities.org/id/metropolitan-district-council/walsall ,WC142-427,30.09.2022,RESOURCES AND TRANSFORMATION,ADVANCED CONTRACTS (MIDLANDS) LTD,06/09/2022,"2,980.00",6310-Planned Maintenance,PREMISES,REPAIRS & MAINTENANCE,REVENUE
Walsall Council,http://opendatacommunities.org/id/metropolitan-district-council/walsall ,WC142-428,30.09.2022,RESOURCES AND TRANSFORMATION,ADVANCED CONTRACTS (MIDLANDS) LTD,05/09/2022,"5,990.00",6310-Planned Maintenance,PREMISES,REPAIRS & MAINTENANCE,REVENUE
Walsall Council,http://opendatacommunities.org/id/metropolitan-district-council/walsall ,WC142-429,30.09.2022,RESOURCES AND TRANSFORMATION,ADVANCED CONTRACTS (MIDLANDS) LTD,06/09/2022,"10,460.00",6310-Planned Maintenance,PREMISES,REPAIRS & MAINTENANCE,REVENUE
Walsall Council,http://opendatacommunities.org/id/metropolitan-district-council/walsall ,WC142-430,30.09.2022,RESOURCES AND TRANSFORMATION,ADVANCED CONTRACTS (MIDLANDS) LTD,05/09/2022,"47,942.00",6310-Planned Maintenance,PREMISES,REPAIRS & MAINTENANCE,REVENUE
Walsall Council,http://opendatacommunities.org/id/metropolitan-district-council/walsall ,WC142-431,30.09.2022,RESOURCES AND TRANSFORMATION,ADVANCED CONTRACTS (MIDLANDS) LTD,06/09/2022,"12,890.00",6310-Planned Maintenance,PREMISES,REPAIRS & MAINTENANCE,REVENUE
Walsall Council,http://opendatacommunities.org/id/metropolitan-district-council/walsall ,WC142-432,30.09.2022,CHILDRENS,ADVENTURELAND DAY NURSERY,09/09/2022,"4,291.88",1184-Other-Grants to Other Orgs,SUPPLIES & SERVICES,GRANTS (EXP) & SUBSCRIPTIONS,REVENUE
Walsall Council,http://opendatacommunities.org/id/metropolitan-district-council/walsall ,WC142-433,30.09.2022,CHILDRENS,ADVENTURELAND DAY NURSERY,09/09/2022,"21,924.00",1184-Other-Grants to Other Orgs,SUPPLIES & SERVICES,GRANTS (EXP) & SUBSCRIPTIONS,REVENUE
Walsall Council,http://opendatacommunities.org/id/metropolitan-district-council/walsall ,WC142-434,30.09.2022,ADULT SOCIAL CARE,ADVINIA CARE HOMES LTD - HAMMERWICH HALL CARE HOME,26/09/2022,"2,366.04",6541-Residential EMI,THIRD PARTY PAYMENTS,PRIVATE CONTRACTOR,REVENUE
Walsall Council,http://opendatacommunities.org/id/metropolitan-district-council/walsall ,WC142-435,30.09.2022,ADULT SOCIAL CARE,ADVINIA CARE HOMES LTD - HAMMERWICH HALL CARE HOME,26/09/2022,"2,095.40",6541-Residential,THIRD PARTY PAYMENTS,PRIVATE CONTRACTOR,REVENUE
Walsall Council,http://opendatacommunities.org/id/metropolitan-district-council/walsall ,WC142-436,30.09.2022,ADULT SOCIAL CARE,AFGHAN COMMUNITY & WELFARE CENTRE,12/09/2022,309,6420-Professional Fees & Services,SUPPLIES & SERVICES,SERVICES,REVENUE
Walsall Council,http://opendatacommunities.org/id/metropolitan-district-council/walsall ,WC142-437,30.09.2022,CHILDRENS,AFGHAN COMMUNITY & WELFARE CENTRE,15/09/2022,993.3,6213-Professional Fees & Services,SUPPLIES & SERVICES,SERVICES,REVENUE
Walsall Council,http://opendatacommunities.org/id/metropolitan-district-council/walsall ,WC142-438,30.09.2022,CHILDRENS CAPITAL,REDACTED,07/09/2022,"10,000.00",7100-Private Grants,CAPITAL,CAPITAL GRANTS,CAPITAL GRANTS
Walsall Council,http://opendatacommunities.org/id/metropolitan-district-council/walsall ,WC142-439,30.09.2022,RESOURCES AND TRANSFORMATION CAPITAL,AGILISYS LTD,06/09/2022,"-86,374.03",7300-Consultants Fees,CAPITAL,"NEW CONSTRUCTION,CONVERSION & RENOVATION",CAPITAL
Walsall Council,http://opendatacommunities.org/id/metropolitan-district-council/walsall ,WC142-440,30.09.2022,RESOURCES AND TRANSFORMATION CAPITAL,AGILISYS LTD,06/09/2022,"86,374.03",7300-Consultants Fees,CAPITAL,"NEW CONSTRUCTION,CONVERSION & RENOVATION",CAPITAL
Walsall Council,http://opendatacommunities.org/id/metropolitan-district-council/walsall ,WC142-441,30.09.2022,RESOURCES AND TRANSFORMATION CAPITAL,AGILISYS LTD,05/09/2022,"1,402.00",7300-Consultants Fees,CAPITAL,"NEW CONSTRUCTION,CONVERSION & RENOVATION",CAPITAL
Walsall Council,http://opendatacommunities.org/id/metropolitan-district-council/walsall ,WC142-442,30.09.2022,RESOURCES AND TRANSFORMATION CAPITAL,AGILISYS LTD,06/09/2022,"120,000.00",7300-Consultants Fees,CAPITAL,"NEW CONSTRUCTION,CONVERSION & RENOVATION",CAPITAL
Walsall Council,http://opendatacommunities.org/id/metropolitan-district-council/walsall ,WC142-443,30.09.2022,ADULT SOCIAL CARE,REDACTED,07/09/2022,"3,146.40",6541-Direct Payment,THIRD PARTY PAYMENTS,PRIVATE CONTRACTOR,REVENUE
Walsall Council,http://opendatacommunities.org/id/metropolitan-district-council/walsall ,WC142-444,30.09.2022,ADULT SOCIAL CARE,REDACTED,07/09/2022,476,6541-Direct Payment,THIRD PARTY PAYMENTS,PRIVATE CONTRACTOR,REVENUE
Walsall Council,http://opendatacommunities.org/id/metropolitan-district-council/walsall ,WC142-445,30.09.2022,"ECONOMY, ENVIRONMENT & COMMUNITIES",ALCIUM SOFTWARE,01/09/2022,"5,437.50",6313-Professional Fees & Services,SUPPLIES & SERVICES,SERVICES,REVENUE
Walsall Council,http://opendatacommunities.org/id/metropolitan-district-council/walsall ,WC142-446,30.09.2022,CHILDRENS,ALDRIDGE & BARONS LIMITED,12/09/2022,"5,900.00",6241-Hire of Vehicle with Driver,TRANSPORT,DIRECT TRANSPORT COSTS,REVENUE
Walsall Council,http://opendatacommunities.org/id/metropolitan-district-council/walsall ,WC142-447,30.09.2022,ADULT SOCIAL CARE,REDACTED,07/09/2022,"1,896.00",6541-Direct Payment,THIRD PARTY PAYMENTS,PRIVATE CONTRACTOR,REVENUE
Walsall Council,http://opendatacommunities.org/id/metropolitan-district-council/walsall ,WC142-448,30.09.2022,"ECONOMY, ENVIRONMENT & COMMUNITIES",REDACTED,14/09/2022,"1,700.00",6414-Events & Visual Arts,SUPPLIES & SERVICES,SERVICES,REVENUE
Walsall Council,http://opendatacommunities.org/id/metropolitan-district-council/walsall ,WC142-449,30.09.2022,ADULT SOCIAL CARE,ALEXANDRA HOUSE CARE SERVICES LTD T/A STONEBRIDGE NURSING HOME,26/09/2022,"7,434.72",6541-Residential,THIRD PARTY PAYMENTS,PRIVATE CONTRACTOR,REVENUE
Walsall Council,http://opendatacommunities.org/id/metropolitan-district-council/walsall ,WC142-450,30.09.2022,ADULT SOCIAL CARE,REDACTED,07/09/2022,"1,214.40",6541-Direct Payment,THIRD PARTY PAYMENTS,PRIVATE CONTRACTOR,REVENUE
Walsall Council,http://opendatacommunities.org/id/metropolitan-district-council/walsall ,WC142-451,30.09.2022,CHILDRENS,REDACTED,21/09/2022,318.68,6223-Special Guardianship Orders,TRANSFER PAYMENTS,CHILDREN SOCIAL SERVICES CLIENT,REVENUE
Walsall Council,http://opendatacommunities.org/id/metropolitan-district-council/walsall ,WC142-452,30.09.2022,CHILDRENS,ALL STARS WALSALL CIC,15/09/2022,"6,010.98",6213-Professional Fees & Services,SUPPLIES & SERVICES,SERVICES,REVENUE
Walsall Council,http://opendatacommunities.org/id/metropolitan-district-council/walsall ,WC142-453,30.09.2022,CHILDRENS,ALLIANCE CARE LTD,15/09/2022,"1,470.49",6220-Professional Fees & Services,SUPPLIES & SERVICES,SERVICES,REVENUE
Walsall Council,http://opendatacommunities.org/id/metropolitan-district-council/walsall ,WC142-454,30.09.2022,CHILDRENS,ALLIANCE CARE LTD,15/09/2022,"1,626.57",6220-Professional Fees & Services,SUPPLIES & SERVICES,SERVICES,REVENUE
Walsall Council,http://opendatacommunities.org/id/metropolitan-district-council/walsall ,WC142-455,30.09.2022,CHILDRENS,ALLIANCE CARE LTD,15/09/2022,"1,800.00",6220-Professional Fees & Services,SUPPLIES & SERVICES,SERVICES,REVENUE
Walsall Council,http://opendatacommunities.org/id/metropolitan-district-council/walsall ,WC142-456,30.09.2022,CHILDRENS,ALLIANCE CARE LTD,15/09/2022,828,6211-Agency Staff,DIRECT EMPLOYEES,AGENCY,REVENUE
Walsall Council,http://opendatacommunities.org/id/metropolitan-district-council/walsall ,WC142-457,30.09.2022,ECONOMY & ENVIRONMENT CAPITAL,ALLIANCE LEISURE SERVICES LTD,05/09/2022,"82,599.99",7200-Site Works Contractors,CAPITAL,"NEW CONSTRUCTION,CONVERSION & RENOVATION",CAPITAL
Walsall Council,http://opendatacommunities.org/id/metropolitan-district-council/walsall ,WC142-458,30.09.2022,RESOURCES AND TRANSFORMATION,ALLIED PUBLICITY SERVICES (MANCHESTER) LIMITED T/A APS GROUP,02/09/2022,"1,799.89",6312-External Printing Services,SUPPLIES & SERVICES,PRINTING STATIONERY & GENERAL OFFICE,REVENUE
Walsall Council,http://opendatacommunities.org/id/metropolitan-district-council/walsall ,WC142-459,30.09.2022,RESOURCES AND TRANSFORMATION,ALLSORTS OFFICE SUPPLIES LTD,01/09/2022,340,6310-Purchase of Furniture & Equipment,SUPPLIES & SERVICES,EQUIPMENT FURNITURE & MATERIALS,REVENUE
Walsall Council,http://opendatacommunities.org/id/metropolitan-district-council/walsall ,WC142-460,30.09.2022,RESOURCES AND TRANSFORMATION,ALLSORTS OFFICE SUPPLIES LTD,01/09/2022,742,6310-Purchase of Furniture & Equipment,SUPPLIES & SERVICES,EQUIPMENT FURNITURE & MATERIALS,REVENUE
Walsall Council,http://opendatacommunities.org/id/metropolitan-district-council/walsall ,WC142-461,30.09.2022,RESOURCES AND TRANSFORMATION,ALLSORTS OFFICE SUPPLIES LTD,01/09/2022,987.45,6310-Purchase of Furniture & Equipment,SUPPLIES & SERVICES,EQUIPMENT FURNITURE & MATERIALS,REVENUE
Walsall Council,http://opendatacommunities.org/id/metropolitan-district-council/walsall ,WC142-462,30.09.2022,RESOURCES AND TRANSFORMATION,ALLSORTS OFFICE SUPPLIES LTD,01/09/2022,"1,328.00",6310-Purchase of Furniture & Equipment,SUPPLIES & SERVICES,EQUIPMENT FURNITURE & MATERIALS,REVENUE
Walsall Council,http://opendatacommunities.org/id/metropolitan-district-council/walsall ,WC142-463,30.09.2022,RESOURCES AND TRANSFORMATION,ALLSORTS OFFICE SUPPLIES LTD,01/09/2022,"1,536.00",6310-Purchase of Furniture & Equipment,SUPPLIES & SERVICES,EQUIPMENT FURNITURE & MATERIALS,REVENUE
Walsall Council,http://opendatacommunities.org/id/metropolitan-district-council/walsall ,WC142-464,30.09.2022,RESOURCES AND TRANSFORMATION,ALLSORTS OFFICE SUPPLIES LTD,01/09/2022,"1,800.00",6310-Purchase of Furniture & Equipment,SUPPLIES & SERVICES,EQUIPMENT FURNITURE & MATERIALS,REVENUE
Walsall Council,http://opendatacommunities.org/id/metropolitan-district-council/walsall ,WC142-465,30.09.2022,RESOURCES AND TRANSFORMATION,ALLSORTS OFFICE SUPPLIES LTD,01/09/2022,"1,892.00",6310-Purchase of Furniture & Equipment,SUPPLIES & SERVICES,EQUIPMENT FURNITURE & MATERIALS,REVENUE
Walsall Council,http://opendatacommunities.org/id/metropolitan-district-council/walsall ,WC142-466,30.09.2022,RESOURCES AND TRANSFORMATION,ALLSORTS OFFICE SUPPLIES LTD,01/09/2022,"1,928.00",6310-Purchase of Furniture & Equipment,SUPPLIES & SERVICES,EQUIPMENT FURNITURE & MATERIALS,REVENUE
Walsall Council,http://opendatacommunities.org/id/metropolitan-district-council/walsall ,WC142-467,30.09.2022,RESOURCES AND TRANSFORMATION,ALLSORTS OFFICE SUPPLIES LTD,01/09/2022,"2,260.32",6310-Purchase of Furniture & Equipment,SUPPLIES & SERVICES,EQUIPMENT FURNITURE & MATERIALS,REVENUE
Walsall Council,http://opendatacommunities.org/id/metropolitan-district-council/walsall ,WC142-468,30.09.2022,RESOURCES AND TRANSFORMATION,ALLSORTS OFFICE SUPPLIES LTD,01/09/2022,"2,700.00",6310-Purchase of Furniture & Equipment,SUPPLIES & SERVICES,EQUIPMENT FURNITURE & MATERIALS,REVENUE
Walsall Council,http://opendatacommunities.org/id/metropolitan-district-council/walsall ,WC142-469,30.09.2022,RESOURCES AND TRANSFORMATION,ALLSORTS OFFICE SUPPLIES LTD,06/09/2022,"2,386.32",6310-Purchase of Furniture & Equipment,SUPPLIES & SERVICES,EQUIPMENT FURNITURE & MATERIALS,REVENUE
Walsall Council,http://opendatacommunities.org/id/metropolitan-district-council/walsall ,WC142-470,30.09.2022,RESOURCES AND TRANSFORMATION,ALLSORTS OFFICE SUPPLIES LTD,06/09/2022,"2,934.00",6310-Purchase of Furniture & Equipment,SUPPLIES & SERVICES,EQUIPMENT FURNITURE & MATERIALS,REVENUE
Walsall Council,http://opendatacommunities.org/id/metropolitan-district-council/walsall ,WC142-471,30.09.2022,RESOURCES AND TRANSFORMATION,ALLSORTS OFFICE SUPPLIES LTD,06/09/2022,"6,304.00",6310-Purchase of Furniture & Equipment,SUPPLIES & SERVICES,EQUIPMENT FURNITURE & MATERIALS,REVENUE
Walsall Council,http://opendatacommunities.org/id/metropolitan-district-council/walsall ,WC142-472,30.09.2022,RESOURCES AND TRANSFORMATION,ALLSORTS OFFICE SUPPLIES LTD,06/09/2022,"7,222.00",6310-Purchase of Furniture & Equipment,SUPPLIES & SERVICES,EQUIPMENT FURNITURE & MATERIALS,REVENUE
Walsall Council,http://opendatacommunities.org/id/metropolitan-district-council/walsall ,WC142-473,30.09.2022,RESOURCES AND TRANSFORMATION,ALLSORTS OFFICE SUPPLIES LTD,06/09/2022,"14,376.00",6310-Purchase of Furniture & Equipment,SUPPLIES & SERVICES,EQUIPMENT FURNITURE & MATERIALS,REVENUE
Walsall Council,http://opendatacommunities.org/id/metropolitan-district-council/walsall ,WC142-474,30.09.2022,RESOURCES AND TRANSFORMATION,ALLSORTS OFFICE SUPPLIES LTD,06/09/2022,"17,805.68",6310-Purchase of Furniture & Equipment,SUPPLIES & SERVICES,EQUIPMENT FURNITURE & MATERIALS,REVENUE
Walsall Council,http://opendatacommunities.org/id/metropolitan-district-council/walsall ,WC142-475,30.09.2022,ADULT SOCIAL CARE,ALMA COURT,26/09/2022,"4,805.72",6541-Nursing EMI,THIRD PARTY PAYMENTS,PRIVATE CONTRACTOR,REVENUE
Walsall Council,http://opendatacommunities.org/id/metropolitan-district-council/walsall ,WC142-476,30.09.2022,ADULT SOCIAL CARE,ALMA COURT,26/09/2022,"4,000.00",6541-Nursing EMI,THIRD PARTY PAYMENTS,PRIVATE CONTRACTOR,REVENUE
Walsall Council,http://opendatacommunities.org/id/metropolitan-district-council/walsall ,WC142-477,30.09.2022,ADULT SOCIAL CARE,ALMA COURT,26/09/2022,"4,263.00",6541-Residential,THIRD PARTY PAYMENTS,PRIVATE CONTRACTOR,REVENUE
Walsall Council,http://opendatacommunities.org/id/metropolitan-district-council/walsall ,WC142-478,30.09.2022,ADULT SOCIAL CARE,ALMA COURT,26/09/2022,"6,718.40",6541-Residential,THIRD PARTY PAYMENTS,PRIVATE CONTRACTOR,REVENUE
Walsall Council,http://opendatacommunities.org/id/metropolitan-district-council/walsall ,WC142-479,30.09.2022,ADULT SOCIAL CARE,ALMA COURT,26/09/2022,"3,667.80",6541-Nursing EMI,THIRD PARTY PAYMENTS,PRIVATE CONTRACTOR,REVENUE
Walsall Council,http://opendatacommunities.org/id/metropolitan-district-council/walsall ,WC142-480,30.09.2022,CHILDRENS,ALMOZENE NURSERY & CHILDRENS CENTRE,09/09/2022,"6,867.00",1184-Other-Grants to Other Orgs,SUPPLIES & SERVICES,GRANTS (EXP) & SUBSCRIPTIONS,REVENUE
Walsall Council,http://opendatacommunities.org/id/metropolitan-district-council/walsall ,WC142-481,30.09.2022,CHILDRENS,ALMOZENE NURSERY & CHILDRENS CENTRE,09/09/2022,"15,346.80",1184-Other-Grants to Other Orgs,SUPPLIES & SERVICES,GRANTS (EXP) & SUBSCRIPTIONS,REVENUE
Walsall Council,http://opendatacommunities.org/id/metropolitan-district-council/walsall ,WC142-482,30.09.2022,ADULT SOCIAL CARE,ALPHA HEALTH CARE LTD,26/09/2022,"2,889.52",6541-Residential EMI,THIRD PARTY PAYMENTS,PRIVATE CONTRACTOR,REVENUE
Walsall Council,http://opendatacommunities.org/id/metropolitan-district-council/walsall ,WC142-483,30.09.2022,ADULT SOCIAL CARE,ALPHA HEALTH CARE LTD,26/09/2022,"1,283.19",6541-Nursing EMI,THIRD PARTY PAYMENTS,PRIVATE CONTRACTOR,REVENUE
Walsall Council,http://opendatacommunities.org/id/metropolitan-district-council/walsall ,WC142-484,30.09.2022,ADULT SOCIAL CARE,ALPHA HEALTH CARE LTD,26/09/2022,"6,343.36",6541-Residential,THIRD PARTY PAYMENTS,PRIVATE CONTRACTOR,REVENUE
Walsall Council,http://opendatacommunities.org/id/metropolitan-district-council/walsall ,WC142-485,30.09.2022,ADULT SOCIAL CARE,ALPHA HEALTH CARE LTD,26/09/2022,"3,132.12",6541-Nursing EMI,THIRD PARTY PAYMENTS,PRIVATE CONTRACTOR,REVENUE
Walsall Council,http://opendatacommunities.org/id/metropolitan-district-council/walsall ,WC142-486,30.09.2022,ADULT SOCIAL CARE,ALPHA HEALTH CARE LTD,26/09/2022,"7,105.00",6541-Residential,THIRD PARTY PAYMENTS,PRIVATE CONTRACTOR,REVENUE
Walsall Council,http://opendatacommunities.org/id/metropolitan-district-council/walsall ,WC142-487,30.09.2022,ADULT SOCIAL CARE,ALPHA HEALTH CARE LTD,26/09/2022,"3,374.96",6541-Residential EMI,THIRD PARTY PAYMENTS,PRIVATE CONTRACTOR,REVENUE
Walsall Council,http://opendatacommunities.org/id/metropolitan-district-council/walsall ,WC142-488,30.09.2022,ADULT SOCIAL CARE,ALPHA HEALTH CARE LTD,26/09/2022,"2,763.80",6541-Nursing EMI,THIRD PARTY PAYMENTS,PRIVATE CONTRACTOR,REVENUE
Walsall Council,http://opendatacommunities.org/id/metropolitan-district-council/walsall ,WC142-489,30.09.2022,ADULT SOCIAL CARE,ALPHA HEALTH CARE LTD,26/09/2022,"7,067.80",6541-Nursing EMI,THIRD PARTY PAYMENTS,PRIVATE CONTRACTOR,REVENUE
Walsall Council,http://opendatacommunities.org/id/metropolitan-district-council/walsall ,WC142-490,30.09.2022,ADULT SOCIAL CARE,ALPHA HEALTH CARE LTD,26/09/2022,"2,366.04",6541-Residential EMI,THIRD PARTY PAYMENTS,PRIVATE CONTRACTOR,REVENUE
Walsall Council,http://opendatacommunities.org/id/metropolitan-district-council/walsall ,WC142-491,30.09.2022,ADULT SOCIAL CARE,ALPHA HEALTH CARE LTD,26/09/2022,"5,428.57",6541-Professional Services-Priv Contractor & Other Agencies,THIRD PARTY PAYMENTS,PRIVATE CONTRACTOR,REVENUE
Walsall Council,http://opendatacommunities.org/id/metropolitan-district-council/walsall ,WC142-492,30.09.2022,ADULT SOCIAL CARE,ALPHA HEALTH CARE LTD,26/09/2022,"14,057.15",6541-Nursing EMI,THIRD PARTY PAYMENTS,PRIVATE CONTRACTOR,REVENUE
Walsall Council,http://opendatacommunities.org/id/metropolitan-district-council/walsall ,WC142-493,30.09.2022,ADULT SOCIAL CARE,ALPHA HEALTH CARE LTD,26/09/2022,"3,132.12",6541-Nursing EMI,THIRD PARTY PAYMENTS,PRIVATE CONTRACTOR,REVENUE
Walsall Council,http://opendatacommunities.org/id/metropolitan-district-council/walsall ,WC142-494,30.09.2022,ADULT SOCIAL CARE,ALPHA HEALTH CARE LTD,26/09/2022,"3,398.04",6541-Residential EMI,THIRD PARTY PAYMENTS,PRIVATE CONTRACTOR,REVENUE
Walsall Council,http://opendatacommunities.org/id/metropolitan-district-council/walsall ,WC142-495,30.09.2022,ADULT SOCIAL CARE,ALPHA HEALTH CARE LTD,26/09/2022,"3,374.96",6541-Residential EMI,THIRD PARTY PAYMENTS,PRIVATE CONTRACTOR,REVENUE
Walsall Council,http://opendatacommunities.org/id/metropolitan-district-council/walsall ,WC142-496,30.09.2022,ADULT SOCIAL CARE,ALPHA HEALTH CARE LTD,26/09/2022,"3,958.52",6541-Residential,THIRD PARTY PAYMENTS,PRIVATE CONTRACTOR,REVENUE
Walsall Council,http://opendatacommunities.org/id/metropolitan-district-council/walsall ,WC142-497,30.09.2022,ADULT SOCIAL CARE,ALPHA HEALTH CARE LTD,26/09/2022,"3,836.28",6541-Nursing,THIRD PARTY PAYMENTS,PRIVATE CONTRACTOR,REVENUE
Walsall Council,http://opendatacommunities.org/id/metropolitan-district-council/walsall ,WC142-498,30.09.2022,ADULT SOCIAL CARE,ALPHA HEALTH CARE LTD,26/09/2022,"2,766.04",6541-Residential EMI,THIRD PARTY PAYMENTS,PRIVATE CONTRACTOR,REVENUE
Walsall Council,http://opendatacommunities.org/id/metropolitan-district-council/walsall ,WC142-499,30.09.2022,ADULT SOCIAL CARE,ALPHA HEALTH CARE LTD,26/09/2022,"3,980.00",6541-Residential,THIRD PARTY PAYMENTS,PRIVATE CONTRACTOR,REVENUE
Walsall Council,http://opendatacommunities.org/id/metropolitan-district-council/walsall ,WC142-500,30.09.2022,ADULT SOCIAL CARE,ALPHA HEALTH CARE LTD,26/09/2022,"3,090.44",6541-Nursing EMI,THIRD PARTY PAYMENTS,PRIVATE CONTRACTOR,REVENUE
Walsall Council,http://opendatacommunities.org/id/metropolitan-district-council/walsall ,WC142-501,30.09.2022,ADULT SOCIAL CARE,ALPHA HEALTH CARE LTD,26/09/2022,"5,740.84",6541-Residential,THIRD PARTY PAYMENTS,PRIVATE CONTRACTOR,REVENUE
Walsall Council,http://opendatacommunities.org/id/metropolitan-district-council/walsall ,WC142-502,30.09.2022,ADULT SOCIAL CARE,ALPHA HEALTH CARE LTD,26/09/2022,"3,105.16",6541-Nursing EMI,THIRD PARTY PAYMENTS,PRIVATE CONTRACTOR,REVENUE
Walsall Council,http://opendatacommunities.org/id/metropolitan-district-council/walsall ,WC142-503,30.09.2022,ADULT SOCIAL CARE,ALPHA HEALTH CARE LTD,26/09/2022,"2,763.80",6541-Nursing EMI,THIRD PARTY PAYMENTS,PRIVATE CONTRACTOR,REVENUE
Walsall Council,http://opendatacommunities.org/id/metropolitan-district-council/walsall ,WC142-504,30.09.2022,ADULT SOCIAL CARE,ALPHA HEALTH CARE LTD,26/09/2022,"2,998.00",6541-Nursing,THIRD PARTY PAYMENTS,PRIVATE CONTRACTOR,REVENUE
Walsall Council,http://opendatacommunities.org/id/metropolitan-district-council/walsall ,WC142-505,30.09.2022,ADULT SOCIAL CARE,ALPHA HEALTH CARE LTD,26/09/2022,"3,667.80",6541-Nursing EMI,THIRD PARTY PAYMENTS,PRIVATE CONTRACTOR,REVENUE
Walsall Council,http://opendatacommunities.org/id/metropolitan-district-council/walsall ,WC142-506,30.09.2022,ADULT SOCIAL CARE,ALPHA HEALTH CARE LTD,26/09/2022,"2,630.96",6541-Residential,THIRD PARTY PAYMENTS,PRIVATE CONTRACTOR,REVENUE
Walsall Council,http://opendatacommunities.org/id/metropolitan-district-council/walsall ,WC142-507,30.09.2022,ADULT SOCIAL CARE,ALPHA HEALTH CARE LTD,26/09/2022,"3,085.88",6541-Nursing,THIRD PARTY PAYMENTS,PRIVATE CONTRACTOR,REVENUE
Walsall Council,http://opendatacommunities.org/id/metropolitan-district-council/walsall ,WC142-508,30.09.2022,ADULT SOCIAL CARE,ALPHA HEALTH CARE LTD,26/09/2022,"5,406.45",6541-Nursing,THIRD PARTY PAYMENTS,PRIVATE CONTRACTOR,REVENUE
Walsall Council,http://opendatacommunities.org/id/metropolitan-district-council/walsall ,WC142-509,30.09.2022,ADULT SOCIAL CARE,ALPHA HEALTH CARE LTD,26/09/2022,"2,171.43",6541-Professional Services-Priv Contractor & Other Agencies,THIRD PARTY PAYMENTS,PRIVATE CONTRACTOR,REVENUE
Walsall Council,http://opendatacommunities.org/id/metropolitan-district-council/walsall ,WC142-510,30.09.2022,CHILDRENS,ALPHA TRAINING ACADEMY UK LTD,16/09/2022,"19,998.00",1220-Top Up Funding -Grants to Schools,SUPPLIES & SERVICES,GRANTS (EXP) & SUBSCRIPTIONS,REVENUE
Walsall Council,http://opendatacommunities.org/id/metropolitan-district-council/walsall ,WC142-511,30.09.2022,CHILDRENS,ALPHABIOLABS,01/09/2022,"1,896.40",6222-Professional Fees & Services,SUPPLIES & SERVICES,SERVICES,REVENUE
Walsall Council,http://opendatacommunities.org/id/metropolitan-district-council/walsall ,WC142-512,30.09.2022,CHILDRENS CAPITAL,ALTERNATIVE COMMUNICATIONS SYSTEMS LTD,05/09/2022,"1,464.02",7150-Site Works Contractors,CAPITAL,"NEW CONSTRUCTION,CONVERSION & RENOVATION",CAPITAL
Walsall Council,http://opendatacommunities.org/id/metropolitan-district-council/walsall ,WC142-513,30.09.2022,RESOURCES AND TRANSFORMATION,ALZEC VISION CIC,02/09/2022,"3,394.22",6312-Grants to Other Orgs,SUPPLIES & SERVICES,GRANTS (EXP) & SUBSCRIPTIONS,REVENUE
Walsall Council,http://opendatacommunities.org/id/metropolitan-district-council/walsall ,WC142-514,30.09.2022,CHILDRENS,AMAH NURSERIES LIMITED T/A BANANA MOON WALSALL,09/09/2022,"12,875.63",1184-Other-Grants to Other Orgs,SUPPLIES & SERVICES,GRANTS (EXP) & SUBSCRIPTIONS,REVENUE
Walsall Council,http://opendatacommunities.org/id/metropolitan-district-council/walsall ,WC142-515,30.09.2022,CHILDRENS,AMAH NURSERIES LIMITED T/A BANANA MOON WALSALL,09/09/2022,"43,117.20",1184-Other-Grants to Other Orgs,SUPPLIES & SERVICES,GRANTS (EXP) & SUBSCRIPTIONS,REVENUE
Walsall Council,http://opendatacommunities.org/id/metropolitan-district-council/walsall ,WC142-516,30.09.2022,ADULT SOCIAL CARE,REDACTED,07/09/2022,"3,624.75",6541-Direct Payment,THIRD PARTY PAYMENTS,PRIVATE CONTRACTOR,REVENUE
Walsall Council,http://opendatacommunities.org/id/metropolitan-district-council/walsall ,WC142-517,30.09.2022,ADULT SOCIAL CARE,REDACTED,07/09/2022,"2,063.60",6541-Direct Payment,THIRD PARTY PAYMENTS,PRIVATE CONTRACTOR,REVENUE
Walsall Council,http://opendatacommunities.org/id/metropolitan-district-council/walsall ,WC142-518,30.09.2022,"ECONOMY, ENVIRONMENT & COMMUNITIES",AMEY LG LIMITED,06/09/2022,"1,582.12",6430-Repair & Maintenance of Furniture & Equipment,SUPPLIES & SERVICES,EQUIPMENT FURNITURE & MATERIALS,REVENUE
Walsall Council,http://opendatacommunities.org/id/metropolitan-district-council/walsall ,WC142-519,30.09.2022,"ECONOMY, ENVIRONMENT & COMMUNITIES",AMEY LG LIMITED,30/09/2022,"-3,518.91",6430-Professional Fees & Services,SUPPLIES & SERVICES,SERVICES,REVENUE
Walsall Council,http://opendatacommunities.org/id/metropolitan-district-council/walsall ,WC142-520,30.09.2022,"ECONOMY, ENVIRONMENT & COMMUNITIES",AMEY LG LIMITED,30/09/2022,"3,518.91",6430-Professional Fees & Services,SUPPLIES & SERVICES,SERVICES,REVENUE
Walsall Council,http://opendatacommunities.org/id/metropolitan-district-council/walsall ,WC142-521,30.09.2022,"ECONOMY, ENVIRONMENT & COMMUNITIES",AMEY LG LIMITED,21/09/2022,"2,472.08",6411-Professional Services-Priv Contractor & Other Agencies,THIRD PARTY PAYMENTS,PRIVATE CONTRACTOR,REVENUE
Walsall Council,http://opendatacommunities.org/id/metropolitan-district-council/walsall ,WC142-522,30.09.2022,"ECONOMY, ENVIRONMENT & COMMUNITIES",AMEY LG LIMITED,30/09/2022,"3,971.62",6411-Professional Services-Priv Contractor & Other Agencies,THIRD PARTY PAYMENTS,PRIVATE CONTRACTOR,REVENUE
Walsall Council,http://opendatacommunities.org/id/metropolitan-district-council/walsall ,WC142-523,30.09.2022,"ECONOMY, ENVIRONMENT & COMMUNITIES",AMEY LG LIMITED,30/09/2022,"16,297.80",6411-Materials,SUPPLIES & SERVICES,EQUIPMENT FURNITURE & MATERIALS,REVENUE
Walsall Council,http://opendatacommunities.org/id/metropolitan-district-council/walsall ,WC142-524,30.09.2022,ADULT SOCIAL CARE,AMG NURSING CARE SERVICES,21/09/2022,"4,068.40",6541-Community Supported Living/Supported Accommodation,THIRD PARTY PAYMENTS,PRIVATE CONTRACTOR,REVENUE
Walsall Council,http://opendatacommunities.org/id/metropolitan-district-council/walsall ,WC142-525,30.09.2022,CHILDRENS,AMG NURSING CARE SERVICES,02/09/2022,325.28,6220-Professional Fees & Services,SUPPLIES & SERVICES,SERVICES,REVENUE
Walsall Council,http://opendatacommunities.org/id/metropolitan-district-council/walsall ,WC142-526,30.09.2022,CHILDRENS,AMG NURSING CARE SERVICES,02/09/2022,"1,863.41",6220-Professional Fees & Services,SUPPLIES & SERVICES,SERVICES,REVENUE
Walsall Council,http://opendatacommunities.org/id/metropolitan-district-council/walsall ,WC142-527,30.09.2022,CHILDRENS,AMG NURSING CARE SERVICES,21/09/2022,"1,614.27",6220-Professional Fees & Services,SUPPLIES & SERVICES,SERVICES,REVENUE
Walsall Council,http://opendatacommunities.org/id/metropolitan-district-council/walsall ,WC142-528,30.09.2022,CHILDRENS,AMG NURSING CARE SERVICES,21/09/2022,406.6,6220-Professional Fees & Services,SUPPLIES & SERVICES,SERVICES,REVENUE
Walsall Council,http://opendatacommunities.org/id/metropolitan-district-council/walsall ,WC142-529,30.09.2022,CHILDRENS,AMG NURSING CARE SERVICES,21/09/2022,"1,511.82",6220-Professional Fees & Services,SUPPLIES & SERVICES,SERVICES,REVENUE
Walsall Council,http://opendatacommunities.org/id/metropolitan-district-council/walsall ,WC142-530,30.09.2022,CHILDRENS,AMG NURSING CARE SERVICES,28/09/2022,497.9,6220-Professional Fees & Services,SUPPLIES & SERVICES,SERVICES,REVENUE
Walsall Council,http://opendatacommunities.org/id/metropolitan-district-council/walsall ,WC142-531,30.09.2022,CHILDRENS,AMRP RELOCATIONS,14/09/2022,"-1,000.00",6222-Accommodation and Related Costs-Assistance to S/S Clients,TRANSFER PAYMENTS,ADULT SOCIAL SERVICES CLIENT,REVENUE
Walsall Council,http://opendatacommunities.org/id/metropolitan-district-council/walsall ,WC142-532,30.09.2022,CHILDRENS,AMRP RELOCATIONS,14/09/2022,800,6222-Accommodation and Related Costs-Assistance to S/S Clients,TRANSFER PAYMENTS,ADULT SOCIAL SERVICES CLIENT,REVENUE
Walsall Council,http://opendatacommunities.org/id/metropolitan-district-council/walsall ,WC142-533,30.09.2022,CHILDRENS,AMRP RELOCATIONS,14/09/2022,"1,000.00",6222-Accommodation and Related Costs-Assistance to S/S Clients,TRANSFER PAYMENTS,ADULT SOCIAL SERVICES CLIENT,REVENUE
Walsall Council,http://opendatacommunities.org/id/metropolitan-district-council/walsall ,WC142-534,30.09.2022,CHILDRENS,REDACTED,21/09/2022,584,6223-Foster Carers Maintenance Allowance,TRANSFER PAYMENTS,CHILDREN SOCIAL SERVICES CLIENT,REVENUE
Walsall Council,http://opendatacommunities.org/id/metropolitan-district-council/walsall ,WC142-535,30.09.2022,CHILDRENS,REDACTED,21/09/2022,340,6223-Internal Foster Carers-Carer Fees,TRANSFER PAYMENTS,CHILDREN SOCIAL SERVICES CLIENT,REVENUE
Walsall Council,http://opendatacommunities.org/id/metropolitan-district-council/walsall ,WC142-536,30.09.2022,ADULT SOCIAL CARE,ANCHOR CARE HOMES LTD,26/09/2022,"2,366.04",6541-Residential EMI,THIRD PARTY PAYMENTS,PRIVATE CONTRACTOR,REVENUE
Walsall Council,http://opendatacommunities.org/id/metropolitan-district-council/walsall ,WC142-537,30.09.2022,ADULT SOCIAL CARE,ANCHOR CAREHOMES LTD - HARDEN HALL,26/09/2022,"2,366.04",6541-Residential EMI,THIRD PARTY PAYMENTS,PRIVATE CONTRACTOR,REVENUE
Walsall Council,http://opendatacommunities.org/id/metropolitan-district-council/walsall ,WC142-538,30.09.2022,ADULT SOCIAL CARE,ANCHOR CAREHOMES LTD - HARDEN HALL,26/09/2022,"2,366.04",6541-Residential EMI,THIRD PARTY PAYMENTS,PRIVATE CONTRACTOR,REVENUE
Walsall Council,http://opendatacommunities.org/id/metropolitan-district-council/walsall ,WC142-539,30.09.2022,ADULT SOCIAL CARE,ANCHOR CAREHOMES LTD - HARDEN HALL,26/09/2022,"2,366.04",6541-Residential EMI,THIRD PARTY PAYMENTS,PRIVATE CONTRACTOR,REVENUE
Walsall Council,http://opendatacommunities.org/id/metropolitan-district-council/walsall ,WC142-540,30.09.2022,ADULT SOCIAL CARE,ANCHOR CAREHOMES LTD - HARDEN HALL,26/09/2022,"2,366.04",6541-Residential EMI,THIRD PARTY PAYMENTS,PRIVATE CONTRACTOR,REVENUE
Walsall Council,http://opendatacommunities.org/id/metropolitan-district-council/walsall ,WC142-541,30.09.2022,ADULT SOCIAL CARE,ANCHOR CAREHOMES LTD - HARDEN HALL,26/09/2022,"2,366.04",6541-Residential EMI,THIRD PARTY PAYMENTS,PRIVATE CONTRACTOR,REVENUE
Walsall Council,http://opendatacommunities.org/id/metropolitan-district-council/walsall ,WC142-542,30.09.2022,ADULT SOCIAL CARE,ANCHOR CAREHOMES LTD - HARDEN HALL,26/09/2022,"2,417.00",6541-Residential EMI,THIRD PARTY PAYMENTS,PRIVATE CONTRACTOR,REVENUE
Walsall Council,http://opendatacommunities.org/id/metropolitan-district-council/walsall ,WC142-543,30.09.2022,ADULT SOCIAL CARE,ANCHOR CAREHOMES LTD - HARDEN HALL,26/09/2022,"2,366.04",6541-Residential EMI,THIRD PARTY PAYMENTS,PRIVATE CONTRACTOR,REVENUE
Walsall Council,http://opendatacommunities.org/id/metropolitan-district-council/walsall ,WC142-544,30.09.2022,ADULT SOCIAL CARE,ANCHOR CAREHOMES LTD - HARDEN HALL,26/09/2022,"2,366.04",6541-Residential EMI,THIRD PARTY PAYMENTS,PRIVATE CONTRACTOR,REVENUE
Walsall Council,http://opendatacommunities.org/id/metropolitan-district-council/walsall ,WC142-545,30.09.2022,ADULT SOCIAL CARE,ANCHOR CAREHOMES LTD - HARDEN HALL,26/09/2022,"2,095.40",6541-Residential,THIRD PARTY PAYMENTS,PRIVATE CONTRACTOR,REVENUE
Walsall Council,http://opendatacommunities.org/id/metropolitan-district-council/walsall ,WC142-546,30.09.2022,ADULT SOCIAL CARE,ANCHOR CAREHOMES LTD - HARDEN HALL,26/09/2022,"2,366.04",6541-Residential EMI,THIRD PARTY PAYMENTS,PRIVATE CONTRACTOR,REVENUE
Walsall Council,http://opendatacommunities.org/id/metropolitan-district-council/walsall ,WC142-547,30.09.2022,ADULT SOCIAL CARE,ANCHOR CAREHOMES LTD - HARDEN HALL,26/09/2022,"2,366.04",6541-Residential EMI,THIRD PARTY PAYMENTS,PRIVATE CONTRACTOR,REVENUE
Walsall Council,http://opendatacommunities.org/id/metropolitan-district-council/walsall ,WC142-548,30.09.2022,ADULT SOCIAL CARE,ANCHOR CAREHOMES LTD - HARDEN HALL,26/09/2022,"2,095.40",6541-Residential,THIRD PARTY PAYMENTS,PRIVATE CONTRACTOR,REVENUE
Walsall Council,http://opendatacommunities.org/id/metropolitan-district-council/walsall ,WC142-549,30.09.2022,ADULT SOCIAL CARE,ANCHOR CAREHOMES LTD - HARDEN HALL,26/09/2022,"2,566.04",6541-Residential EMI,THIRD PARTY PAYMENTS,PRIVATE CONTRACTOR,REVENUE
Walsall Council,http://opendatacommunities.org/id/metropolitan-district-council/walsall ,WC142-550,30.09.2022,ADULT SOCIAL CARE,ANCHOR CAREHOMES LTD - HARDEN HALL,26/09/2022,"2,095.40",6541-Residential,THIRD PARTY PAYMENTS,PRIVATE CONTRACTOR,REVENUE
Walsall Council,http://opendatacommunities.org/id/metropolitan-district-council/walsall ,WC142-551,30.09.2022,ADULT SOCIAL CARE,ANCHOR CAREHOMES LTD - HARDEN HALL,26/09/2022,"2,566.04",6541-Residential EMI,THIRD PARTY PAYMENTS,PRIVATE CONTRACTOR,REVENUE
Walsall Council,http://opendatacommunities.org/id/metropolitan-district-council/walsall ,WC142-552,30.09.2022,ADULT SOCIAL CARE,ANCHOR CAREHOMES LTD - HARDEN HALL,26/09/2022,"2,726.04",6541-Residential EMI,THIRD PARTY PAYMENTS,PRIVATE CONTRACTOR,REVENUE
Walsall Council,http://opendatacommunities.org/id/metropolitan-district-council/walsall ,WC142-553,30.09.2022,ADULT SOCIAL CARE,ANCHOR CAREHOMES LTD - HARDEN HALL,26/09/2022,"2,366.04",6541-Residential EMI,THIRD PARTY PAYMENTS,PRIVATE CONTRACTOR,REVENUE
Walsall Council,http://opendatacommunities.org/id/metropolitan-district-council/walsall ,WC142-554,30.09.2022,ADULT SOCIAL CARE,ANCHOR CAREHOMES LTD - HARDEN HALL,26/09/2022,"2,366.04",6541-Residential EMI,THIRD PARTY PAYMENTS,PRIVATE CONTRACTOR,REVENUE
Walsall Council,http://opendatacommunities.org/id/metropolitan-district-council/walsall ,WC142-555,30.09.2022,ADULT SOCIAL CARE,ANCHOR CAREHOMES LTD - HARDEN HALL,26/09/2022,"2,726.04",6541-Residential EMI,THIRD PARTY PAYMENTS,PRIVATE CONTRACTOR,REVENUE
Walsall Council,http://opendatacommunities.org/id/metropolitan-district-council/walsall ,WC142-556,30.09.2022,ADULT SOCIAL CARE,ANCHOR CAREHOMES LTD - HARDEN HALL,26/09/2022,"2,726.04",6541-Residential EMI,THIRD PARTY PAYMENTS,PRIVATE CONTRACTOR,REVENUE
Walsall Council,http://opendatacommunities.org/id/metropolitan-district-council/walsall ,WC142-557,30.09.2022,ADULT SOCIAL CARE,ANCHOR CAREHOMES LTD - HARDEN HALL,26/09/2022,"2,726.04",6541-Residential EMI,THIRD PARTY PAYMENTS,PRIVATE CONTRACTOR,REVENUE
Walsall Council,http://opendatacommunities.org/id/metropolitan-district-council/walsall ,WC142-558,30.09.2022,ADULT SOCIAL CARE,ANCHOR CAREHOMES LTD - HARDEN HALL,26/09/2022,"1,363.02",6541-Residential & Nursing Care Placements,THIRD PARTY PAYMENTS,PRIVATE CONTRACTOR,REVENUE
Walsall Council,http://opendatacommunities.org/id/metropolitan-district-council/walsall ,WC142-559,30.09.2022,ADULT SOCIAL CARE,ANCHOR CAREHOMES LTD - HARDEN HALL,26/09/2022,"2,726.04",6541-Residential EMI,THIRD PARTY PAYMENTS,PRIVATE CONTRACTOR,REVENUE
Walsall Council,http://opendatacommunities.org/id/metropolitan-district-council/walsall ,WC142-560,30.09.2022,ADULT SOCIAL CARE,ANCHOR CAREHOMES LTD - HARDEN HALL,26/09/2022,"2,366.04",6541-Residential EMI,THIRD PARTY PAYMENTS,PRIVATE CONTRACTOR,REVENUE
Walsall Council,http://opendatacommunities.org/id/metropolitan-district-council/walsall ,WC142-561,30.09.2022,ADULT SOCIAL CARE,ANCHOR CAREHOMES LTD - HARDEN HALL,26/09/2022,"2,646.04",6541-Residential EMI,THIRD PARTY PAYMENTS,PRIVATE CONTRACTOR,REVENUE
Walsall Council,http://opendatacommunities.org/id/metropolitan-district-council/walsall ,WC142-562,30.09.2022,ADULT SOCIAL CARE,ANCHOR CAREHOMES LTD - HARDEN HALL,26/09/2022,"2,726.04",6541-Residential EMI,THIRD PARTY PAYMENTS,PRIVATE CONTRACTOR,REVENUE
Walsall Council,http://opendatacommunities.org/id/metropolitan-district-council/walsall ,WC142-563,30.09.2022,CHILDRENS,REDACTED,21/09/2022,308.76,6223-Special Guardianship Orders,TRANSFER PAYMENTS,CHILDREN SOCIAL SERVICES CLIENT,REVENUE
Walsall Council,http://opendatacommunities.org/id/metropolitan-district-council/walsall ,WC142-564,30.09.2022,ADULT SOCIAL CARE,REDACTED,07/09/2022,"3,436.50",6541-Direct Payment,THIRD PARTY PAYMENTS,PRIVATE CONTRACTOR,REVENUE
Walsall Council,http://opendatacommunities.org/id/metropolitan-district-council/walsall ,WC142-565,30.09.2022,RESOURCES AND TRANSFORMATION,ANDREWS ELECTRICAL LTD,21/09/2022,"31,728.00",6310-Planned Maintenance,PREMISES,REPAIRS & MAINTENANCE,REVENUE
Walsall Council,http://opendatacommunities.org/id/metropolitan-district-council/walsall ,WC142-566,30.09.2022,RESOURCES AND TRANSFORMATION,ANDREWS ELECTRICAL LTD,22/09/2022,"1,850.00",6310-Planned Maintenance,PREMISES,REPAIRS & MAINTENANCE,REVENUE
Walsall Council,http://opendatacommunities.org/id/metropolitan-district-council/walsall ,WC142-567,30.09.2022,CHILDRENS CAPITAL,ANDREWS ELECTRICAL LTD,22/09/2022,"18,958.00",7150-Site Works Contractors,CAPITAL,"NEW CONSTRUCTION,CONVERSION & RENOVATION",CAPITAL
Walsall Council,http://opendatacommunities.org/id/metropolitan-district-council/walsall ,WC142-568,30.09.2022,CHILDRENS,REDACTED,21/09/2022,363.24,6223-Special Guardianship Orders,TRANSFER PAYMENTS,CHILDREN SOCIAL SERVICES CLIENT,REVENUE
Walsall Council,http://opendatacommunities.org/id/metropolitan-district-council/walsall ,WC142-569,30.09.2022,CHILDRENS,REDACTED,21/09/2022,496.04,6223-Special Guardianship Orders,TRANSFER PAYMENTS,CHILDREN SOCIAL SERVICES CLIENT,REVENUE
Walsall Council,http://opendatacommunities.org/id/metropolitan-district-council/walsall ,WC142-570,30.09.2022,CHILDRENS,REDACTED,21/09/2022,305.2,6223-Special Guardianship Orders,TRANSFER PAYMENTS,CHILDREN SOCIAL SERVICES CLIENT,REVENUE
Walsall Council,http://opendatacommunities.org/id/metropolitan-district-council/walsall ,WC142-571,30.09.2022,CHILDRENS,ANGELS AND BUTTERFLIES CHILDMINDING,09/09/2022,858.38,1184-Other-Grants to Other Orgs,SUPPLIES & SERVICES,GRANTS (EXP) & SUBSCRIPTIONS,REVENUE
Walsall Council,http://opendatacommunities.org/id/metropolitan-district-council/walsall ,WC142-572,30.09.2022,CHILDRENS,ANGELS AND BUTTERFLIES CHILDMINDING,09/09/2022,"4,384.80",1184-Other-Grants to Other Orgs,SUPPLIES & SERVICES,GRANTS (EXP) & SUBSCRIPTIONS,REVENUE
Walsall Council,http://opendatacommunities.org/id/metropolitan-district-council/walsall ,WC142-573,30.09.2022,ADULT SOCIAL CARE,REDACTED,21/09/2022,673.75,6541-Shared Lives,THIRD PARTY PAYMENTS,PRIVATE CONTRACTOR,REVENUE
Walsall Council,http://opendatacommunities.org/id/metropolitan-district-council/walsall ,WC142-574,30.09.2022,CHILDRENS,REDACTED,21/09/2022,340,6223-Internal Foster Carers-Carer Fees,TRANSFER PAYMENTS,CHILDREN SOCIAL SERVICES CLIENT,REVENUE
Walsall Council,http://opendatacommunities.org/id/metropolitan-district-council/walsall ,WC142-575,30.09.2022,CHILDRENS,REDACTED,21/09/2022,689,6223-Foster Carers Maintenance Allowance,TRANSFER PAYMENTS,CHILDREN SOCIAL SERVICES CLIENT,REVENUE
Walsall Council,http://opendatacommunities.org/id/metropolitan-district-council/walsall ,WC142-576,30.09.2022,"ECONOMY, ENVIRONMENT & COMMUNITIES",REDACTED,29/09/2022,400,6414-Professional Fees & Services,SUPPLIES & SERVICES,SERVICES,REVENUE
Walsall Council,http://opendatacommunities.org/id/metropolitan-district-council/walsall ,WC142-577,30.09.2022,ADULT SOCIAL CARE,REDACTED,07/09/2022,350,6541-Direct Payment,THIRD PARTY PAYMENTS,PRIVATE CONTRACTOR,REVENUE
Walsall Council,http://opendatacommunities.org/id/metropolitan-district-council/walsall ,WC142-578,30.09.2022,CHILDRENS,REDACTED,21/09/2022,429.04,6223-Special Guardianship Orders,TRANSFER PAYMENTS,CHILDREN SOCIAL SERVICES CLIENT,REVENUE
Walsall Council,http://opendatacommunities.org/id/metropolitan-district-council/walsall ,WC142-579,30.09.2022,ADULT SOCIAL CARE,ANSON COURT RESIDENTIAL HOME,26/09/2022,"2,366.04",6541-Residential EMI,THIRD PARTY PAYMENTS,PRIVATE CONTRACTOR,REVENUE
Walsall Council,http://opendatacommunities.org/id/metropolitan-district-council/walsall ,WC142-580,30.09.2022,ADULT SOCIAL CARE,ANSON COURT RESIDENTIAL HOME,26/09/2022,"2,366.04",6541-Residential EMI,THIRD PARTY PAYMENTS,PRIVATE CONTRACTOR,REVENUE
Walsall Council,http://opendatacommunities.org/id/metropolitan-district-council/walsall ,WC142-581,30.09.2022,ADULT SOCIAL CARE,ANSON COURT RESIDENTIAL HOME,26/09/2022,"2,366.04",6541-Residential EMI,THIRD PARTY PAYMENTS,PRIVATE CONTRACTOR,REVENUE
Walsall Council,http://opendatacommunities.org/id/metropolitan-district-council/walsall ,WC142-582,30.09.2022,ADULT SOCIAL CARE,ANSON COURT RESIDENTIAL HOME,26/09/2022,"2,366.04",6541-Residential EMI,THIRD PARTY PAYMENTS,PRIVATE CONTRACTOR,REVENUE
Walsall Council,http://opendatacommunities.org/id/metropolitan-district-council/walsall ,WC142-583,30.09.2022,ADULT SOCIAL CARE,ANSON COURT RESIDENTIAL HOME,26/09/2022,"2,366.04",6541-Residential EMI,THIRD PARTY PAYMENTS,PRIVATE CONTRACTOR,REVENUE
Walsall Council,http://opendatacommunities.org/id/metropolitan-district-council/walsall ,WC142-584,30.09.2022,ADULT SOCIAL CARE,ANSON COURT RESIDENTIAL HOME,26/09/2022,"2,215.40",6541-Residential,THIRD PARTY PAYMENTS,PRIVATE CONTRACTOR,REVENUE
Walsall Council,http://opendatacommunities.org/id/metropolitan-district-council/walsall ,WC142-585,30.09.2022,ADULT SOCIAL CARE,ANSON COURT RESIDENTIAL HOME,26/09/2022,"2,366.04",6541-Residential EMI,THIRD PARTY PAYMENTS,PRIVATE CONTRACTOR,REVENUE
Walsall Council,http://opendatacommunities.org/id/metropolitan-district-council/walsall ,WC142-586,30.09.2022,ADULT SOCIAL CARE,ANSON COURT RESIDENTIAL HOME,26/09/2022,"2,366.04",6541-Residential EMI,THIRD PARTY PAYMENTS,PRIVATE CONTRACTOR,REVENUE
Walsall Council,http://opendatacommunities.org/id/metropolitan-district-council/walsall ,WC142-587,30.09.2022,ADULT SOCIAL CARE,ANSON COURT RESIDENTIAL HOME,26/09/2022,"2,366.04",6541-Residential EMI,THIRD PARTY PAYMENTS,PRIVATE CONTRACTOR,REVENUE
Walsall Council,http://opendatacommunities.org/id/metropolitan-district-council/walsall ,WC142-588,30.09.2022,ADULT SOCIAL CARE,ANSON COURT RESIDENTIAL HOME,26/09/2022,"2,366.04",6541-Residential EMI,THIRD PARTY PAYMENTS,PRIVATE CONTRACTOR,REVENUE
Walsall Council,http://opendatacommunities.org/id/metropolitan-district-council/walsall ,WC142-589,30.09.2022,ADULT SOCIAL CARE,ANSON COURT RESIDENTIAL HOME,26/09/2022,"2,095.40",6541-Residential,THIRD PARTY PAYMENTS,PRIVATE CONTRACTOR,REVENUE
Walsall Council,http://opendatacommunities.org/id/metropolitan-district-council/walsall ,WC142-590,30.09.2022,ADULT SOCIAL CARE,ANSON COURT RESIDENTIAL HOME,26/09/2022,"2,095.40",6541-Residential,THIRD PARTY PAYMENTS,PRIVATE CONTRACTOR,REVENUE
Walsall Council,http://opendatacommunities.org/id/metropolitan-district-council/walsall ,WC142-591,30.09.2022,ADULT SOCIAL CARE,ANSON COURT RESIDENTIAL HOME,26/09/2022,"2,366.04",6541-Residential EMI,THIRD PARTY PAYMENTS,PRIVATE CONTRACTOR,REVENUE
Walsall Council,http://opendatacommunities.org/id/metropolitan-district-council/walsall ,WC142-592,30.09.2022,ADULT SOCIAL CARE,ANSON COURT RESIDENTIAL HOME,26/09/2022,"2,366.04",6541-Residential EMI,THIRD PARTY PAYMENTS,PRIVATE CONTRACTOR,REVENUE
Walsall Council,http://opendatacommunities.org/id/metropolitan-district-council/walsall ,WC142-593,30.09.2022,ADULT SOCIAL CARE,ANSON COURT RESIDENTIAL HOME,26/09/2022,"2,366.04",6541-Residential EMI,THIRD PARTY PAYMENTS,PRIVATE CONTRACTOR,REVENUE
Walsall Council,http://opendatacommunities.org/id/metropolitan-district-council/walsall ,WC142-594,30.09.2022,CHILDRENS,REDACTED,21/09/2022,334.64,6223-Special Guardianship Orders,TRANSFER PAYMENTS,CHILDREN SOCIAL SERVICES CLIENT,REVENUE
Walsall Council,http://opendatacommunities.org/id/metropolitan-district-council/walsall ,WC142-595,30.09.2022,"ECONOMY, ENVIRONMENT & COMMUNITIES",APCOA PARKING SERVICES (UK) LTD,20/09/2022,"55,813.11",6411-Professional Services-Priv Contractor & Other Agencies,THIRD PARTY PAYMENTS,PRIVATE CONTRACTOR,REVENUE
Walsall Council,http://opendatacommunities.org/id/metropolitan-district-council/walsall ,WC142-596,30.09.2022,RESOURCES AND TRANSFORMATION,APCOA PARKING SERVICES (UK) LTD,21/09/2022,-697.66,6634-Oxygen Finance Rebates ,SUPPLIES & SERVICES,SERVICES,REVENUE
Walsall Council,http://opendatacommunities.org/id/metropolitan-district-council/walsall ,WC142-597,30.09.2022,CHILDRENS,APP CARZ,26/09/2022,646,6314-Other Travel Allowances,TRANSPORT,CAR ALLOWANCES,REVENUE
Walsall Council,http://opendatacommunities.org/id/metropolitan-district-council/walsall ,WC142-598,30.09.2022,CHILDRENS,APP CARZ,30/09/2022,724,6314-Other Travel Allowances,TRANSPORT,CAR ALLOWANCES,REVENUE
Walsall Council,http://opendatacommunities.org/id/metropolitan-district-council/walsall ,WC142-599,30.09.2022,"ECONOMY, ENVIRONMENT & COMMUNITIES",AQUILA TRUCK CENTRES LTD,30/09/2022,315,6410-Materials,SUPPLIES & SERVICES,EQUIPMENT FURNITURE & MATERIALS,REVENUE
Walsall Council,http://opendatacommunities.org/id/metropolitan-district-council/walsall ,WC142-600,30.09.2022,ADULT SOCIAL CARE,ARBORETUM NURSING HOME.,26/09/2022,"2,456.24",6541-Nursing,THIRD PARTY PAYMENTS,PRIVATE CONTRACTOR,REVENUE
Walsall Council,http://opendatacommunities.org/id/metropolitan-district-council/walsall ,WC142-601,30.09.2022,ADULT SOCIAL CARE,ARBORETUM NURSING HOME.,26/09/2022,"2,456.24",6541-Nursing,THIRD PARTY PAYMENTS,PRIVATE CONTRACTOR,REVENUE
Walsall Council,http://opendatacommunities.org/id/metropolitan-district-council/walsall ,WC142-602,30.09.2022,ADULT SOCIAL CARE,ARBORETUM NURSING HOME.,26/09/2022,"2,456.24",6541-Nursing,THIRD PARTY PAYMENTS,PRIVATE CONTRACTOR,REVENUE
Walsall Council,http://opendatacommunities.org/id/metropolitan-district-council/walsall ,WC142-603,30.09.2022,ADULT SOCIAL CARE,ARBORETUM NURSING HOME.,26/09/2022,"2,456.24",6541-Nursing,THIRD PARTY PAYMENTS,PRIVATE CONTRACTOR,REVENUE
Walsall Council,http://opendatacommunities.org/id/metropolitan-district-council/walsall ,WC142-604,30.09.2022,ADULT SOCIAL CARE,ARBORETUM NURSING HOME.,26/09/2022,"2,456.24",6541-Nursing,THIRD PARTY PAYMENTS,PRIVATE CONTRACTOR,REVENUE
Walsall Council,http://opendatacommunities.org/id/metropolitan-district-council/walsall ,WC142-605,30.09.2022,ADULT SOCIAL CARE,ARBORETUM NURSING HOME.,26/09/2022,"2,636.24",6541-Nursing,THIRD PARTY PAYMENTS,PRIVATE CONTRACTOR,REVENUE
Walsall Council,http://opendatacommunities.org/id/metropolitan-district-council/walsall ,WC142-606,30.09.2022,ADULT SOCIAL CARE,ARBORETUM NURSING HOME.,26/09/2022,"-2,357.15",6541-Residential & Nursing Care Placements,THIRD PARTY PAYMENTS,PRIVATE CONTRACTOR,REVENUE
Walsall Council,http://opendatacommunities.org/id/metropolitan-district-council/walsall ,WC142-607,30.09.2022,ADULT SOCIAL CARE,ARBORETUM NURSING HOME.,26/09/2022,"2,656.24",6541-Nursing,THIRD PARTY PAYMENTS,PRIVATE CONTRACTOR,REVENUE
Walsall Council,http://opendatacommunities.org/id/metropolitan-district-council/walsall ,WC142-608,30.09.2022,ADULT SOCIAL CARE,ARBORETUM NURSING HOME.,26/09/2022,"3,035.71",6541-Residential & Nursing Care Placements,THIRD PARTY PAYMENTS,PRIVATE CONTRACTOR,REVENUE
Walsall Council,http://opendatacommunities.org/id/metropolitan-district-council/walsall ,WC142-609,30.09.2022,ADULT SOCIAL CARE,ARBORETUM NURSING HOME.,26/09/2022,"2,456.24",6541-Nursing,THIRD PARTY PAYMENTS,PRIVATE CONTRACTOR,REVENUE
Walsall Council,http://opendatacommunities.org/id/metropolitan-district-council/walsall ,WC142-610,30.09.2022,ADULT SOCIAL CARE,ARBORETUM NURSING HOME.,26/09/2022,"2,636.24",6541-Nursing,THIRD PARTY PAYMENTS,PRIVATE CONTRACTOR,REVENUE
Walsall Council,http://opendatacommunities.org/id/metropolitan-district-council/walsall ,WC142-611,30.09.2022,ADULT SOCIAL CARE,ARBORETUM NURSING HOME.,26/09/2022,971.43,6541-Residential & Nursing Care Placements,THIRD PARTY PAYMENTS,PRIVATE CONTRACTOR,REVENUE
Walsall Council,http://opendatacommunities.org/id/metropolitan-district-council/walsall ,WC142-612,30.09.2022,ADULT SOCIAL CARE,ARBORETUM NURSING HOME.,26/09/2022,"1,897.32",6541-Nursing,THIRD PARTY PAYMENTS,PRIVATE CONTRACTOR,REVENUE
Walsall Council,http://opendatacommunities.org/id/metropolitan-district-council/walsall ,WC142-613,30.09.2022,ADULT SOCIAL CARE,ARBORETUM NURSING HOME.,26/09/2022,"1,092.86",6541-Residential & Nursing Care Placements,THIRD PARTY PAYMENTS,PRIVATE CONTRACTOR,REVENUE
Walsall Council,http://opendatacommunities.org/id/metropolitan-district-council/walsall ,WC142-614,30.09.2022,ADULT SOCIAL CARE,ARBORETUM NURSING HOME.,26/09/2022,"2,636.24",6541-Nursing,THIRD PARTY PAYMENTS,PRIVATE CONTRACTOR,REVENUE
Walsall Council,http://opendatacommunities.org/id/metropolitan-district-council/walsall ,WC142-615,30.09.2022,ADULT SOCIAL CARE,ARBORETUM NURSING HOME.,26/09/2022,"3,035.71",6541-Residential & Nursing Care Placements,THIRD PARTY PAYMENTS,PRIVATE CONTRACTOR,REVENUE
Walsall Council,http://opendatacommunities.org/id/metropolitan-district-council/walsall ,WC142-616,30.09.2022,ADULT SOCIAL CARE,ARBORETUM NURSING HOME.,26/09/2022,728.57,6541-Residential & Nursing Care Placements,THIRD PARTY PAYMENTS,PRIVATE CONTRACTOR,REVENUE
Walsall Council,http://opendatacommunities.org/id/metropolitan-district-council/walsall ,WC142-617,30.09.2022,ADULT SOCIAL CARE,ARBORETUM NURSING HOME.,26/09/2022,"2,636.24",6541-Nursing,THIRD PARTY PAYMENTS,PRIVATE CONTRACTOR,REVENUE
Walsall Council,http://opendatacommunities.org/id/metropolitan-district-council/walsall ,WC142-618,30.09.2022,ADULT SOCIAL CARE,ARBORETUM NURSING HOME.,26/09/2022,"2,683.24",6541-Nursing,THIRD PARTY PAYMENTS,PRIVATE CONTRACTOR,REVENUE
Walsall Council,http://opendatacommunities.org/id/metropolitan-district-council/walsall ,WC142-619,30.09.2022,ADULT SOCIAL CARE,ARBORETUM NURSING HOME.,26/09/2022,"2,064.29",6541-Residential & Nursing Care Placements,THIRD PARTY PAYMENTS,PRIVATE CONTRACTOR,REVENUE
Walsall Council,http://opendatacommunities.org/id/metropolitan-district-council/walsall ,WC142-620,30.09.2022,ADULT SOCIAL CARE,ARBORETUM NURSING HOME.,26/09/2022,"1,821.43",6541-Residential & Nursing Care Placements,THIRD PARTY PAYMENTS,PRIVATE CONTRACTOR,REVENUE
Walsall Council,http://opendatacommunities.org/id/metropolitan-district-council/walsall ,WC142-621,30.09.2022,ADULT SOCIAL CARE,ARBORETUM NURSING HOME.,26/09/2022,"19,676.22",6541-Nursing,THIRD PARTY PAYMENTS,PRIVATE CONTRACTOR,REVENUE
Walsall Council,http://opendatacommunities.org/id/metropolitan-district-council/walsall ,WC142-622,30.09.2022,ADULT SOCIAL CARE,ARBORETUM NURSING HOME.,26/09/2022,"2,456.24",6541-Nursing,THIRD PARTY PAYMENTS,PRIVATE CONTRACTOR,REVENUE
Walsall Council,http://opendatacommunities.org/id/metropolitan-district-council/walsall ,WC142-623,30.09.2022,ADULT SOCIAL CARE,ARBORETUM NURSING HOME.,26/09/2022,"2,456.24",6541-Nursing,THIRD PARTY PAYMENTS,PRIVATE CONTRACTOR,REVENUE
Walsall Council,http://opendatacommunities.org/id/metropolitan-district-council/walsall ,WC142-624,30.09.2022,ADULT SOCIAL CARE,ARBORETUM NURSING HOME.,26/09/2022,"2,700.00",6541-Nursing,THIRD PARTY PAYMENTS,PRIVATE CONTRACTOR,REVENUE
Walsall Council,http://opendatacommunities.org/id/metropolitan-district-council/walsall ,WC142-625,30.09.2022,ADULT SOCIAL CARE,ARBORETUM NURSING HOME.,26/09/2022,"3,400.00",6541-Residential & Nursing Care Placements,THIRD PARTY PAYMENTS,PRIVATE CONTRACTOR,REVENUE
Walsall Council,http://opendatacommunities.org/id/metropolitan-district-council/walsall ,WC142-626,30.09.2022,ADULT SOCIAL CARE,ARBORETUM NURSING HOME.,26/09/2022,"2,500.00",6541-Nursing,THIRD PARTY PAYMENTS,PRIVATE CONTRACTOR,REVENUE
Walsall Council,http://opendatacommunities.org/id/metropolitan-district-council/walsall ,WC142-627,30.09.2022,ADULT SOCIAL CARE,ARBORETUM NURSING HOME.,26/09/2022,"1,457.14",6541-Residential & Nursing Care Placements,THIRD PARTY PAYMENTS,PRIVATE CONTRACTOR,REVENUE
Walsall Council,http://opendatacommunities.org/id/metropolitan-district-council/walsall ,WC142-628,30.09.2022,ADULT SOCIAL CARE,ARBORETUM NURSING HOME.,26/09/2022,"3,400.00",6541-Residential & Nursing Care Placements,THIRD PARTY PAYMENTS,PRIVATE CONTRACTOR,REVENUE
Walsall Council,http://opendatacommunities.org/id/metropolitan-district-council/walsall ,WC142-629,30.09.2022,ADULT SOCIAL CARE,ARBORETUM NURSING HOME.,26/09/2022,728.57,6541-Residential & Nursing Care Placements,THIRD PARTY PAYMENTS,PRIVATE CONTRACTOR,REVENUE
Walsall Council,http://opendatacommunities.org/id/metropolitan-district-council/walsall ,WC142-630,30.09.2022,RESOURCES AND TRANSFORMATION CAPITAL,ARCADIS,07/09/2022,"32,910.00",7300-Consultants Fees,CAPITAL,"NEW CONSTRUCTION,CONVERSION & RENOVATION",CAPITAL
Walsall Council,http://opendatacommunities.org/id/metropolitan-district-council/walsall ,WC142-631,30.09.2022,RESOURCES AND TRANSFORMATION CAPITAL,ARCADIS,07/09/2022,"27,473.00",7300-Consultants Fees,CAPITAL,"NEW CONSTRUCTION,CONVERSION & RENOVATION",CAPITAL
Walsall Council,http://opendatacommunities.org/id/metropolitan-district-council/walsall ,WC142-632,30.09.2022,RESOURCES AND TRANSFORMATION CAPITAL,ARCADIS,01/09/2022,"3,430.00",7300-Consultants Fees,CAPITAL,"NEW CONSTRUCTION,CONVERSION & RENOVATION",CAPITAL
Walsall Council,http://opendatacommunities.org/id/metropolitan-district-council/walsall ,WC142-633,30.09.2022,"ECONOMY, ENVIRONMENT & COMMUNITIES",ARCADIS,22/09/2022,"83,825.00",6313-Professional Fees & Services,SUPPLIES & SERVICES,SERVICES,REVENUE
Walsall Council,http://opendatacommunities.org/id/metropolitan-district-council/walsall ,WC142-634,30.09.2022,CHILDRENS,REDACTED,16/09/2022,849.3,6241-Hire of Vehicle with Driver,TRANSPORT,DIRECT TRANSPORT COSTS,REVENUE
Walsall Council,http://opendatacommunities.org/id/metropolitan-district-council/walsall ,WC142-635,30.09.2022,CHILDRENS,ASDA STORES LIMITED,13/09/2022,"4,972.50",6633-Housing Benefits-Transfer Payments,TRANSFER PAYMENTS,HOUSING BENEFITS,REVENUE
Walsall Council,http://opendatacommunities.org/id/metropolitan-district-council/walsall ,WC142-636,30.09.2022,CHILDRENS,ASDA STORES LIMITED,16/09/2022,750,6314-Housing Benefits-Transfer Payments,TRANSFER PAYMENTS,HOUSING BENEFITS,REVENUE
Walsall Council,http://opendatacommunities.org/id/metropolitan-district-council/walsall ,WC142-637,30.09.2022,CHILDRENS,ASDA STORES LIMITED,27/09/2022,"1,462.50",6633-Housing Benefits-Transfer Payments,TRANSFER PAYMENTS,HOUSING BENEFITS,REVENUE
Walsall Council,http://opendatacommunities.org/id/metropolitan-district-council/walsall ,WC142-638,30.09.2022,ADULT SOCIAL CARE,ASH GRANGE CARE HOME,26/09/2022,"2,456.24",6541-Nursing,THIRD PARTY PAYMENTS,PRIVATE CONTRACTOR,REVENUE
Walsall Council,http://opendatacommunities.org/id/metropolitan-district-council/walsall ,WC142-639,30.09.2022,ADULT SOCIAL CARE,ASH GRANGE CARE HOME,26/09/2022,"2,763.80",6541-Nursing EMI,THIRD PARTY PAYMENTS,PRIVATE CONTRACTOR,REVENUE
Walsall Council,http://opendatacommunities.org/id/metropolitan-district-council/walsall ,WC142-640,30.09.2022,ADULT SOCIAL CARE,ASH GRANGE CARE HOME,26/09/2022,"2,456.24",6541-Nursing,THIRD PARTY PAYMENTS,PRIVATE CONTRACTOR,REVENUE
Walsall Council,http://opendatacommunities.org/id/metropolitan-district-council/walsall ,WC142-641,30.09.2022,ADULT SOCIAL CARE,ASH GRANGE CARE HOME,26/09/2022,"2,095.40",6541-Residential,THIRD PARTY PAYMENTS,PRIVATE CONTRACTOR,REVENUE
Walsall Council,http://opendatacommunities.org/id/metropolitan-district-council/walsall ,WC142-642,30.09.2022,ADULT SOCIAL CARE,ASH GRANGE CARE HOME,26/09/2022,"1,578.57",6541-Residential & Nursing Care Placements,THIRD PARTY PAYMENTS,PRIVATE CONTRACTOR,REVENUE
Walsall Council,http://opendatacommunities.org/id/metropolitan-district-council/walsall ,WC142-643,30.09.2022,ADULT SOCIAL CARE,ASH GRANGE CARE HOME,26/09/2022,"2,095.40",6541-Residential,THIRD PARTY PAYMENTS,PRIVATE CONTRACTOR,REVENUE
Walsall Council,http://opendatacommunities.org/id/metropolitan-district-council/walsall ,WC142-644,30.09.2022,ADULT SOCIAL CARE,ASH GRANGE CARE HOME,26/09/2022,"2,456.24",6541-Nursing,THIRD PARTY PAYMENTS,PRIVATE CONTRACTOR,REVENUE
Walsall Council,http://opendatacommunities.org/id/metropolitan-district-council/walsall ,WC142-645,30.09.2022,ADULT SOCIAL CARE,ASH GRANGE CARE HOME,26/09/2022,"2,763.80",6541-Nursing EMI,THIRD PARTY PAYMENTS,PRIVATE CONTRACTOR,REVENUE
Walsall Council,http://opendatacommunities.org/id/metropolitan-district-council/walsall ,WC142-646,30.09.2022,ADULT SOCIAL CARE,ASH GRANGE CARE HOME,26/09/2022,"2,835.20",6541-Nursing,THIRD PARTY PAYMENTS,PRIVATE CONTRACTOR,REVENUE
Walsall Council,http://opendatacommunities.org/id/metropolitan-district-council/walsall ,WC142-647,30.09.2022,ADULT SOCIAL CARE,ASH GRANGE CARE HOME,26/09/2022,"2,656.24",6541-Nursing,THIRD PARTY PAYMENTS,PRIVATE CONTRACTOR,REVENUE
Walsall Council,http://opendatacommunities.org/id/metropolitan-district-council/walsall ,WC142-648,30.09.2022,ADULT SOCIAL CARE,ASH GRANGE CARE HOME,26/09/2022,"2,563.24",6541-Nursing,THIRD PARTY PAYMENTS,PRIVATE CONTRACTOR,REVENUE
Walsall Council,http://opendatacommunities.org/id/metropolitan-district-council/walsall ,WC142-649,30.09.2022,ADULT SOCIAL CARE,ASH GRANGE CARE HOME,26/09/2022,"1,214.28",6541-Residential & Nursing Care Placements,THIRD PARTY PAYMENTS,PRIVATE CONTRACTOR,REVENUE
Walsall Council,http://opendatacommunities.org/id/metropolitan-district-council/walsall ,WC142-650,30.09.2022,ADULT SOCIAL CARE,ASH GRANGE CARE HOME,26/09/2022,"2,792.86",6541-Residential & Nursing Care Placements,THIRD PARTY PAYMENTS,PRIVATE CONTRACTOR,REVENUE
Walsall Council,http://opendatacommunities.org/id/metropolitan-district-council/walsall ,WC142-651,30.09.2022,ADULT SOCIAL CARE,ASH GRANGE CARE HOME,26/09/2022,"2,430.96",6541-Residential,THIRD PARTY PAYMENTS,PRIVATE CONTRACTOR,REVENUE
Walsall Council,http://opendatacommunities.org/id/metropolitan-district-council/walsall ,WC142-652,30.09.2022,ADULT SOCIAL CARE,ASH GRANGE CARE HOME,26/09/2022,"2,230.96",6541-Residential,THIRD PARTY PAYMENTS,PRIVATE CONTRACTOR,REVENUE
Walsall Council,http://opendatacommunities.org/id/metropolitan-district-council/walsall ,WC142-653,30.09.2022,ADULT SOCIAL CARE,ASH GRANGE CARE HOME,26/09/2022,"2,656.24",6541-Nursing,THIRD PARTY PAYMENTS,PRIVATE CONTRACTOR,REVENUE
Walsall Council,http://opendatacommunities.org/id/metropolitan-district-council/walsall ,WC142-654,30.09.2022,ADULT SOCIAL CARE,ASH GRANGE CARE HOME,26/09/2022,"2,456.24",6541-Nursing,THIRD PARTY PAYMENTS,PRIVATE CONTRACTOR,REVENUE
Walsall Council,http://opendatacommunities.org/id/metropolitan-district-council/walsall ,WC142-655,30.09.2022,ADULT SOCIAL CARE,ASH GRANGE CARE HOME,26/09/2022,"2,646.08",6541-Residential,THIRD PARTY PAYMENTS,PRIVATE CONTRACTOR,REVENUE
Walsall Council,http://opendatacommunities.org/id/metropolitan-district-council/walsall ,WC142-656,30.09.2022,ADULT SOCIAL CARE,ASH GRANGE CARE HOME,26/09/2022,"2,763.80",6541-Nursing EMI,THIRD PARTY PAYMENTS,PRIVATE CONTRACTOR,REVENUE
Walsall Council,http://opendatacommunities.org/id/metropolitan-district-council/walsall ,WC142-657,30.09.2022,ADULT SOCIAL CARE,ASH GRANGE CARE HOME,26/09/2022,"2,756.24",6541-Nursing,THIRD PARTY PAYMENTS,PRIVATE CONTRACTOR,REVENUE
Walsall Council,http://opendatacommunities.org/id/metropolitan-district-council/walsall ,WC142-658,30.09.2022,ADULT SOCIAL CARE,ASH GRANGE CARE HOME,26/09/2022,"3,400.00",6541-Residential & Nursing Care Placements,THIRD PARTY PAYMENTS,PRIVATE CONTRACTOR,REVENUE
Walsall Council,http://opendatacommunities.org/id/metropolitan-district-council/walsall ,WC142-659,30.09.2022,ADULT SOCIAL CARE,ASH GRANGE CARE HOME,26/09/2022,"2,430.96",6541-Short Stay Residential,THIRD PARTY PAYMENTS,PRIVATE CONTRACTOR,REVENUE
Walsall Council,http://opendatacommunities.org/id/metropolitan-district-council/walsall ,WC142-660,30.09.2022,ADULT SOCIAL CARE,ASH GRANGE CARE HOME,26/09/2022,"2,656.24",6541-Nursing,THIRD PARTY PAYMENTS,PRIVATE CONTRACTOR,REVENUE
Walsall Council,http://opendatacommunities.org/id/metropolitan-district-council/walsall ,WC142-661,30.09.2022,ADULT SOCIAL CARE,ASH GRANGE CARE HOME,26/09/2022,607.14,6541-Residential & Nursing Care Placements,THIRD PARTY PAYMENTS,PRIVATE CONTRACTOR,REVENUE
Walsall Council,http://opendatacommunities.org/id/metropolitan-district-council/walsall ,WC142-662,30.09.2022,ADULT SOCIAL CARE,REDACTED,07/09/2022,"1,787.15",6541-Direct Payment,THIRD PARTY PAYMENTS,PRIVATE CONTRACTOR,REVENUE
Walsall Council,http://opendatacommunities.org/id/metropolitan-district-council/walsall ,WC142-663,30.09.2022,"ECONOMY, ENVIRONMENT & COMMUNITIES",ASKEWS AND HOLTS LIBRARY SERVICES LTD,01/09/2022,"3,288.80",6414-Library Books,SUPPLIES & SERVICES,EQUIPMENT FURNITURE & MATERIALS,REVENUE
Walsall Council,http://opendatacommunities.org/id/metropolitan-district-council/walsall ,WC142-664,30.09.2022,"ECONOMY, ENVIRONMENT & COMMUNITIES",ASKEWS AND HOLTS LIBRARY SERVICES LTD,06/09/2022,550.89,6414-Library Books,SUPPLIES & SERVICES,EQUIPMENT FURNITURE & MATERIALS,REVENUE
Walsall Council,http://opendatacommunities.org/id/metropolitan-district-council/walsall ,WC142-665,30.09.2022,"ECONOMY, ENVIRONMENT & COMMUNITIES",ASKEWS AND HOLTS LIBRARY SERVICES LTD,21/09/2022,257.48,6414-Library Books,SUPPLIES & SERVICES,EQUIPMENT FURNITURE & MATERIALS,REVENUE
Walsall Council,http://opendatacommunities.org/id/metropolitan-district-council/walsall ,WC142-666,30.09.2022,"ECONOMY, ENVIRONMENT & COMMUNITIES",ASKEWS AND HOLTS LIBRARY SERVICES LTD,22/09/2022,835.98,6414-Library Books,SUPPLIES & SERVICES,EQUIPMENT FURNITURE & MATERIALS,REVENUE
Walsall Council,http://opendatacommunities.org/id/metropolitan-district-council/walsall ,WC142-667,30.09.2022,ADULT SOCIAL CARE,REDACTED,07/09/2022,952.2,6541-Direct Payment,THIRD PARTY PAYMENTS,PRIVATE CONTRACTOR,REVENUE
Walsall Council,http://opendatacommunities.org/id/metropolitan-district-council/walsall ,WC142-668,30.09.2022,CHILDRENS,ASPIRE 2 BE LTD,05/09/2022,"21,960.00",6223-External Residential Care-Oth Agency Provision,THIRD PARTY PAYMENTS,PRIVATE CONTRACTOR,REVENUE
Walsall Council,http://opendatacommunities.org/id/metropolitan-district-council/walsall ,WC142-669,30.09.2022,RESOURCES AND TRANSFORMATION,ASSOCIATION OF ELECTORAL ADMINISTRATORS,22/09/2022,450,6610-External Training,INDIRECT EMPLOYEES,EXTERNAL TRAINING,REVENUE
Walsall Council,http://opendatacommunities.org/id/metropolitan-district-council/walsall ,WC142-670,30.09.2022,"ECONOMY, ENVIRONMENT & COMMUNITIES",ASTRONOMICAL EDUCATIONAL CIC T/AS FIZZ POP SCIENCE,23/09/2022,700,6414-Events & Visual Arts,SUPPLIES & SERVICES,SERVICES,REVENUE
Walsall Council,http://opendatacommunities.org/id/metropolitan-district-council/walsall ,WC142-671,30.09.2022,"ECONOMY, ENVIRONMENT & COMMUNITIES",ASTRONOMICAL ENTERTAINMENT LTD T/AS FIZZ POP SCIENCE,06/09/2022,-700,6414-Events & Visual Arts,SUPPLIES & SERVICES,SERVICES,REVENUE
Walsall Council,http://opendatacommunities.org/id/metropolitan-district-council/walsall ,WC142-672,30.09.2022,"ECONOMY, ENVIRONMENT & COMMUNITIES",ASTRONOMICAL ENTERTAINMENT LTD T/AS FIZZ POP SCIENCE,06/09/2022,700,6414-Events & Visual Arts,SUPPLIES & SERVICES,SERVICES,REVENUE
Walsall Council,http://opendatacommunities.org/id/metropolitan-district-council/walsall ,WC142-673,30.09.2022,CHILDRENS,REDACTED,21/09/2022,342.92,6223-Residents Orders,TRANSFER PAYMENTS,CHILDREN SOCIAL SERVICES CLIENT,REVENUE
Walsall Council,http://opendatacommunities.org/id/metropolitan-district-council/walsall ,WC142-674,30.09.2022,CHILDRENS,REDACTED,21/09/2022,281.68,6223-Residents Orders,TRANSFER PAYMENTS,CHILDREN SOCIAL SERVICES CLIENT,REVENUE
Walsall Council,http://opendatacommunities.org/id/metropolitan-district-council/walsall ,WC142-675,30.09.2022,ECONOMY & ENVIRONMENT CAPITAL,ATKINS LIMITED,01/09/2022,"10,538.26",7200-Site Works Contractors,CAPITAL,"NEW CONSTRUCTION,CONVERSION & RENOVATION",CAPITAL
Walsall Council,http://opendatacommunities.org/id/metropolitan-district-council/walsall ,WC142-676,30.09.2022,CHILDRENS,ATTACHED CARE LTD,05/09/2022,"36,704.00",6223-External Residential Care-Oth Agency Provision,THIRD PARTY PAYMENTS,PRIVATE CONTRACTOR,REVENUE
Walsall Council,http://opendatacommunities.org/id/metropolitan-district-council/walsall ,WC142-677,30.09.2022,ADULT SOCIAL CARE,REDACTED,07/09/2022,"1,603.48",6541-Direct Payment,THIRD PARTY PAYMENTS,PRIVATE CONTRACTOR,REVENUE
Walsall Council,http://opendatacommunities.org/id/metropolitan-district-council/walsall ,WC142-678,30.09.2022,ADULT SOCIAL CARE,AURORA GRAPHICS & DISPLAYS LTD,26/09/2022,"-2,887.80",6623-Outwork Print & Design,SUPPLIES & SERVICES,PRINTING STATIONERY & GENERAL OFFICE,REVENUE
Walsall Council,http://opendatacommunities.org/id/metropolitan-district-council/walsall ,WC142-679,30.09.2022,ADULT SOCIAL CARE,AURORA GRAPHICS & DISPLAYS LTD,26/09/2022,"2,887.80",6623-Outwork Print & Design,SUPPLIES & SERVICES,PRINTING STATIONERY & GENERAL OFFICE,REVENUE
Walsall Council,http://opendatacommunities.org/id/metropolitan-district-council/walsall ,WC142-680,30.09.2022,CHILDRENS,AURORA HANLEY SCHOOL/AURORA ASD LTD,13/09/2022,"25,995.68",1220-Top Up Funding -Grants to Schools,SUPPLIES & SERVICES,GRANTS (EXP) & SUBSCRIPTIONS,REVENUE
Walsall Council,http://opendatacommunities.org/id/metropolitan-district-council/walsall ,WC142-681,30.09.2022,CHILDRENS,AURORA HANLEY SCHOOL/AURORA ASD LTD,15/09/2022,"-2,035.50",1220-Top Up Funding -Grants to Schools,SUPPLIES & SERVICES,GRANTS (EXP) & SUBSCRIPTIONS,REVENUE
Walsall Council,http://opendatacommunities.org/id/metropolitan-district-council/walsall ,WC142-682,30.09.2022,ADULT SOCIAL CARE,AUTISM WEST MIDLANDS,26/09/2022,"5,818.64",6541-Residential,THIRD PARTY PAYMENTS,PRIVATE CONTRACTOR,REVENUE
Walsall Council,http://opendatacommunities.org/id/metropolitan-district-council/walsall ,WC142-683,30.09.2022,ADULT SOCIAL CARE,AUTISM WEST MIDLANDS,26/09/2022,"7,529.32",6541-Residential,THIRD PARTY PAYMENTS,PRIVATE CONTRACTOR,REVENUE
Walsall Council,http://opendatacommunities.org/id/metropolitan-district-council/walsall ,WC142-684,30.09.2022,ADULT SOCIAL CARE,AUTISM WEST MIDLANDS,26/09/2022,"20,347.00",6541-Residential,THIRD PARTY PAYMENTS,PRIVATE CONTRACTOR,REVENUE
Walsall Council,http://opendatacommunities.org/id/metropolitan-district-council/walsall ,WC142-685,30.09.2022,"ECONOMY, ENVIRONMENT & COMMUNITIES",AUTOBITS,16/09/2022,275,6410-Professional Services-Priv Contractor & Other Agencies,THIRD PARTY PAYMENTS,PRIVATE CONTRACTOR,REVENUE
Walsall Council,http://opendatacommunities.org/id/metropolitan-district-council/walsall ,WC142-686,30.09.2022,CHILDRENS,AVEC SUPPORT LTD,06/09/2022,"3,928.57",6223-Accommodation and Related Costs-Assistance to S/S Clients,TRANSFER PAYMENTS,ADULT SOCIAL SERVICES CLIENT,REVENUE
Walsall Council,http://opendatacommunities.org/id/metropolitan-district-council/walsall ,WC142-687,30.09.2022,ADULT SOCIAL CARE,AVERY HOMES NELSON LIMITED,26/09/2022,"3,430.96",6541-Residential,THIRD PARTY PAYMENTS,PRIVATE CONTRACTOR,REVENUE
Walsall Council,http://opendatacommunities.org/id/metropolitan-district-council/walsall ,WC142-688,30.09.2022,ADULT SOCIAL CARE,AVERY HOMES NELSON LIMITED,26/09/2022,"2,095.40",6541-Residential,THIRD PARTY PAYMENTS,PRIVATE CONTRACTOR,REVENUE
Walsall Council,http://opendatacommunities.org/id/metropolitan-district-council/walsall ,WC142-689,30.09.2022,ADULT SOCIAL CARE,AVERY HOMES NELSON LIMITED,26/09/2022,514.28,6541-Short Stay Residential,THIRD PARTY PAYMENTS,PRIVATE CONTRACTOR,REVENUE
Walsall Council,http://opendatacommunities.org/id/metropolitan-district-council/walsall ,WC142-690,30.09.2022,ADULT SOCIAL CARE,AVERY HOMES NELSON LIMITED,26/09/2022,"2,095.40",6541-Residential,THIRD PARTY PAYMENTS,PRIVATE CONTRACTOR,REVENUE
Walsall Council,http://opendatacommunities.org/id/metropolitan-district-council/walsall ,WC142-691,30.09.2022,ADULT SOCIAL CARE,REDACTED,07/09/2022,"4,305.60",6541-Direct Payment,THIRD PARTY PAYMENTS,PRIVATE CONTRACTOR,REVENUE
Walsall Council,http://opendatacommunities.org/id/metropolitan-district-council/walsall ,WC142-692,30.09.2022,CHILDRENS CAPITAL,AZTEC CONSTRUCTION (MIDLANDS) LTD,16/09/2022,"9,087.33",7100-Private Grants,CAPITAL,CAPITAL GRANTS,CAPITAL GRANTS
Walsall Council,http://opendatacommunities.org/id/metropolitan-district-council/walsall ,WC142-693,30.09.2022,CHILDRENS CAPITAL,AZTEC CONSTRUCTION (MIDLANDS) LTD,16/09/2022,"9,087.33",7100-Private Grants,CAPITAL,CAPITAL GRANTS,CAPITAL GRANTS
Walsall Council,http://opendatacommunities.org/id/metropolitan-district-council/walsall ,WC142-694,30.09.2022,"ECONOMY, ENVIRONMENT & COMMUNITIES",B W Y CANINE LTD,05/09/2022,410,6440-Professional Services-Priv Contractor & Other Agencies,THIRD PARTY PAYMENTS,PRIVATE CONTRACTOR,REVENUE
Walsall Council,http://opendatacommunities.org/id/metropolitan-district-council/walsall ,WC142-695,30.09.2022,CHILDRENS,BACHES SOLICITORS,07/09/2022,740.87,6220-School Only Payments - Catering,THIRD PARTY PAYMENTS,INDEPENDENT UNIT WITHIN COUNCIL,REVENUE
Walsall Council,http://opendatacommunities.org/id/metropolitan-district-council/walsall ,WC142-696,30.09.2022,CHILDRENS,BACK CARE SOLUTIONS LTD,06/09/2022,-783.89,6222-Health & Safety Personal Protection Equipment,SUPPLIES & SERVICES,EQUIPMENT FURNITURE & MATERIALS,REVENUE
Walsall Council,http://opendatacommunities.org/id/metropolitan-district-council/walsall ,WC142-697,30.09.2022,CHILDRENS,BACK CARE SOLUTIONS LTD,06/09/2022,783.89,6222-Health & Safety Personal Protection Equipment,SUPPLIES & SERVICES,EQUIPMENT FURNITURE & MATERIALS,REVENUE
Walsall Council,http://opendatacommunities.org/id/metropolitan-district-council/walsall ,WC142-698,30.09.2022,CHILDRENS,BACK CARE SOLUTIONS LTD,06/09/2022,798.89,6222-Health & Safety Personal Protection Equipment,SUPPLIES & SERVICES,EQUIPMENT FURNITURE & MATERIALS,REVENUE
Walsall Council,http://opendatacommunities.org/id/metropolitan-district-council/walsall ,WC142-699,30.09.2022,CHILDRENS,BACK CARE SOLUTIONS LTD,21/09/2022,401,6314-Purchase of Furniture & Equipment,SUPPLIES & SERVICES,EQUIPMENT FURNITURE & MATERIALS,REVENUE
Walsall Council,http://opendatacommunities.org/id/metropolitan-district-council/walsall ,WC142-700,30.09.2022,CHILDRENS,BACK CARE SOLUTIONS LTD,21/09/2022,821,6314-Purchase of Furniture & Equipment,SUPPLIES & SERVICES,EQUIPMENT FURNITURE & MATERIALS,REVENUE
Walsall Council,http://opendatacommunities.org/id/metropolitan-district-council/walsall ,WC142-701,30.09.2022,RESOURCES AND TRANSFORMATION,BAILY GARNER LLP,05/09/2022,"2,493.75",6310-Planned Maintenance,PREMISES,REPAIRS & MAINTENANCE,REVENUE
Walsall Council,http://opendatacommunities.org/id/metropolitan-district-council/walsall ,WC142-702,30.09.2022,"ECONOMY, ENVIRONMENT & COMMUNITIES",BAKER HALL PARTNERSHIP,01/09/2022,"1,844.00",6413-Professional Fees & Services,SUPPLIES & SERVICES,SERVICES,REVENUE
Walsall Council,http://opendatacommunities.org/id/metropolitan-district-council/walsall ,WC142-703,30.09.2022,"ECONOMY, ENVIRONMENT & COMMUNITIES",BAKER HALL PARTNERSHIP,01/09/2022,"1,050.00",6413-Professional Fees & Services,SUPPLIES & SERVICES,SERVICES,REVENUE
Walsall Council,http://opendatacommunities.org/id/metropolitan-district-council/walsall ,WC142-704,30.09.2022,"ECONOMY, ENVIRONMENT & COMMUNITIES",BAKER HALL PARTNERSHIP,01/09/2022,"1,120.50",6413-Professional Fees & Services,SUPPLIES & SERVICES,SERVICES,REVENUE
Walsall Council,http://opendatacommunities.org/id/metropolitan-district-council/walsall ,WC142-705,30.09.2022,ADULT SOCIAL CARE,REDACTED,07/09/2022,"4,824.05",6541-Direct Payment,THIRD PARTY PAYMENTS,PRIVATE CONTRACTOR,REVENUE
Walsall Council,http://opendatacommunities.org/id/metropolitan-district-council/walsall ,WC142-706,30.09.2022,CHILDRENS,REDACTED,21/09/2022,340,6223-Other Expenses,SUPPLIES & SERVICES,EXPENSES,REVENUE
Walsall Council,http://opendatacommunities.org/id/metropolitan-district-council/walsall ,WC142-707,30.09.2022,ADULT SOCIAL CARE,BARTHOLAMEW LODGE NURSING HOME LTD,26/09/2022,"3,043.80",6541-Nursing EMI,THIRD PARTY PAYMENTS,PRIVATE CONTRACTOR,REVENUE
Walsall Council,http://opendatacommunities.org/id/metropolitan-district-council/walsall ,WC142-708,30.09.2022,CHILDRENS CAPITAL,BAT FABRICATIONS LTD,20/09/2022,"6,449.52",7155-Site Works Contractors,CAPITAL,"NEW CONSTRUCTION,CONVERSION & RENOVATION",CAPITAL
Walsall Council,http://opendatacommunities.org/id/metropolitan-district-council/walsall ,WC142-709,30.09.2022,"ECONOMY, ENVIRONMENT & COMMUNITIES",BATLEYS,06/09/2022,906.76,6414-Catering & Refreshments,SUPPLIES & SERVICES,CATERING,REVENUE
Walsall Council,http://opendatacommunities.org/id/metropolitan-district-council/walsall ,WC142-710,30.09.2022,"ECONOMY, ENVIRONMENT & COMMUNITIES",BATLEYS,21/09/2022,"2,642.15",6414-Catering & Refreshments,SUPPLIES & SERVICES,CATERING,REVENUE
Walsall Council,http://opendatacommunities.org/id/metropolitan-district-council/walsall ,WC142-711,30.09.2022,CHILDRENS CAPITAL,BEADEN POWERLEC LIMITED,09/09/2022,"3,150.00",7155-Site Works Contractors,CAPITAL,"NEW CONSTRUCTION,CONVERSION & RENOVATION",CAPITAL
Walsall Council,http://opendatacommunities.org/id/metropolitan-district-council/walsall ,WC142-712,30.09.2022,CHILDRENS CAPITAL,BEADEN POWERLEC LIMITED,07/09/2022,985,7150-Site Works Contractors,CAPITAL,"NEW CONSTRUCTION,CONVERSION & RENOVATION",CAPITAL
Walsall Council,http://opendatacommunities.org/id/metropolitan-district-council/walsall ,WC142-713,30.09.2022,CHILDRENS CAPITAL,BEADEN POWERLEC LIMITED,07/09/2022,"3,940.00",7150-Site Works Contractors,CAPITAL,"NEW CONSTRUCTION,CONVERSION & RENOVATION",CAPITAL
Walsall Council,http://opendatacommunities.org/id/metropolitan-district-council/walsall ,WC142-714,30.09.2022,CHILDRENS CAPITAL,BEADEN POWERLEC LIMITED,12/09/2022,"1,905.70",7150-Site Works Contractors,CAPITAL,"NEW CONSTRUCTION,CONVERSION & RENOVATION",CAPITAL
Walsall Council,http://opendatacommunities.org/id/metropolitan-district-council/walsall ,WC142-715,30.09.2022,CHILDRENS CAPITAL,BEADEN POWERLEC LIMITED,12/09/2022,"3,109.30",7150-Site Works Contractors,CAPITAL,"NEW CONSTRUCTION,CONVERSION & RENOVATION",CAPITAL
Walsall Council,http://opendatacommunities.org/id/metropolitan-district-council/walsall ,WC142-716,30.09.2022,CHILDRENS CAPITAL,BEADEN POWERLEC LIMITED,29/09/2022,437,7150-Site Works Contractors,CAPITAL,"NEW CONSTRUCTION,CONVERSION & RENOVATION",CAPITAL
Walsall Council,http://opendatacommunities.org/id/metropolitan-district-council/walsall ,WC142-717,30.09.2022,CHILDRENS CAPITAL,BEADEN POWERLEC LIMITED,29/09/2022,"1,748.00",7150-Site Works Contractors,CAPITAL,"NEW CONSTRUCTION,CONVERSION & RENOVATION",CAPITAL
Walsall Council,http://opendatacommunities.org/id/metropolitan-district-council/walsall ,WC142-718,30.09.2022,CHILDRENS,BECKYS CHILDMINDING SERVICE,09/09/2022,"4,291.88",1184-Other-Grants to Other Orgs,SUPPLIES & SERVICES,GRANTS (EXP) & SUBSCRIPTIONS,REVENUE
Walsall Council,http://opendatacommunities.org/id/metropolitan-district-council/walsall ,WC142-719,30.09.2022,ADULT SOCIAL CARE,BELVIDERE COURT,26/09/2022,"2,456.24",6541-Nursing,THIRD PARTY PAYMENTS,PRIVATE CONTRACTOR,REVENUE
Walsall Council,http://opendatacommunities.org/id/metropolitan-district-council/walsall ,WC142-720,30.09.2022,ADULT SOCIAL CARE,BELVIDERE COURT,26/09/2022,"2,939.32",6541-Residential,THIRD PARTY PAYMENTS,PRIVATE CONTRACTOR,REVENUE
Walsall Council,http://opendatacommunities.org/id/metropolitan-district-council/walsall ,WC142-721,30.09.2022,ADULT SOCIAL CARE,BENEDON HEALTHCARE LTD,21/09/2022,"1,416.08",6541-Community Supported Living/Supported Accommodation,THIRD PARTY PAYMENTS,PRIVATE CONTRACTOR,REVENUE
Walsall Council,http://opendatacommunities.org/id/metropolitan-district-council/walsall ,WC142-722,30.09.2022,ADULT SOCIAL CARE,BENEDON HEALTHCARE LTD,21/09/2022,"5,988.56",6541-Community Supported Living/Supported Accommodation,THIRD PARTY PAYMENTS,PRIVATE CONTRACTOR,REVENUE
Walsall Council,http://opendatacommunities.org/id/metropolitan-district-council/walsall ,WC142-723,30.09.2022,ADULT SOCIAL CARE,REDACTED,07/09/2022,"3,984.40",6541-Direct Payment,THIRD PARTY PAYMENTS,PRIVATE CONTRACTOR,REVENUE
Walsall Council,http://opendatacommunities.org/id/metropolitan-district-council/walsall ,WC142-724,30.09.2022,ADULT SOCIAL CARE,REDACTED,07/09/2022,284.4,6541-Direct Payment,THIRD PARTY PAYMENTS,PRIVATE CONTRACTOR,REVENUE
Walsall Council,http://opendatacommunities.org/id/metropolitan-district-council/walsall ,WC142-725,30.09.2022,CHILDRENS,BENJAMIN UK LTD,05/09/2022,"19,100.00",6223-External Residential Care-Oth Agency Provision,THIRD PARTY PAYMENTS,PRIVATE CONTRACTOR,REVENUE
Walsall Council,http://opendatacommunities.org/id/metropolitan-district-council/walsall ,WC142-726,30.09.2022,CHILDRENS,BENTLEY CHILD CARE,15/09/2022,"3,462.00",6213-Professional Fees & Services,SUPPLIES & SERVICES,SERVICES,REVENUE
Walsall Council,http://opendatacommunities.org/id/metropolitan-district-council/walsall ,WC142-727,30.09.2022,CHILDRENS,REDACTED,21/09/2022,464,6223-Transfer Payments - Social Services Clients,TRANSFER PAYMENTS,ADULT SOCIAL SERVICES CLIENT,REVENUE
Walsall Council,http://opendatacommunities.org/id/metropolitan-district-council/walsall ,WC142-728,30.09.2022,CHILDRENS,REDACTED,07/09/2022,464,6223-Transfer Payments - Social Services Clients,TRANSFER PAYMENTS,ADULT SOCIAL SERVICES CLIENT,REVENUE
Walsall Council,http://opendatacommunities.org/id/metropolitan-district-council/walsall ,WC142-729,30.09.2022,CHILDRENS,REDACTED,09/09/2022,"1,461.60",1184-Other-Grants to Other Orgs,SUPPLIES & SERVICES,GRANTS (EXP) & SUBSCRIPTIONS,REVENUE
Walsall Council,http://opendatacommunities.org/id/metropolitan-district-council/walsall ,WC142-730,30.09.2022,ADULT SOCIAL CARE,REDACTED,07/09/2022,"2,449.00",6541-Direct Payment,THIRD PARTY PAYMENTS,PRIVATE CONTRACTOR,REVENUE
Walsall Council,http://opendatacommunities.org/id/metropolitan-district-council/walsall ,WC142-731,30.09.2022,"ECONOMY, ENVIRONMENT & COMMUNITIES",BESCOT STADIUM SUNDAY MARKET LTD,12/09/2022,"2,600.00",6410-Payment to Contractors,SUPPLIES & SERVICES,SERVICES,REVENUE
Walsall Council,http://opendatacommunities.org/id/metropolitan-district-council/walsall ,WC142-732,30.09.2022,ADULT SOCIAL CARE,BESS CARE LIMITED,21/09/2022,525.35,6541-Domiciliary Care,THIRD PARTY PAYMENTS,PRIVATE CONTRACTOR,REVENUE
Walsall Council,http://opendatacommunities.org/id/metropolitan-district-council/walsall ,WC142-733,30.09.2022,ADULT SOCIAL CARE,BESS CARE LIMITED,21/09/2022,"1,990.80",6541-Domiciliary Care,THIRD PARTY PAYMENTS,PRIVATE CONTRACTOR,REVENUE
Walsall Council,http://opendatacommunities.org/id/metropolitan-district-council/walsall ,WC142-734,30.09.2022,ADULT SOCIAL CARE,BESS CARE LIMITED,21/09/2022,442.4,6541-Domiciliary Care,THIRD PARTY PAYMENTS,PRIVATE CONTRACTOR,REVENUE
Walsall Council,http://opendatacommunities.org/id/metropolitan-district-council/walsall ,WC142-735,30.09.2022,ADULT SOCIAL CARE,BESS CARE LIMITED,21/09/2022,454.25,6541-Domiciliary Care,THIRD PARTY PAYMENTS,PRIVATE CONTRACTOR,REVENUE
Walsall Council,http://opendatacommunities.org/id/metropolitan-district-council/walsall ,WC142-736,30.09.2022,ADULT SOCIAL CARE,BESS CARE LIMITED,21/09/2022,422.65,6541-Domiciliary Care,THIRD PARTY PAYMENTS,PRIVATE CONTRACTOR,REVENUE
Walsall Council,http://opendatacommunities.org/id/metropolitan-district-council/walsall ,WC142-737,30.09.2022,ADULT SOCIAL CARE,BESS CARE LIMITED,21/09/2022,438.45,6541-Domiciliary Care,THIRD PARTY PAYMENTS,PRIVATE CONTRACTOR,REVENUE
Walsall Council,http://opendatacommunities.org/id/metropolitan-district-council/walsall ,WC142-738,30.09.2022,ADULT SOCIAL CARE,BESS CARE LIMITED,21/09/2022,359.45,6541-Domiciliary Care,THIRD PARTY PAYMENTS,PRIVATE CONTRACTOR,REVENUE
Walsall Council,http://opendatacommunities.org/id/metropolitan-district-council/walsall ,WC142-739,30.09.2022,ADULT SOCIAL CARE,BESS CARE LIMITED,21/09/2022,276.5,6541-Domiciliary Care,THIRD PARTY PAYMENTS,PRIVATE CONTRACTOR,REVENUE
Walsall Council,http://opendatacommunities.org/id/metropolitan-district-council/walsall ,WC142-740,30.09.2022,ADULT SOCIAL CARE,BESS CARE LIMITED,21/09/2022,434.5,6541-Domiciliary Care,THIRD PARTY PAYMENTS,PRIVATE CONTRACTOR,REVENUE
Walsall Council,http://opendatacommunities.org/id/metropolitan-district-council/walsall ,WC142-741,30.09.2022,ADULT SOCIAL CARE,BESS CARE LIMITED,21/09/2022,430.55,6541-Domiciliary Care,THIRD PARTY PAYMENTS,PRIVATE CONTRACTOR,REVENUE
Walsall Council,http://opendatacommunities.org/id/metropolitan-district-council/walsall ,WC142-742,30.09.2022,ADULT SOCIAL CARE,BESS CARE LIMITED,21/09/2022,359.45,6541-Domiciliary Care,THIRD PARTY PAYMENTS,PRIVATE CONTRACTOR,REVENUE
Walsall Council,http://opendatacommunities.org/id/metropolitan-district-council/walsall ,WC142-743,30.09.2022,ADULT SOCIAL CARE,BESS CARE LIMITED,21/09/2022,276.5,6541-Domiciliary Care,THIRD PARTY PAYMENTS,PRIVATE CONTRACTOR,REVENUE
Walsall Council,http://opendatacommunities.org/id/metropolitan-district-council/walsall ,WC142-744,30.09.2022,ADULT SOCIAL CARE,BESS CARE LIMITED,21/09/2022,434.5,6541-Domiciliary Care,THIRD PARTY PAYMENTS,PRIVATE CONTRACTOR,REVENUE
Walsall Council,http://opendatacommunities.org/id/metropolitan-district-council/walsall ,WC142-745,30.09.2022,ADULT SOCIAL CARE,BESS CARE LIMITED,21/09/2022,430.55,6541-Domiciliary Care,THIRD PARTY PAYMENTS,PRIVATE CONTRACTOR,REVENUE
Walsall Council,http://opendatacommunities.org/id/metropolitan-district-council/walsall ,WC142-746,30.09.2022,ADULT SOCIAL CARE,BESS CARE LIMITED,21/09/2022,359.45,6541-Domiciliary Care,THIRD PARTY PAYMENTS,PRIVATE CONTRACTOR,REVENUE
Walsall Council,http://opendatacommunities.org/id/metropolitan-district-council/walsall ,WC142-747,30.09.2022,ADULT SOCIAL CARE,BESS CARE LIMITED,21/09/2022,276.5,6541-Domiciliary Care,THIRD PARTY PAYMENTS,PRIVATE CONTRACTOR,REVENUE
Walsall Council,http://opendatacommunities.org/id/metropolitan-district-council/walsall ,WC142-748,30.09.2022,ADULT SOCIAL CARE,BESS CARE LIMITED,21/09/2022,434.5,6541-Domiciliary Care,THIRD PARTY PAYMENTS,PRIVATE CONTRACTOR,REVENUE
Walsall Council,http://opendatacommunities.org/id/metropolitan-district-council/walsall ,WC142-749,30.09.2022,ADULT SOCIAL CARE,BESS CARE LIMITED,21/09/2022,454.25,6541-Domiciliary Care,THIRD PARTY PAYMENTS,PRIVATE CONTRACTOR,REVENUE
Walsall Council,http://opendatacommunities.org/id/metropolitan-district-council/walsall ,WC142-750,30.09.2022,ADULT SOCIAL CARE,BESS CARE LIMITED,21/09/2022,359.45,6541-Domiciliary Care,THIRD PARTY PAYMENTS,PRIVATE CONTRACTOR,REVENUE
Walsall Council,http://opendatacommunities.org/id/metropolitan-district-council/walsall ,WC142-751,30.09.2022,ADULT SOCIAL CARE,BESS CARE LIMITED,21/09/2022,276.5,6541-Domiciliary Care,THIRD PARTY PAYMENTS,PRIVATE CONTRACTOR,REVENUE
Walsall Council,http://opendatacommunities.org/id/metropolitan-district-council/walsall ,WC142-752,30.09.2022,ADULT SOCIAL CARE,BESS CARE LIMITED,21/09/2022,442.4,6541-Domiciliary Care,THIRD PARTY PAYMENTS,PRIVATE CONTRACTOR,REVENUE
Walsall Council,http://opendatacommunities.org/id/metropolitan-district-council/walsall ,WC142-753,30.09.2022,ADULT SOCIAL CARE,BESS CARE LIMITED,21/09/2022,438.45,6541-Domiciliary Care,THIRD PARTY PAYMENTS,PRIVATE CONTRACTOR,REVENUE
Walsall Council,http://opendatacommunities.org/id/metropolitan-district-council/walsall ,WC142-754,30.09.2022,ADULT SOCIAL CARE,BESS CARE LIMITED,21/09/2022,359.45,6541-Domiciliary Care,THIRD PARTY PAYMENTS,PRIVATE CONTRACTOR,REVENUE
Walsall Council,http://opendatacommunities.org/id/metropolitan-district-council/walsall ,WC142-755,30.09.2022,ADULT SOCIAL CARE,BESS CARE LIMITED,21/09/2022,276.5,6541-Domiciliary Care,THIRD PARTY PAYMENTS,PRIVATE CONTRACTOR,REVENUE
Walsall Council,http://opendatacommunities.org/id/metropolitan-district-council/walsall ,WC142-756,30.09.2022,ADULT SOCIAL CARE,BESS CARE LIMITED,21/09/2022,434.5,6541-Domiciliary Care,THIRD PARTY PAYMENTS,PRIVATE CONTRACTOR,REVENUE
Walsall Council,http://opendatacommunities.org/id/metropolitan-district-council/walsall ,WC142-757,30.09.2022,ADULT SOCIAL CARE,BESS CARE LIMITED,21/09/2022,359.45,6541-Domiciliary Care,THIRD PARTY PAYMENTS,PRIVATE CONTRACTOR,REVENUE
Walsall Council,http://opendatacommunities.org/id/metropolitan-district-council/walsall ,WC142-758,30.09.2022,ADULT SOCIAL CARE,BESS CARE LIMITED,21/09/2022,276.5,6541-Domiciliary Care,THIRD PARTY PAYMENTS,PRIVATE CONTRACTOR,REVENUE
Walsall Council,http://opendatacommunities.org/id/metropolitan-district-council/walsall ,WC142-759,30.09.2022,CHILDRENS,BETHEL UNITED CHURCH,15/09/2022,"2,243.00",6213-Professional Fees & Services,SUPPLIES & SERVICES,SERVICES,REVENUE
Walsall Council,http://opendatacommunities.org/id/metropolitan-district-council/walsall ,WC142-760,30.09.2022,ADULT SOCIAL CARE,BETHPHAGE.,12/09/2022,574.09,6541-Domiciliary Care,THIRD PARTY PAYMENTS,PRIVATE CONTRACTOR,REVENUE
Walsall Council,http://opendatacommunities.org/id/metropolitan-district-council/walsall ,WC142-761,30.09.2022,ADULT SOCIAL CARE,BETHPHAGE.,12/09/2022,663.6,6541-Domiciliary Care,THIRD PARTY PAYMENTS,PRIVATE CONTRACTOR,REVENUE
Walsall Council,http://opendatacommunities.org/id/metropolitan-district-council/walsall ,WC142-762,30.09.2022,ADULT SOCIAL CARE,BETHPHAGE.,12/09/2022,537.2,6541-Domiciliary Care,THIRD PARTY PAYMENTS,PRIVATE CONTRACTOR,REVENUE
Walsall Council,http://opendatacommunities.org/id/metropolitan-district-council/walsall ,WC142-763,30.09.2022,ADULT SOCIAL CARE,BETHPHAGE.,12/09/2022,574.09,6541-Domiciliary Care,THIRD PARTY PAYMENTS,PRIVATE CONTRACTOR,REVENUE
Walsall Council,http://opendatacommunities.org/id/metropolitan-district-council/walsall ,WC142-764,30.09.2022,ADULT SOCIAL CARE,BETHPHAGE.,12/09/2022,663.6,6541-Domiciliary Care,THIRD PARTY PAYMENTS,PRIVATE CONTRACTOR,REVENUE
Walsall Council,http://opendatacommunities.org/id/metropolitan-district-council/walsall ,WC142-765,30.09.2022,ADULT SOCIAL CARE,BETHPHAGE.,12/09/2022,537.2,6541-Domiciliary Care,THIRD PARTY PAYMENTS,PRIVATE CONTRACTOR,REVENUE
Walsall Council,http://opendatacommunities.org/id/metropolitan-district-council/walsall ,WC142-766,30.09.2022,ADULT SOCIAL CARE,BETHPHAGE.,21/09/2022,"1,632.96",6541-Community Supported Living/Supported Accommodation,THIRD PARTY PAYMENTS,PRIVATE CONTRACTOR,REVENUE
Walsall Council,http://opendatacommunities.org/id/metropolitan-district-council/walsall ,WC142-767,30.09.2022,ADULT SOCIAL CARE,BETHPHAGE.,21/09/2022,"1,693.44",6541-Community Supported Living/Supported Accommodation,THIRD PARTY PAYMENTS,PRIVATE CONTRACTOR,REVENUE
Walsall Council,http://opendatacommunities.org/id/metropolitan-district-council/walsall ,WC142-768,30.09.2022,ADULT SOCIAL CARE,BETHPHAGE.,21/09/2022,937.44,6541-Community Supported Living/Supported Accommodation,THIRD PARTY PAYMENTS,PRIVATE CONTRACTOR,REVENUE
Walsall Council,http://opendatacommunities.org/id/metropolitan-district-council/walsall ,WC142-769,30.09.2022,ADULT SOCIAL CARE,BETHPHAGE.,21/09/2022,"1,572.48",6541-Community Supported Living/Supported Accommodation,THIRD PARTY PAYMENTS,PRIVATE CONTRACTOR,REVENUE
Walsall Council,http://opendatacommunities.org/id/metropolitan-district-council/walsall ,WC142-770,30.09.2022,ADULT SOCIAL CARE,BETHPHAGE.,21/09/2022,589.68,6541-Community Supported Living/Supported Accommodation,THIRD PARTY PAYMENTS,PRIVATE CONTRACTOR,REVENUE
Walsall Council,http://opendatacommunities.org/id/metropolitan-district-council/walsall ,WC142-771,30.09.2022,ADULT SOCIAL CARE,BETHPHAGE.,26/09/2022,574.09,6541-Domiciliary Care,THIRD PARTY PAYMENTS,PRIVATE CONTRACTOR,REVENUE
Walsall Council,http://opendatacommunities.org/id/metropolitan-district-council/walsall ,WC142-772,30.09.2022,ADULT SOCIAL CARE,BETHPHAGE.,26/09/2022,663.6,6541-Domiciliary Care,THIRD PARTY PAYMENTS,PRIVATE CONTRACTOR,REVENUE
Walsall Council,http://opendatacommunities.org/id/metropolitan-district-council/walsall ,WC142-773,30.09.2022,ADULT SOCIAL CARE,BETHPHAGE.,26/09/2022,537.2,6541-Domiciliary Care,THIRD PARTY PAYMENTS,PRIVATE CONTRACTOR,REVENUE
Walsall Council,http://opendatacommunities.org/id/metropolitan-district-council/walsall ,WC142-774,30.09.2022,ADULT SOCIAL CARE,BETHPHAGE.,26/09/2022,574.09,6541-Domiciliary Care,THIRD PARTY PAYMENTS,PRIVATE CONTRACTOR,REVENUE
Walsall Council,http://opendatacommunities.org/id/metropolitan-district-council/walsall ,WC142-775,30.09.2022,ADULT SOCIAL CARE,BETHPHAGE.,26/09/2022,663.6,6541-Domiciliary Care,THIRD PARTY PAYMENTS,PRIVATE CONTRACTOR,REVENUE
Walsall Council,http://opendatacommunities.org/id/metropolitan-district-council/walsall ,WC142-776,30.09.2022,ADULT SOCIAL CARE,BETHPHAGE.,26/09/2022,537.2,6541-Domiciliary Care,THIRD PARTY PAYMENTS,PRIVATE CONTRACTOR,REVENUE
Walsall Council,http://opendatacommunities.org/id/metropolitan-district-council/walsall ,WC142-777,30.09.2022,ADULT SOCIAL CARE,REDACTED,07/09/2022,"1,145.40",6541-Direct Payment,THIRD PARTY PAYMENTS,PRIVATE CONTRACTOR,REVENUE
Walsall Council,http://opendatacommunities.org/id/metropolitan-district-council/walsall ,WC142-778,30.09.2022,ADULT SOCIAL CARE,REDACTED,07/09/2022,540.96,6541-Direct Payment,THIRD PARTY PAYMENTS,PRIVATE CONTRACTOR,REVENUE
Walsall Council,http://opendatacommunities.org/id/metropolitan-district-council/walsall ,WC142-779,30.09.2022,ADULT SOCIAL CARE,REDACTED,07/09/2022,"1,443.70",6541-Direct Payment,THIRD PARTY PAYMENTS,PRIVATE CONTRACTOR,REVENUE
Walsall Council,http://opendatacommunities.org/id/metropolitan-district-council/walsall ,WC142-780,30.09.2022,CHILDRENS,BIRCHILLS C OF E COMMUNITY ACADEMY,06/09/2022,"38,976.00",1184-Other-Grants to Other Orgs,SUPPLIES & SERVICES,GRANTS (EXP) & SUBSCRIPTIONS,REVENUE
Walsall Council,http://opendatacommunities.org/id/metropolitan-district-council/walsall ,WC142-781,30.09.2022,RESOURCES AND TRANSFORMATION,BLACK COUNTRY CONSORTIUM LIMITED,14/09/2022,"34,000.00",6312-Grants to Associations,SUPPLIES & SERVICES,GRANTS (EXP) & SUBSCRIPTIONS,REVENUE
Walsall Council,http://opendatacommunities.org/id/metropolitan-district-council/walsall ,WC142-782,30.09.2022,RESOURCES AND TRANSFORMATION,BLACK COUNTRY CONSORTIUM LIMITED,13/09/2022,"7,615.42",6312-Grants to Associations,SUPPLIES & SERVICES,GRANTS (EXP) & SUBSCRIPTIONS,REVENUE
Walsall Council,http://opendatacommunities.org/id/metropolitan-district-council/walsall ,WC142-783,30.09.2022,"ECONOMY, ENVIRONMENT & COMMUNITIES",BLACK COUNTRY HEALTHCARE NHS FOUNDATION TRUST,06/09/2022,"4,539.75",6313-Grants to Other Orgs,SUPPLIES & SERVICES,GRANTS (EXP) & SUBSCRIPTIONS,REVENUE
Walsall Council,http://opendatacommunities.org/id/metropolitan-district-council/walsall ,WC142-784,30.09.2022,"ECONOMY, ENVIRONMENT & COMMUNITIES",BLACK COUNTRY HEALTHCARE NHS FOUNDATION TRUST,06/09/2022,"1,550.00",6313-Grants to Other Orgs,SUPPLIES & SERVICES,GRANTS (EXP) & SUBSCRIPTIONS,REVENUE
Walsall Council,http://opendatacommunities.org/id/metropolitan-district-council/walsall ,WC142-785,30.09.2022,"ECONOMY, ENVIRONMENT & COMMUNITIES",BLACK COUNTRY HEALTHCARE NHS FOUNDATION TRUST,06/09/2022,"1,550.00",6313-Grants to Other Orgs,SUPPLIES & SERVICES,GRANTS (EXP) & SUBSCRIPTIONS,REVENUE
Walsall Council,http://opendatacommunities.org/id/metropolitan-district-council/walsall ,WC142-786,30.09.2022,"ECONOMY, ENVIRONMENT & COMMUNITIES",BLACK COUNTRY INNOVATE CIC,30/09/2022,"3,000.00",6430-Professional Fees & Services,SUPPLIES & SERVICES,SERVICES,REVENUE
Walsall Council,http://opendatacommunities.org/id/metropolitan-district-council/walsall ,WC142-787,30.09.2022,"ECONOMY, ENVIRONMENT & COMMUNITIES",BLACK COUNTRY WOMENS AID,05/09/2022,"55,000.00",6430-Grants to Other Orgs,SUPPLIES & SERVICES,GRANTS (EXP) & SUBSCRIPTIONS,REVENUE
Walsall Council,http://opendatacommunities.org/id/metropolitan-district-council/walsall ,WC142-788,30.09.2022,"ECONOMY, ENVIRONMENT & COMMUNITIES",BLACK COUNTRY WOMENS AID,05/09/2022,"55,000.00",6430-Grants to Other Orgs,SUPPLIES & SERVICES,GRANTS (EXP) & SUBSCRIPTIONS,REVENUE
Walsall Council,http://opendatacommunities.org/id/metropolitan-district-council/walsall ,WC142-789,30.09.2022,"ECONOMY, ENVIRONMENT & COMMUNITIES",BLACK COUNTRY WOMENS AID,05/09/2022,"19,500.00",6430-Grants to Other Orgs,SUPPLIES & SERVICES,GRANTS (EXP) & SUBSCRIPTIONS,REVENUE
Walsall Council,http://opendatacommunities.org/id/metropolitan-district-council/walsall ,WC142-790,30.09.2022,CHILDRENS,BLACKWOOD SCHOOL-CENTRAL CO-OPERATIVE LEARNING TRUST,06/09/2022,"1,144.50",1184-Other-Grants to Other Orgs,SUPPLIES & SERVICES,GRANTS (EXP) & SUBSCRIPTIONS,REVENUE
Walsall Council,http://opendatacommunities.org/id/metropolitan-district-council/walsall ,WC142-791,30.09.2022,CHILDRENS,BLACKWOOD SCHOOL-CENTRAL CO-OPERATIVE LEARNING TRUST,06/09/2022,"71,131.20",1184-Other-Grants to Other Orgs,SUPPLIES & SERVICES,GRANTS (EXP) & SUBSCRIPTIONS,REVENUE
Walsall Council,http://opendatacommunities.org/id/metropolitan-district-council/walsall ,WC142-792,30.09.2022,ADULT SOCIAL CARE,REDACTED,07/09/2022,"13,839.43",6541-Direct Payment,THIRD PARTY PAYMENTS,PRIVATE CONTRACTOR,REVENUE
Walsall Council,http://opendatacommunities.org/id/metropolitan-district-council/walsall ,WC142-793,30.09.2022,CHILDRENS,BLOSSOMS ON THE COMMON DAY NURSERY LTD,09/09/2022,"28,501.20",1184-Other-Grants to Other Orgs,SUPPLIES & SERVICES,GRANTS (EXP) & SUBSCRIPTIONS,REVENUE
Walsall Council,http://opendatacommunities.org/id/metropolitan-district-council/walsall ,WC142-794,30.09.2022,CHILDRENS,BLOXWICH & BLAKENALL FOODBANK,05/09/2022,"3,000.00",6633-Grants to Other Orgs,SUPPLIES & SERVICES,GRANTS (EXP) & SUBSCRIPTIONS,REVENUE
Walsall Council,http://opendatacommunities.org/id/metropolitan-district-council/walsall ,WC142-795,30.09.2022,CHILDRENS,BLOXWICH ACADEMY,06/09/2022,"18,513.60",1184-Other-Grants to Other Orgs,SUPPLIES & SERVICES,GRANTS (EXP) & SUBSCRIPTIONS,REVENUE
Walsall Council,http://opendatacommunities.org/id/metropolitan-district-council/walsall ,WC142-796,30.09.2022,ADULT SOCIAL CARE,BLOXWICH COMMUNITY PARTNERSHIP.,12/09/2022,600,6420-Professional Fees & Services,SUPPLIES & SERVICES,SERVICES,REVENUE
Walsall Council,http://opendatacommunities.org/id/metropolitan-district-council/walsall ,WC142-797,30.09.2022,CHILDRENS,BLOXWICH COMMUNITY PARTNERSHIP.,14/09/2022,"3,000.00",6633-Grants to Other Orgs,SUPPLIES & SERVICES,GRANTS (EXP) & SUBSCRIPTIONS,REVENUE
Walsall Council,http://opendatacommunities.org/id/metropolitan-district-council/walsall ,WC142-798,30.09.2022,"ECONOMY, ENVIRONMENT & COMMUNITIES",BLOXWICH COMMUNITY PARTNERSHIP.,16/09/2022,"5,000.00",6430-Grants to Other Orgs,SUPPLIES & SERVICES,GRANTS (EXP) & SUBSCRIPTIONS,REVENUE
Walsall Council,http://opendatacommunities.org/id/metropolitan-district-council/walsall ,WC142-799,30.09.2022,CHILDRENS,BLOXWICH COMMUNITY PARTNERSHIP.,15/09/2022,"4,183.86",6213-Professional Fees & Services,SUPPLIES & SERVICES,SERVICES,REVENUE
Walsall Council,http://opendatacommunities.org/id/metropolitan-district-council/walsall ,WC142-800,30.09.2022,"ECONOMY, ENVIRONMENT & COMMUNITIES",BOLINDA UK LTD,28/09/2022,774.86,6414-Materials,SUPPLIES & SERVICES,EQUIPMENT FURNITURE & MATERIALS,REVENUE
Walsall Council,http://opendatacommunities.org/id/metropolitan-district-council/walsall ,WC142-801,30.09.2022,"ECONOMY, ENVIRONMENT & COMMUNITIES",BOLINDA UK LTD,28/09/2022,723.86,6414-Materials,SUPPLIES & SERVICES,EQUIPMENT FURNITURE & MATERIALS,REVENUE
Walsall Council,http://opendatacommunities.org/id/metropolitan-district-council/walsall ,WC142-802,30.09.2022,ADULT SOCIAL CARE,BONDCARE (REGIONS) LIMITED - BENTLEY COURT,26/09/2022,"2,763.80",6541-Nursing EMI,THIRD PARTY PAYMENTS,PRIVATE CONTRACTOR,REVENUE
